Ref No,Fund Type,Dept,Cost Centre Description    ,Description    ,Creditor Name    ,GL Code Net Amount,Payment date        
2,Revenue,CCHD,Under 65s PWLD - KD,Residential Homes,.,6770.72, 21-Feb-2012
3,Revenue,CCHD,Supporting People Programme,Grants to Voluntary Bodies,1625 Independent People,1035, 24-Feb-2012
4,Revenue,CCHD,Supporting People Programme,Grants to Voluntary Bodies,1625 Independent People,15847.2, 24-Feb-2012
5,Revenue,CCHD,Purchasing Phys Dis - North,Residential Homes,26 Severn Road,4557.14, 21-Feb-2012
6,Revenue,CCHD,Supported Living - KH,Private & Voluntary Home Care,3 Trees Community Support Ltd,2464.5, 16-Feb-2012
7,Revenue,CCHD,Supported Living - PS,Private & Voluntary Home Care,3 Trees Community Support Ltd,654.42, 06-Feb-2012
8,Revenue,CCHD,Supported Living - KH,Private & Voluntary Home Care,3 Trees Community Support Ltd,1275.99, 16-Feb-2012
9,Revenue,CCHD,Purchase of Non-Res Care - KD,Private & Voluntary Day Care,3 Trees Community Support Ltd,1010.49, 03-Feb-2012
10,Revenue,CCHD,Supported Living - KH,Private & Voluntary Home Care,3 Trees Community Support Ltd,9816.13, 16-Feb-2012
11,Revenue,CCHD,Purchase of Non-Res Care - KD,Private & Voluntary Day Care,3 Trees Community Support Ltd,1944.73, 03-Feb-2012
12,Revenue,CCHD,Purchase of Non-Res Care - KD,Private & Voluntary Day Care,3 Trees Community Support Ltd,1482.29, 03-Feb-2012
13,Revenue,CCHD,Purchase of Non-Res Care - KD,Private & Voluntary Day Care,3 Trees Community Support Ltd,5280.21, 06-Feb-2012
14,Revenue,CCHD,Supported Living - KH,Private & Voluntary Home Care,3 Trees Community Support Ltd,1306.16, 16-Feb-2012
15,Revenue,CCHD,Supported Living (S28a) South,Private & Voluntary Home Care,3 Trees Community Support Ltd,7606.95, 09-Feb-2012
16,Revenue,CCHD,Purchase of Non-Res Care - KD,Private & Voluntary Day Care,3 Trees Community Support Ltd,4391.67, 24-Feb-2012
17,Revenue,CCHD,Purchase of Non-Res Care - PS,Private & Voluntary Day Care,3 Trees Community Support Ltd,686.86, 14-Feb-2012
18,Revenue,CCHD,Purchase of Non-Res Care - KD,Private & Voluntary Day Care,3 Trees Community Support Ltd,1661.4, 24-Feb-2012
19,Revenue,CCHD,Purchase of Non-Res Care - KD,Private & Voluntary Day Care,3 Trees Community Support Ltd,1218.39, 24-Feb-2012
20,Revenue,CCHD,Purchase of Non-Res Care - KH,Private & Voluntary Day Care,3 Trees Community Support Ltd,2932.82, 16-Feb-2012
21,Revenue,CCHD,Supported Living - KH,Private & Voluntary Home Care,3 Trees Community Support Ltd,7752.2, 16-Feb-2012
22,Revenue,CCHD,Purchase of Non-Res Care - KH,Private & Voluntary Day Care,3 Trees Community Support Ltd,3530.85, 16-Feb-2012
23,Revenue,CCHD,PD Direct Payments North,Grants to Voluntary Bodies,A4E Management Limited,22857.93, 20-Feb-2012
24,Revenue,CCHD,Elderly Purchasing - South,Nursing Homes,Aabletone Nursing Home,1177.52, 21-Feb-2012
25,Revenue,CCHD,Elderly Purchasing - South,Residential Homes,Ablecare Homes,903.4, 21-Feb-2012
26,Revenue,CCHD,Southmead Hospital Purchasing,Residential Homes,Ablecare Homes,1418.08, 21-Feb-2012
27,Revenue,CCHD,Elderly Purchasing - North,Residential Homes,Ablecare Homes,871.04, 21-Feb-2012
28,Revenue,CCHD,Frenchay Hospital Purchasing,Residential Homes,Ablecare Homes,1422.8, 21-Feb-2012
29,Revenue,CCHD,Elderly Purchasing - North,Residential Homes,Ablecare Homes,2414.29, 21-Feb-2012
30,Revenue,CCHD,Elderly Purchasing - South,Residential Homes,Ablecare Homes,1572.44, 21-Feb-2012
31,Revenue,CCHD,Elderly Purchasing - North,Residential Homes,Ablecare Homes,1226.72, 21-Feb-2012
32,Revenue,CCHD,Frenchay Hospital Purchasing,Residential Homes,Ablecare Homes,1232.16, 21-Feb-2012
33,Revenue,CCHD,Southmead Hospital Purchasing,Residential Homes,Ablecare Homes,1152.08, 21-Feb-2012
34,Revenue,CCHD,Elderly Mental Health North,Residential Homes,Ablecare Homes,1180.8, 21-Feb-2012
35,Revenue,CCHD,Elderly Mental Health North,Residential Homes,Ablecare Homes,1381, 21-Feb-2012
36,Revenue,CCHD,Elderly Purchasing - South,Residential Homes,Ablecare Homes,1263.6, 21-Feb-2012
37,Revenue,CCHD,Day Care - North,Private & Voluntary Day Care,Age UK South Gloucestershire,1693.12, 07-Feb-2012
38,Revenue,CCHD,Day Care - North,Private & Voluntary Day Care,Age UK South Gloucestershire,1157.44, 07-Feb-2012
39,Revenue,CCHD,Day Care - North,Private & Voluntary Day Care,Age UK South Gloucestershire,1693.12, 28-Feb-2012
40,Revenue,CCHD,Day Care - North,Private & Voluntary Day Care,Age UK South Gloucestershire,1157.44, 28-Feb-2012
41,Revenue,CCHD,Day Care - North,Private & Voluntary Day Care,Age UK South Gloucestershire,1269.84, 07-Feb-2012
42,Revenue,CCHD,Day Care - North,Private & Voluntary Day Care,Age UK South Gloucestershire,983.52, 07-Feb-2012
43,Revenue,CCHD,Day Care - South,Private & Voluntary Day Care,Age UK South Gloucestershire,615.68, 16-Feb-2012
44,Revenue,CCHD,Day Care - South,Private & Voluntary Day Care,Age UK South Gloucestershire,541.76, 16-Feb-2012
45,Revenue,CCHD,Day Care - South,Private & Voluntary Day Care,Age UK South Gloucestershire,1095.68, 16-Feb-2012
46,Revenue,CCHD,Home Care Purch South,Other Small Contracts,Agincare UK Limited,1185.6, 16-Feb-2012
47,Revenue,CCHD,Home Care Purch North,Other Small Contracts,Agincare UK Limited,1151.4, 16-Feb-2012
48,Revenue,CCHD,Day Care - South,Private & Voluntary Day Care,Agincare UK Limited,106.4, 16-Feb-2012
49,Revenue,CCHD,Day Care - North,Private & Voluntary Day Care,Agincare UK Limited,30.4, 16-Feb-2012
50,Revenue,CCHD,Elderly MH Home Care North,Other Small Contracts,Agincare UK Limited,117.8, 16-Feb-2012
51,Revenue,CCHD,Elderly MH Day Care North,Private & Voluntary Day Care,Agincare UK Limited,106.4, 16-Feb-2012
52,Revenue,CCHD,Home Care Purch South,Other Small Contracts,Agincare UK Limited,1497.2, 02-Feb-2012
53,Revenue,CCHD,Home Care Purch North,Other Small Contracts,Agincare UK Limited,1170.4, 02-Feb-2012
54,Revenue,CCHD,Day Care - South,Private & Voluntary Day Care,Agincare UK Limited,262.2, 02-Feb-2012
55,Revenue,CCHD,Day Care - North,Private & Voluntary Day Care,Agincare UK Limited,30.4, 02-Feb-2012
56,Revenue,CCHD,Elderly MH Home Care North,Other Small Contracts,Agincare UK Limited,114, 02-Feb-2012
57,Revenue,CCHD,Elderly MH Day Care North,Private & Voluntary Day Care,Agincare UK Limited,110.2, 02-Feb-2012
58,Revenue,CCHD,Home Care Purch South,Other Small Contracts,Agincare UK Limited,946.2, 28-Feb-2012
59,Revenue,CCHD,Home Care Purch North,Other Small Contracts,Agincare UK Limited,995.6, 28-Feb-2012
60,Revenue,CCHD,Day Care - South,Private & Voluntary Day Care,Agincare UK Limited,231.8, 28-Feb-2012
61,Revenue,CCHD,Elderly MH Home Care North,Other Small Contracts,Agincare UK Limited,114, 28-Feb-2012
62,Revenue,CCHD,Elderly MH Day Care North,Private & Voluntary Day Care,Agincare UK Limited,60.8, 28-Feb-2012
63,Revenue,CCHD,Home Care Purch South,Other Small Contracts,Agincare UK Limited,1311, 28-Feb-2012
64,Revenue,CCHD,Home Care Purch North,Other Small Contracts,Agincare UK Limited,805.6, 28-Feb-2012
65,Revenue,CCHD,Day Care - South,Private & Voluntary Day Care,Agincare UK Limited,239.4, 28-Feb-2012
66,Revenue,CCHD,Day Care - North,Private & Voluntary Day Care,Agincare UK Limited,30.4, 28-Feb-2012
67,Revenue,CCHD,Elderly MH Home Care North,Other Small Contracts,Agincare UK Limited,121.6, 28-Feb-2012
68,Revenue,CCHD,Elderly MH Day Care North,Private & Voluntary Day Care,Agincare UK Limited,95, 28-Feb-2012
69,Revenue,CCHD,S117 Placements PCT,Residential Homes,Alexandra House,6697.76, 21-Feb-2012
70,Revenue,CCHD,Home Care Purch South,Other Small Contracts,Allied Healthcare Group,973.34, 10-Feb-2012
71,Revenue,CCHD,Home Care Purch North,Other Small Contracts,Allied Healthcare Group,946.22, 10-Feb-2012
72,Revenue,CCHD,Day Care - North,Private & Voluntary Day Care,Allied Healthcare Group,37.4, 10-Feb-2012
73,Revenue,CCHD,Home Care Purch South,Other Small Contracts,Allied Healthcare Group,686.56, 10-Feb-2012
74,Revenue,CCHD,Home Care Purch North,Other Small Contracts,Allied Healthcare Group,605.88, 10-Feb-2012
75,Revenue,CCHD,Home Care Purch South,Other Small Contracts,Allied Healthcare Group,817.06, 10-Feb-2012
76,Revenue,CCHD,Home Care Purch North,Other Small Contracts,Allied Healthcare Group,953.7, 10-Feb-2012
77,Revenue,CCHD,Day Care - North,Private & Voluntary Day Care,Allied Healthcare Group,52.36, 10-Feb-2012
78,Revenue,CCHD,Home Care Purch South,Other Small Contracts,Allied Healthcare Group,731.84, 10-Feb-2012
79,Revenue,CCHD,Home Care Purch North,Other Small Contracts,Allied Healthcare Group,863.94, 10-Feb-2012
80,Revenue,CCHD,Day Care - North,Private & Voluntary Day Care,Allied Healthcare Group,37.4, 10-Feb-2012
81,Revenue,CCHD,Home Care Purch South,Other Small Contracts,Allied Healthcare Group,827.08, 28-Feb-2012
82,Revenue,CCHD,Home Care Purch North,Other Small Contracts,Allied Healthcare Group,953.7, 28-Feb-2012
83,Revenue,CCHD,Day Care - North,Private & Voluntary Day Care,Allied Healthcare Group,41.14, 28-Feb-2012
84,Revenue,CCHD,Frenchay Hospital Purchasing,Residential Homes,Anbridge Care Home,832, 21-Feb-2012
85,Revenue,CCHD,Under 65s PWLD - KD,Residential Homes,Ark Care Homes Ltd,10342.92, 21-Feb-2012
86,Revenue,CCHD,Bed and Breakfast,Bed & Breakfast,Ashley Guest Houses Ltd,1512, 24-Feb-2012
87,Revenue,CCHD,Bed and Breakfast,Bed & Breakfast,Ashley Guest Houses Ltd,1176, 03-Feb-2012
88,Revenue,CCHD,Bed and Breakfast,Bed & Breakfast,Ashley Guest Houses Ltd,1176, 10-Feb-2012
89,Revenue,CCHD,Bed and Breakfast,Bed & Breakfast,Ashley Guest Houses Ltd,1392, 17-Feb-2012
90,Revenue,CCHD,S28A - Over 65 South,Residential Homes,Aspects &  Milestones Trust,3828.08, 21-Feb-2012
91,Revenue,CCHD,Elderly Purchasing - South,Residential Homes,Aspects &  Milestones Trust,1379, 21-Feb-2012
92,Revenue,CCHD,Section 117 Placements North,Residential Homes,Aspects &  Milestones Trust,1304, 21-Feb-2012
93,Revenue,CCHD,Section 117 Placements North,Nursing Homes,Aspects &  Milestones Trust,1911.96, 21-Feb-2012
94,Revenue,CCHD,Elderly PWLD - KD,Residential Homes,Aspects &  Milestones Trust,3505.52, 21-Feb-2012
95,Revenue,CCHD,Under 65s PWLD - PS,Residential Homes,Aspects &  Milestones Trust,5152, 21-Feb-2012
96,Revenue,CCHD,Under 65s PWLD - PS,Residential Homes,Aspects &  Milestones Trust,5601.08, 21-Feb-2012
97,Revenue,CCHD,Under 65s PWLD - KD,Nursing Homes,Aspects &  Milestones Trust,2703.44, 21-Feb-2012
98,Revenue,CCHD,Section 117 Placements North,Nursing Homes,Aspects &  Milestones Trust,1912, 21-Feb-2012
99,Revenue,CCHD,Elderly Mental Health North,Nursing Homes,Aspects &  Milestones Trust,1453, 21-Feb-2012
100,Revenue,CCHD,Elderly PWLD - PS,Residential Homes,Aspects &  Milestones Trust,4295.72, 21-Feb-2012
101,Revenue,CCHD,S28A - Under 65 South,Nursing Homes,Aspects &  Milestones Trust,5712.32, 21-Feb-2012
102,Revenue,CCHD,S28A - Under 65 South,Residential Homes,Aspects &  Milestones Trust,5272.24, 21-Feb-2012
103,Revenue,CCHD,S28A - Under 65 South,Residential Homes,Aspects &  Milestones Trust,5251.04, 21-Feb-2012
104,Revenue,CCHD,Under 65s PWLD - KD,Residential Homes,Aspects &  Milestones Trust,5638.32, 21-Feb-2012
105,Revenue,CCHD,Under 65s PWLD - KH,Residential Homes,Aspects &  Milestones Trust,3782.04, 21-Feb-2012
106,Revenue,CCHD,S28A - Under 65 South,Nursing Homes,Aspects &  Milestones Trust,7624.84, 21-Feb-2012
107,Revenue,CCHD,MH Purchasing - Younger,Residential Homes,Aspects &  Milestones Trust,1009, 21-Feb-2012
108,Revenue,CCHD,Elderly PWLD - PS,Residential Homes,Aspects &  Milestones Trust,5191.2, 21-Feb-2012
109,Revenue,CCHD,Elderly PWLD - PS,Residential Homes,Aspects &  Milestones Trust,3739.2, 21-Feb-2012
110,Revenue,CCHD,Elderly PWLD - KH,Residential Homes,Aspects &  Milestones Trust,4664.24, 21-Feb-2012
111,Revenue,CCHD,S28A - Under 65 South,Residential Homes,Aspects &  Milestones Trust,5187.68, 21-Feb-2012
112,Revenue,CCHD,S28A - Under 65 South,Residential Homes,Aspects &  Milestones Trust,6036, 21-Feb-2012
113,Revenue,CCHD,Swift Dump Code,Residential Homes,Aspects &  Milestones Trust,3415.96, 21-Feb-2012
114,Revenue,CCHD,S28A - Under 65 South,Nursing Homes,Aspects &  Milestones Trust,6122.48, 21-Feb-2012
115,Revenue,CCHD,Under 65s PWLD - PS,Residential Homes,Aspects &  Milestones Trust,3648.4, 21-Feb-2012
116,Revenue,CCHD,S28A - Under 65 South,Residential Homes,Aspects &  Milestones Trust,6036, 21-Feb-2012
117,Revenue,CCHD,S28A - Under 65 South,Residential Homes,Aspects &  Milestones Trust,4787.92, 21-Feb-2012
118,Revenue,CCHD,S28A - Over 65 South,Residential Homes,Aspects &  Milestones Trust,4664.48, 21-Feb-2012
119,Revenue,CCHD,S28A - Over 65 South,Residential Homes,Aspects &  Milestones Trust,3959.08, 21-Feb-2012
120,Revenue,CCHD,S28A - Under 65 South,Residential Homes,Aspects &  Milestones Trust,6036, 21-Feb-2012
121,Revenue,CCHD,S28A - Over 65 South,Residential Homes,Aspects &  Milestones Trust,4179.08, 21-Feb-2012
122,Revenue,CCHD,S28A - Under 65 South,Residential Homes,Aspects &  Milestones Trust,6036, 21-Feb-2012
123,Revenue,CCHD,S28A - Over 65 South,Residential Homes,Aspects &  Milestones Trust,3854.92, 21-Feb-2012
124,Revenue,CCHD,S28A - Under 65 South,Residential Homes,Aspects &  Milestones Trust,4980, 21-Feb-2012
125,Revenue,CCHD,S28A - Under 65 South,Residential Homes,Aspects &  Milestones Trust,6528.04, 21-Feb-2012
126,Revenue,CCHD,S28A - Under 65 South,Residential Homes,Aspects &  Milestones Trust,3992.16, 21-Feb-2012
127,Revenue,CCHD,S28A - Over 65 South,Residential Homes,Aspects &  Milestones Trust,5737.96, 21-Feb-2012
128,Revenue,CCHD,S28A - Over 65 South,Residential Homes,Aspects &  Milestones Trust,3351.52, 21-Feb-2012
129,Revenue,CCHD,S28A - Over 65 South,Residential Homes,Aspects &  Milestones Trust,4691.8, 21-Feb-2012
130,Revenue,CCHD,S28A - Over 65 South,Residential Homes,Aspects &  Milestones Trust,4837.04, 21-Feb-2012
131,Revenue,CCHD,S28A - Over 65 South,Residential Homes,Aspects &  Milestones Trust,4556.16, 21-Feb-2012
132,Revenue,CCHD,S28A - Over 65 South,Residential Homes,Aspects &  Milestones Trust,4112.28, 21-Feb-2012
133,Revenue,CCHD,S28A - Over 65 South,Residential Homes,Aspects &  Milestones Trust,3419.64, 21-Feb-2012
134,Revenue,CCHD,S28A - Under 65 South,Residential Homes,Aspects &  Milestones Trust,7200, 21-Feb-2012
135,Revenue,CCHD,Under 65s PWLD - PS,Residential Homes,Aspects &  Milestones Trust,6608.12, 21-Feb-2012
136,Revenue,CCHD,Under 65s PWLD - PS,Residential Homes,Aspects &  Milestones Trust,1543.13, 21-Feb-2012
137,Revenue,CCHD,S28A - Under 65 South,Nursing Homes,Aspects &  Milestones Trust,6203.68, 21-Feb-2012
138,Revenue,CCHD,S28A - Over 65 South,Residential Homes,Aspects &  Milestones Trust,3445.12, 21-Feb-2012
139,Revenue,CCHD,S28A - Over 65 South,Residential Homes,Aspects &  Milestones Trust,3207.68, 21-Feb-2012
140,Revenue,CCHD,S28A - Over 65 South,Residential Homes,Aspects &  Milestones Trust,3263.96, 21-Feb-2012
141,Revenue,CCHD,S28A - Over 65 South,Residential Homes,Aspects &  Milestones Trust,4652.36, 21-Feb-2012
142,Revenue,CCHD,Section 117 Placements MH Younger,Residential Homes,Aspects &  Milestones Trust,8476, 21-Feb-2012
143,Revenue,CCHD,Elderly Mental Health North,Residential Homes,Aspects &  Milestones Trust,845.36, 21-Feb-2012
144,Revenue,CCHD,S28A - Under 65 South,Residential Homes,Aspects &  Milestones Trust,4723.04, 21-Feb-2012
145,Revenue,CCHD,Elderly PWLD - KD,Residential Homes,Aspects &  Milestones Trust,2722.88, 21-Feb-2012
146,Revenue,CCHD,Elderly PWLD - KH,Residential Homes,Aspects &  Milestones Trust,5344.36, 21-Feb-2012
147,Revenue,CCHD,Under 65s PWLD - KD,Residential Homes,Aspects &  Milestones Trust,5420.08, 21-Feb-2012
148,Revenue,CCHD,Elderly PWLD - KD,Residential Homes,Aspects &  Milestones Trust,4180.6, 21-Feb-2012
149,Revenue,CCHD,Under 65s PWLD - PS,Residential Homes,Aspects &  Milestones Trust,3797.04, 21-Feb-2012
150,Revenue,CCHD,S28A - Under 65 South,Residential Homes,Aspects &  Milestones Trust,5687.48, 21-Feb-2012
151,Revenue,CCHD,S28A - Over 65 South,Residential Homes,Aspects &  Milestones Trust,3227.36, 21-Feb-2012
152,Revenue,CCHD,Section 117 Placements MH Younger,Residential Homes,Aspects &  Milestones Trust,1688, 21-Feb-2012
153,Revenue,CCHD,MH Purchasing - Younger,Residential Homes,Aspects &  Milestones Trust,1009, 21-Feb-2012
154,Revenue,CCHD,S28A - Over 65 South,Residential Homes,Aspects &  Milestones Trust,3463.2, 21-Feb-2012
155,Revenue,CCHD,S28A - Under 65 South,Residential Homes,Aspects &  Milestones Trust,3514.96, 21-Feb-2012
156,Revenue,CCHD,S28A - Under 65 South,Residential Homes,Aspects &  Milestones Trust,4980, 21-Feb-2012
157,Revenue,CCHD,S28A - Under 65 South,Residential Homes,Aspects &  Milestones Trust,5936.36, 21-Feb-2012
158,Revenue,CCHD,S28A - Over 65 South,Residential Homes,Aspects &  Milestones Trust,5810.64, 21-Feb-2012
159,Revenue,CCHD,S28A - Over 65 South,Residential Homes,Aspects &  Milestones Trust,4106.08, 21-Feb-2012
160,Revenue,CCHD,S28A - Over 65 South,Residential Homes,Aspects &  Milestones Trust,4652.36, 21-Feb-2012
161,Revenue,CCHD,S28A - Over 65 South,Residential Homes,Aspects &  Milestones Trust,4693.88, 21-Feb-2012
162,Revenue,CCHD,S28A - Over 65 South,Residential Homes,Aspects &  Milestones Trust,5524.88, 21-Feb-2012
163,Revenue,CCHD,S28A - Over 65 South,Residential Homes,Aspects &  Milestones Trust,66463.81, 21-Feb-2012
164,Revenue,CCHD,S28A - Under 65 South,Residential Homes,Aspects &  Milestones Trust,7621.72, 21-Feb-2012
165,Revenue,CCHD,S28A - Over 65 South,Residential Homes,Aspects &  Milestones Trust,4831.24, 21-Feb-2012
166,Revenue,CCHD,S28A - Under 65 South,Residential Homes,Aspects &  Milestones Trust,4675.48, 21-Feb-2012
167,Revenue,CCHD,S28A - Over 65 South,Residential Homes,Aspects &  Milestones Trust,4814.6, 21-Feb-2012
168,Revenue,CCHD,S28A - Over 65 South,Residential Homes,Aspects &  Milestones Trust,5393.12, 21-Feb-2012
169,Revenue,CCHD,S28A - Under 65 South,Residential Homes,Aspects &  Milestones Trust,4546.52, 21-Feb-2012
170,Revenue,CCHD,S28A - Over 65 South,Residential Homes,Aspects &  Milestones Trust,4814.6, 21-Feb-2012
171,Revenue,CCHD,S28A - Over 65 South,Residential Homes,Aspects &  Milestones Trust,5200, 21-Feb-2012
172,Revenue,CCHD,S28A - Over 65 South,Residential Homes,Aspects &  Milestones Trust,4837.04, 21-Feb-2012
173,Revenue,CCHD,S28A - Under 65 South,Residential Homes,Aspects &  Milestones Trust,4667.44, 21-Feb-2012
174,Revenue,CCHD,S28A - Under 65 South,Residential Homes,Aspects &  Milestones Trust,6036, 21-Feb-2012
175,Revenue,CCHD,S28A - Over 65 South,Residential Homes,Aspects &  Milestones Trust,5538.72, 21-Feb-2012
176,Revenue,CCHD,S28A - Under 65 South,Residential Homes,Aspects &  Milestones Trust,3422.8, 21-Feb-2012
177,Revenue,CCHD,S28A - Over 65 South,Residential Homes,Aspects &  Milestones Trust,3230.96, 21-Feb-2012
178,Revenue,CCHD,S28A - Over 65 South,Residential Homes,Aspects &  Milestones Trust,3366.4, 21-Feb-2012
179,Revenue,CCHD,S28A - Over 65 South,Residential Homes,Aspects &  Milestones Trust,3161.2, 21-Feb-2012
180,Revenue,CCHD,Under 65s PWLD - KH,Residential Homes,Aspects &  Milestones Trust,7047.48, 21-Feb-2012
181,Revenue,CCHD,Section 117 Placements North,Residential Homes,Aspects &  Milestones Trust,1913.04, 21-Feb-2012
182,Revenue,CCHD,Elderly Mental Health North,Nursing Homes,Aspects &  Milestones Trust,1323.08, 21-Feb-2012
183,Revenue,CCHD,Under 65s PWLD - KD,Residential Homes,Aspects &  Milestones Trust,6036, 21-Feb-2012
184,Revenue,CCHD,MH Purchasing - Younger,Nursing Homes,Aspects &  Milestones Trust,908.88, 21-Feb-2012
185,Revenue,CCHD,MH Purchasing - Younger,Nursing Homes,Aspects &  Milestones Trust,1097, 21-Feb-2012
186,Revenue,CCHD,MH Purchasing - Younger,Residential Homes,Aspects &  Milestones Trust,1009, 21-Feb-2012
187,Revenue,CCHD,Elderly PWLD - PS,Residential Homes,Aspects &  Milestones Trust,3353.52, 21-Feb-2012
188,Revenue,CCHD,Section 117 Placements MH Younger,Nursing Homes,Aspects &  Milestones Trust,1392, 21-Feb-2012
189,Revenue,CCHD,S28A - Under 65 South,Residential Homes,Aspects &  Milestones Trust,4796.24, 21-Feb-2012
190,Revenue,CCHD,S28A - Over 65 South,Residential Homes,Aspects &  Milestones Trust,4562.12, 21-Feb-2012
191,Revenue,CCHD,Under 65s PWLD - KH,Residential Homes,Aspects &  Milestones Trust,4115.4, 21-Feb-2012
192,Revenue,CCHD,S28A - Over 65 South,Residential Homes,Aspects &  Milestones Trust,4037.96, 21-Feb-2012
193,Revenue,CCHD,S28A - Over 65 South,Residential Homes,Aspects &  Milestones Trust,3748.88, 21-Feb-2012
194,Revenue,CCHD,S28A - Over 65 South,Residential Homes,Aspects &  Milestones Trust,5810.64, 21-Feb-2012
195,Revenue,CCHD,S28A - Over 65 South,Residential Homes,Aspects &  Milestones Trust,4409.28, 21-Feb-2012
196,Revenue,CCHD,S28A - Over 65 South,Residential Homes,Aspects &  Milestones Trust,3917.36, 21-Feb-2012
197,Revenue,CCHD,S28A - Over 65 South,Residential Homes,Aspects &  Milestones Trust,4343.92, 21-Feb-2012
198,Revenue,CCHD,S28A - Over 65 South,Residential Homes,Aspects &  Milestones Trust,5080.6, 21-Feb-2012
199,Revenue,CCHD,Elderly Mental Health North,Residential Homes,Aspects &  Milestones Trust,1214, 21-Feb-2012
200,Revenue,CCHD,S28A - Over 65 South,Residential Homes,Aspects &  Milestones Trust,4693.88, 21-Feb-2012
201,Revenue,CCHD,S28A - Under 65 South,Residential Homes,Aspects &  Milestones Trust,5336.24, 21-Feb-2012
202,Revenue,CCHD,Section 117 Placements North,Nursing Homes,Aspects &  Milestones Trust,1912, 21-Feb-2012
203,Revenue,CCHD,Section 117 Placements North,Nursing Homes,Aspects &  Milestones Trust,1912, 21-Feb-2012
204,Revenue,CCHD,Section 117 Placements North,Residential Homes,Aspects &  Milestones Trust,1304, 21-Feb-2012
205,Revenue,CCHD,Under 65s PWLD - KD,Residential Homes,Aspects & Milestones Trust,8708.64, 21-Feb-2012
206,Revenue,CCHD,Supporting People Programme,Grants to Voluntary Bodies,Aspects and Milestones Trust,1426.32, 22-Feb-2012
207,Revenue,CCHD,Supporting People Programme,Grants to Voluntary Bodies,Aspects and Milestones Trust,1737.24, 22-Feb-2012
208,Revenue,CCHD,Supporting People Programme,Grants to Voluntary Bodies,Aspects and Milestones Trust,2087.72, 22-Feb-2012
209,Revenue,CCHD,Supporting People Programme,Grants to Voluntary Bodies,Aspects and Milestones Trust,2783.52, 22-Feb-2012
210,Revenue,CCHD,Supporting People Programme,Grants to Voluntary Bodies,Aspects and Milestones Trust,2844.96, 22-Feb-2012
211,Revenue,CCHD,Supporting People Programme,Grants to Voluntary Bodies,Aspects and Milestones Trust,3996.4, 22-Feb-2012
212,Revenue,CCHD,Purchase of Non-Res Care - KH,Private & Voluntary Day Care,Aspirations Support Bristol Limited,2434.8, 17-Feb-2012
213,Revenue,CCHD,Purchase of Non-Res Care - KH,Private & Voluntary Day Care,Aspirations Support Bristol Limited,2434.8, 17-Feb-2012
214,Revenue,CCHD,Under 65s PWLD - KH,Residential Homes,Autism Specialised Care Homes,5425.76, 21-Feb-2012
215,Revenue,CCHD,Purchase of Non-Res Care - KD,Private & Voluntary Day Care,Avon Autistic Foundation Limited,2802.6, 23-Feb-2012
216,Revenue,CCHD,Purchase of Non-Res Care - KD,Private & Voluntary Day Care,Avon Autistic Foundation Limited,4113.3, 23-Feb-2012
217,Revenue,CCHD,Frenchay Hospital Purchasing,Residential Homes,Beaufort House,670.32, 21-Feb-2012
218,Revenue,CCHD,Elderly Mental Health North,Residential Homes,Beaufort House,1399.92, 21-Feb-2012
219,Revenue,CCHD,Southmead Hospital Purchasing,Residential Homes,Beaufort House,1545, 21-Feb-2012
220,Revenue,CCHD,Southmead Hospital Purchasing,Residential Homes,Beaufort House,1641, 21-Feb-2012
221,Revenue,CCHD,Frenchay Hospital Purchasing,Residential Homes,Beaufort House,1258.76, 21-Feb-2012
222,Revenue,CCHD,Elderly Mental Health North,Residential Homes,Beaufort House,1288.32, 21-Feb-2012
223,Revenue,CCHD,Elderly Mental Health North,Residential Homes,Beaufort House,1307.68, 21-Feb-2012
224,Revenue,CCHD,Elderly Mental Health North,Residential Homes,Beaufort House,626.42, 21-Feb-2012
225,Revenue,CCHD,Elderly Purchasing - North,Residential Homes,Beaufort House,1670.64, 21-Feb-2012
226,Revenue,CCHD,Elderly Mental Health North,Residential Homes,Beaufort House,1032.16, 21-Feb-2012
227,Revenue,CCHD,Elderly Mental Health North,Residential Homes,Beaufort House,1654.92, 21-Feb-2012
228,Revenue,CCHD,Elderly PWLD - KH,Residential Homes,Bedrock Lodge,2821.28, 21-Feb-2012
229,Revenue,CCHD,Section 117 Placements MH Younger,Residential Homes,Bedrock Lodge,1790.12, 21-Feb-2012
230,Revenue,CCHD,Elderly Purchasing - North,Residential Homes,Beech House Nursing Home,2600, 14-Feb-2012
231,Revenue,CCHD,Elderly Purchasing - North,Residential Homes,Beech House Nursing Home,1300, 21-Feb-2012
232,Revenue,CCHD,Under 65s PWLD - KD,Residential Homes,Beechwood Residential College,19747.64, 21-Feb-2012
233,Revenue,CCHD,Frenchay Hospital Purchasing,Residential Homes,Blossom Field,751.52, 21-Feb-2012
234,Revenue,CCHD,South Glos Users in South Glos Homes,Nursing Homes,Blossom Field,683.26, 21-Feb-2012
235,Revenue,CCHD,South Glos Users in South Glos Homes,Nursing Homes,Blossom Field,1739.2, 21-Feb-2012
236,Revenue,CCHD,South Glos Users in South Glos Homes,Nursing Homes,Blossom Field,931.71, 21-Feb-2012
237,Revenue,CCHD,Elderly Mental Health North,Nursing Homes,Blossom Field,1378.68, 21-Feb-2012
238,Revenue,CCHD,South Glos Users in South Glos Homes,Nursing Homes,Blossom Field,527.97, 21-Feb-2012
239,Revenue,CCHD,Elderly PWLD - KD,Nursing Homes,Blossom Field,4230.69, 21-Feb-2012
240,Revenue,CCHD,Elderly Purchasing - South,Nursing Homes,Blossom Fields,506.55, 17-Feb-2012
241,Revenue,CCHD,Elderly Purchasing - North,Nursing Homes,Blossom Fields,6677.13, 17-Feb-2012
242,Revenue,CCHD,South Glos Users in South Glos Homes,Nursing Homes,Blossom Fields,2469.04, 17-Feb-2012
243,Revenue,CCHD,Elderly Mental Health North,Nursing Homes,Blossom Fields,1545.52, 17-Feb-2012
244,Revenue,CCHD,Training - Adult Services,Training Expenses,Bob Dawson,1370, 15-Feb-2012
245,Revenue,CCHD,Frenchay Hospital Purchasing,Nursing Homes,Bradbury House,1350.32, 21-Feb-2012
246,Revenue,CCHD,Home Care Purch South,Other Small Contracts,Bradley House Home Care Services,86.1, 16-Feb-2012
247,Revenue,CCHD,Home Care Purch North,Other Small Contracts,Bradley House Home Care Services,1353, 16-Feb-2012
248,Revenue,CCHD,Day Care - South,Private & Voluntary Day Care,Bradley House Home Care Services,8.2, 16-Feb-2012
249,Revenue,CCHD,Day Care - North,Private & Voluntary Day Care,Bradley House Home Care Services,131.2, 16-Feb-2012
250,Revenue,CCHD,Younger MH non-res purchasing,Private & Voluntary Day Care,Bradley House Home Care Services,65.6, 16-Feb-2012
251,Revenue,CCHD,Home Care Purch South,Other Small Contracts,Bradley House Home Care Services,82, 28-Feb-2012
252,Revenue,CCHD,Home Care Purch North,Other Small Contracts,Bradley House Home Care Services,1353, 28-Feb-2012
253,Revenue,CCHD,Day Care - South,Private & Voluntary Day Care,Bradley House Home Care Services,45.1, 28-Feb-2012
254,Revenue,CCHD,Day Care - North,Private & Voluntary Day Care,Bradley House Home Care Services,131.2, 28-Feb-2012
255,Revenue,CCHD,Younger MH non-res purchasing,Private & Voluntary Day Care,Bradley House Home Care Services,45.1, 28-Feb-2012
256,Revenue,CCHD,Home Care Purch South,Other Small Contracts,Bradley House Home Care Services,86.1, 02-Feb-2012
257,Revenue,CCHD,Home Care Purch North,Other Small Contracts,Bradley House Home Care Services,1389.9, 02-Feb-2012
258,Revenue,CCHD,Day Care - South,Private & Voluntary Day Care,Bradley House Home Care Services,49.2, 02-Feb-2012
259,Revenue,CCHD,Day Care - North,Private & Voluntary Day Care,Bradley House Home Care Services,131.2, 02-Feb-2012
260,Revenue,CCHD,Younger MH non-res purchasing,Private & Voluntary Day Care,Bradley House Home Care Services,65.6, 02-Feb-2012
261,Revenue,CCHD,Home Care Purch South,Other Small Contracts,Bradley House Home Care Services,86.1, 14-Feb-2012
262,Revenue,CCHD,Home Care Purch North,Other Small Contracts,Bradley House Home Care Services,1369.4, 14-Feb-2012
263,Revenue,CCHD,Day Care - South,Private & Voluntary Day Care,Bradley House Home Care Services,49.2, 14-Feb-2012
264,Revenue,CCHD,Day Care - North,Private & Voluntary Day Care,Bradley House Home Care Services,131.2, 14-Feb-2012
265,Revenue,CCHD,Younger MH non-res purchasing,Private & Voluntary Day Care,Bradley House Home Care Services,61.5, 14-Feb-2012
266,Revenue,CCHD,Alexandra Way,"Provisions (Food, etc)",Brake Bros,503.94, 10-Feb-2012
267,Revenue,CCHD,Woodleaze,"Provisions (Food, etc)",Brake Bros,503.17, 23-Feb-2012
268,Revenue,CCHD,Elderly Purchasing - North,Residential Homes,Bridge House Care Home,1232.6, 21-Feb-2012
269,Revenue,CCHD,Elderly Purchasing - South,Residential Homes,Bridge House Care Home,1074.32, 21-Feb-2012
270,Revenue,CCHD,Elderly Purchasing - North,Residential Homes,Bridge House Care Home,1029.16, 21-Feb-2012
271,Revenue,CCHD,Elderly Mental Health North,Residential Homes,Brightbow,2487.2, 21-Feb-2012
272,Revenue,CCHD,MH Purchasing - Younger,Residential Homes,Brightbow,904.84, 21-Feb-2012
273,Revenue,CCHD,Supporting People Programme,Grants to Voluntary Bodies,Bristol Care & Repair,9431.51, 24-Feb-2012
274,Revenue,CCHD,Supported Living - KD,Private & Voluntary Home Care,Bristol Houses UK Ltd,1166.2, 13-Feb-2012
275,Revenue,CCHD,Supported Living - KD,Private & Voluntary Home Care,Bristol Houses UK Ltd,1003.28, 13-Feb-2012
276,Revenue,CCHD,Supported Living - KD,Private & Voluntary Home Care,Bristol Houses UK Ltd,1997.98, 13-Feb-2012
277,Revenue,CCHD,Day Care - North,Private & Voluntary Day Care,Bristol Houses UK Ltd,1534.59, 14-Feb-2012
278,Revenue,CCHD,Supported Living - KD,Private & Voluntary Home Care,Bristol Houses UK Ltd,964.69, 13-Feb-2012
279,Revenue,CCHD,Supported Living - KD,Private & Voluntary Home Care,Bristol Houses UK Ltd,590, 23-Feb-2012
280,Revenue,CCHD,Supported Living - KD,Private & Voluntary Home Care,Bristol Houses UK Ltd,944, 23-Feb-2012
281,Revenue,CCHD,Younger MH non-res purchasing,Private & Voluntary Day Care,Bristol Houses UK Ltd,1062, 29-Feb-2012
282,Revenue,CCHD,Day Care - North,Private & Voluntary Day Care,Bristol Houses UK Ltd,2864.05, 14-Feb-2012
283,Revenue,CCHD,Supported Living - KD,Private & Voluntary Home Care,Bristol Houses UK Ltd,590, 13-Feb-2012
284,Revenue,CCHD,Bed and Breakfast,Bed & Breakfast,Bristol Housing & Support Limited,784, 01-Feb-2012
285,Revenue,CCHD,Bed and Breakfast,Bed & Breakfast,Bristol Housing & Support Limited,952, 01-Feb-2012
286,Revenue,CCHD,Bed and Breakfast,Bed & Breakfast,Bristol Housing & Support Limited,800, 08-Feb-2012
287,Revenue,CCHD,Bed and Breakfast,Bed & Breakfast,Bristol Housing & Support Limited,784, 13-Feb-2012
288,Revenue,CCHD,Bed and Breakfast,Bed & Breakfast,Bristol Housing & Support Limited,1120, 20-Feb-2012
289,Revenue,CCHD,Bed and Breakfast,Bed & Breakfast,Bristol Housing & Support Limited,1120, 27-Feb-2012
290,Revenue,CCHD,Woodleaze,Water Charges,Bristol Wessex Billing Services Limited,4072.27, 22-Feb-2012
291,Revenue,CCHD,Newton House,Water Charges,Bristol Wessex Billing Services Limited,3477.62, 06-Feb-2012
292,Revenue,CCHD,Training - Adult Services,Training Expenses,British Red Cross,516, 29-Feb-2012
293,Revenue,CCHD,Section 117 Placements North,Residential Homes,Brockley Court Care Home,1788, 21-Feb-2012
294,Revenue,CCHD,Supporting People Programme,Grants to Voluntary Bodies,Bromford Housing Group,12821.2, 24-Feb-2012
295,Revenue,CCHD,Elderly Purchasing - North,Residential Homes,Brook Lane Residential Home,886.4, 21-Feb-2012
296,Revenue,CCHD,South Glos Users in South Glos Homes,Nursing Homes,Brunel Care,3882.14, 21-Feb-2012
297,Revenue,CCHD,Southmead Hospital Purchasing,Residential Homes,Brunel Care,1237.12, 21-Feb-2012
298,Revenue,CCHD,South Glos Users in South Glos Homes,Nursing Homes,Brunel Care,978.3, 21-Feb-2012
299,Revenue,CCHD,Southmead Hospital Purchasing,Residential Homes,Brunel Care,1300.32, 21-Feb-2012
300,Revenue,CCHD,Elderly Purchasing - South,Residential Homes,Brunel Care,1120.5, 21-Feb-2012
301,Revenue,CCHD,Elderly Purchasing - South,Nursing Homes,Brunel Care,1120.5, 21-Feb-2012
302,Revenue,CCHD,Home Care Purch North,Private & Voluntary Home Care,Brunelcare,6720, 06-Feb-2012
303,Revenue,CCHD,Home Care Purch North,Private & Voluntary Home Care,Brunelcare,6720, 13-Feb-2012
304,Revenue,CCHD,Home Care Purch North,Private & Voluntary Home Care,Brunelcare,6720, 20-Feb-2012
305,Revenue,CCHD,Home Care Purch North,Private & Voluntary Home Care,Brunelcare,6720, 27-Feb-2012
306,Revenue,CCHD,Elderly Purchasing - South,Nursing Homes,Brunelcare,10194.04, 24-Feb-2012
307,Revenue,CCHD,Elderly Purchasing - North,Nursing Homes,Brunelcare,3148.27, 24-Feb-2012
308,Revenue,CCHD,Frenchay Hospital Purchasing,Nursing Homes,Brunelcare,1465.64, 24-Feb-2012
309,Revenue,CCHD,Southmead Hospital Purchasing,Nursing Homes,Brunelcare,6466.22, 24-Feb-2012
310,Revenue,CCHD,South Glos Users in South Glos Homes,Nursing Homes,Brunelcare,9860.64, 24-Feb-2012
311,Revenue,CCHD,Elderly Mental Health North,Nursing Homes,Brunelcare,12076.49, 24-Feb-2012
312,Revenue,CCHD,Section 117 Placements North,Nursing Homes,Brunelcare,6687.59, 24-Feb-2012
313,Revenue,CCHD,Elderly MH Day Care North,Private & Voluntary Day Care,Brunelcare,602.8, 10-Feb-2012
314,Revenue,CCHD,Home Care Purch South,Other Small Contracts,Brunelcare,2595.41, 14-Feb-2012
315,Revenue,CCHD,Home Care Purch North,Other Small Contracts,Brunelcare,5344.02, 14-Feb-2012
316,Revenue,CCHD,Day Care - South,Private & Voluntary Day Care,Brunelcare,118.8, 14-Feb-2012
317,Revenue,CCHD,Day Care - North,Private & Voluntary Day Care,Brunelcare,607.63, 14-Feb-2012
318,Revenue,CCHD,Carer`s Grant - North,Carers Breaks & Services,Brunelcare,7.92, 14-Feb-2012
319,Revenue,CCHD,Elderly MH Home Care North,Other Small Contracts,Brunelcare,594, 14-Feb-2012
320,Revenue,CCHD,Elderly MH Day Care North,Private & Voluntary Day Care,Brunelcare,352.65, 14-Feb-2012
321,Revenue,CCHD,Home Care Purch South,Other Small Contracts,Brunelcare,2809.15, 14-Feb-2012
322,Revenue,CCHD,Home Care Purch North,Other Small Contracts,Brunelcare,5488.56, 14-Feb-2012
323,Revenue,CCHD,Day Care - South,Private & Voluntary Day Care,Brunelcare,170.28, 14-Feb-2012
324,Revenue,CCHD,Day Care - North,Private & Voluntary Day Care,Brunelcare,71.28, 14-Feb-2012
325,Revenue,CCHD,Carer`s Grant - North,Carers Breaks & Services,Brunelcare,23.76, 14-Feb-2012
326,Revenue,CCHD,Elderly MH Home Care North,Other Small Contracts,Brunelcare,625.68, 14-Feb-2012
327,Revenue,CCHD,Elderly MH Day Care North,Private & Voluntary Day Care,Brunelcare,522.72, 14-Feb-2012
328,Revenue,CCHD,Home Care Purch South,Other Small Contracts,Brunelcare,2725.83, 10-Feb-2012
329,Revenue,CCHD,Home Care Purch North,Other Small Contracts,Brunelcare,5504.4, 10-Feb-2012
330,Revenue,CCHD,Day Care - South,Private & Voluntary Day Care,Brunelcare,166.32, 10-Feb-2012
331,Revenue,CCHD,Day Care - North,Private & Voluntary Day Care,Brunelcare,71.28, 10-Feb-2012
332,Revenue,CCHD,Carer`s Grant - North,Carers Breaks & Services,Brunelcare,11.88, 10-Feb-2012
333,Revenue,CCHD,Elderly MH Home Care North,Other Small Contracts,Brunelcare,685.08, 10-Feb-2012
334,Revenue,CCHD,Elderly MH Day Care North,Private & Voluntary Day Care,Brunelcare,483.12, 10-Feb-2012
335,Revenue,CCHD,Home Care Purch South,Other Small Contracts,Brunelcare,2880.43, 10-Feb-2012
336,Revenue,CCHD,Home Care Purch North,Other Small Contracts,Brunelcare,5207.4, 10-Feb-2012
337,Revenue,CCHD,Day Care - South,Private & Voluntary Day Care,Brunelcare,166.32, 10-Feb-2012
338,Revenue,CCHD,Day Care - North,Private & Voluntary Day Care,Brunelcare,71.28, 10-Feb-2012
339,Revenue,CCHD,Carer`s Grant - North,Carers Breaks & Services,Brunelcare,11.88, 10-Feb-2012
340,Revenue,CCHD,Elderly MH Home Care North,Other Small Contracts,Brunelcare,677.16, 10-Feb-2012
341,Revenue,CCHD,Elderly MH Day Care North,Private & Voluntary Day Care,Brunelcare,498.96, 10-Feb-2012
342,Revenue,CCHD,Home Care Purch South,Other Small Contracts,Brunelcare,3038.93, 28-Feb-2012
343,Revenue,CCHD,Home Care Purch North,Other Small Contracts,Brunelcare,5468.76, 28-Feb-2012
344,Revenue,CCHD,Day Care - South,Private & Voluntary Day Care,Brunelcare,178.2, 28-Feb-2012
345,Revenue,CCHD,Day Care - North,Private & Voluntary Day Care,Brunelcare,71.28, 28-Feb-2012
346,Revenue,CCHD,Carer`s Grant - North,Carers Breaks & Services,Brunelcare,15.84, 28-Feb-2012
347,Revenue,CCHD,Elderly MH Home Care North,Other Small Contracts,Brunelcare,657.36, 28-Feb-2012
348,Revenue,CCHD,Elderly MH Day Care North,Private & Voluntary Day Care,Brunelcare,510.84, 28-Feb-2012
349,Revenue,CCHD,Information Systems - Software,Computer Equipment - Purchase,BT Global Services Solutions,759.31, 15-Feb-2012
350,Revenue,CCHD,Woodleaze,Cleaning & Domestic Supplies,Bunzl Cleaning & Hygiene Supplies,721.35, 22-Feb-2012
351,Revenue,CCHD,Purchasing Phys Dis - North,Nursing Homes,Bupa Care Services  Bridge House,5700.16, 21-Feb-2012
352,Revenue,CCHD,South Glos Users in all other LA Homes,Nursing Homes,Bupa Care Services  Bridge House,598.4, 21-Feb-2012
353,Revenue,CCHD,Woodleaze,Prop.Serv. General Repairs,C B Decorators,1431, 08-Feb-2012
354,Revenue,CCHD,Supported Living - KH,Private & Voluntary Home Care,Camphill Communities Thornbury Limited,1707.72, 20-Feb-2012
355,Revenue,CCHD,Supported Living - KD,Private & Voluntary Home Care,Camphill Communities Thornbury Limited,2231.64, 06-Feb-2012
356,Revenue,CCHD,Supported Living - KD,Private & Voluntary Home Care,Camphill Communities Thornbury Limited,1996.72, 06-Feb-2012
357,Revenue,CCHD,Supported Living - KD,Private & Voluntary Home Care,Camphill Communities Thornbury Limited,2211.36, 06-Feb-2012
358,Revenue,CCHD,Supported Living - KD,Private & Voluntary Home Care,Camphill Communities Thornbury Limited,1964.32, 06-Feb-2012
359,Revenue,CCHD,Supported Living - KD,Private & Voluntary Home Care,Camphill Communities Thornbury Limited,2077.72, 10-Feb-2012
360,Revenue,CCHD,Supported Living - KD,Private & Voluntary Home Care,Camphill Communities Thornbury Limited,1017.22, 10-Feb-2012
361,Revenue,CCHD,Supported Living - KD,Private & Voluntary Home Care,Camphill Communities Thornbury Limited,1964.32, 13-Feb-2012
362,Revenue,CCHD,Supported Living - KD,Private & Voluntary Home Care,Camphill Communities Thornbury Limited,2179.44, 13-Feb-2012
363,Revenue,CCHD,Supported Living - KD,Private & Voluntary Home Care,Camphill Communities Thornbury Limited,1017.22, 27-Feb-2012
364,Revenue,CCHD,Supported Living - KH,Private & Voluntary Home Care,Camphill Communities Thornbury Limited,1707.72, 24-Feb-2012
365,Revenue,CCHD,Under 65s PWLD - KD,Residential Homes,Camphill Devon Community,3143.88, 21-Feb-2012
366,Revenue,CCHD,Under 65s PWLD - KD,Residential Homes,Camphill Devon Community,2208.44, 21-Feb-2012
367,Revenue,CCHD,Home Care Purch South,Other Small Contracts,Care 1st Homecare,3741.2, 03-Feb-2012
368,Revenue,CCHD,Home Care Purch North,Other Small Contracts,Care 1st Homecare,4429.74, 03-Feb-2012
369,Revenue,CCHD,Day Care - South,Private & Voluntary Day Care,Care 1st Homecare,222.88, 03-Feb-2012
370,Revenue,CCHD,Day Care - North,Private & Voluntary Day Care,Care 1st Homecare,342.28, 03-Feb-2012
371,Revenue,CCHD,Elderly MH Home Care North,Other Small Contracts,Care 1st Homecare,83.58, 03-Feb-2012
372,Revenue,CCHD,PWLD Home Care - Under 65 - PS,Private & Voluntary Home Care,Care 1st Homecare,31.84, 03-Feb-2012
373,Revenue,CCHD,PWLD Home Care - Under 65 - KH,Private & Voluntary Home Care,Care 1st Homecare,151.24, 03-Feb-2012
374,Revenue,CCHD,Home Care Purch South,Other Small Contracts,Care 1st Homecare,3418.82, 03-Feb-2012
375,Revenue,CCHD,Home Care Purch North,Other Small Contracts,Care 1st Homecare,4159.1, 03-Feb-2012
376,Revenue,CCHD,Day Care - South,Private & Voluntary Day Care,Care 1st Homecare,246.76, 03-Feb-2012
377,Revenue,CCHD,Day Care - North,Private & Voluntary Day Care,Care 1st Homecare,246.76, 03-Feb-2012
378,Revenue,CCHD,Elderly MH Home Care North,Other Small Contracts,Care 1st Homecare,119.4, 03-Feb-2012
379,Revenue,CCHD,PWLD Home Care - Under 65 - PS,Private & Voluntary Home Care,Care 1st Homecare,31.84, 03-Feb-2012
380,Revenue,CCHD,PWLD Home Care - Under 65 - KH,Private & Voluntary Home Care,Care 1st Homecare,167.16, 03-Feb-2012
381,Revenue,CCHD,Home Care Purch South,Other Small Contracts,Care 1st Homecare,3566.08, 03-Feb-2012
382,Revenue,CCHD,Home Care Purch North,Other Small Contracts,Care 1st Homecare,4190.94, 03-Feb-2012
383,Revenue,CCHD,Day Care - South,Private & Voluntary Day Care,Care 1st Homecare,191.04, 03-Feb-2012
384,Revenue,CCHD,Day Care - North,Private & Voluntary Day Care,Care 1st Homecare,318.4, 03-Feb-2012
385,Revenue,CCHD,Elderly MH Home Care North,Other Small Contracts,Care 1st Homecare,163.18, 03-Feb-2012
386,Revenue,CCHD,PWLD Home Care - Under 65 - PS,Private & Voluntary Home Care,Care 1st Homecare,31.84, 03-Feb-2012
387,Revenue,CCHD,PWLD Home Care - Under 65 - KH,Private & Voluntary Home Care,Care 1st Homecare,167.16, 03-Feb-2012
388,Revenue,CCHD,Home Care Purch South,Other Small Contracts,Care 1st Homecare,3327.28, 16-Feb-2012
389,Revenue,CCHD,Home Care Purch North,Other Small Contracts,Care 1st Homecare,4270.54, 16-Feb-2012
390,Revenue,CCHD,Day Care - South,Private & Voluntary Day Care,Care 1st Homecare,226.86, 16-Feb-2012
391,Revenue,CCHD,Day Care - North,Private & Voluntary Day Care,Care 1st Homecare,398, 16-Feb-2012
392,Revenue,CCHD,Elderly MH Home Care North,Other Small Contracts,Care 1st Homecare,250.74, 16-Feb-2012
393,Revenue,CCHD,PWLD Home Care - Under 65 - PS,Private & Voluntary Home Care,Care 1st Homecare,31.84, 16-Feb-2012
394,Revenue,CCHD,PWLD Home Care - Under 65 - KH,Private & Voluntary Home Care,Care 1st Homecare,167.16, 16-Feb-2012
395,Revenue,CCHD,Home Care Purch South,Other Small Contracts,Care 1st Homecare,3430.76, 16-Feb-2012
396,Revenue,CCHD,Home Care Purch North,Other Small Contracts,Care 1st Homecare,4083.48, 16-Feb-2012
397,Revenue,CCHD,Day Care - South,Private & Voluntary Day Care,Care 1st Homecare,222.88, 16-Feb-2012
398,Revenue,CCHD,Day Care - North,Private & Voluntary Day Care,Care 1st Homecare,358.2, 16-Feb-2012
399,Revenue,CCHD,Elderly MH Home Care North,Other Small Contracts,Care 1st Homecare,258.7, 16-Feb-2012
400,Revenue,CCHD,PWLD Home Care - Under 65 - PS,Private & Voluntary Home Care,Care 1st Homecare,31.84, 16-Feb-2012
401,Revenue,CCHD,PWLD Home Care - Under 65 - KH,Private & Voluntary Home Care,Care 1st Homecare,71.64, 16-Feb-2012
402,Revenue,CCHD,Home Care Purch South,Other Small Contracts,Care 1st Homecare,3454.64, 17-Feb-2012
403,Revenue,CCHD,Home Care Purch North,Other Small Contracts,Care 1st Homecare,4465.56, 17-Feb-2012
404,Revenue,CCHD,Day Care - South,Private & Voluntary Day Care,Care 1st Homecare,175.12, 17-Feb-2012
405,Revenue,CCHD,Day Care - North,Private & Voluntary Day Care,Care 1st Homecare,394.02, 17-Feb-2012
406,Revenue,CCHD,Elderly MH Home Care North,Other Small Contracts,Care 1st Homecare,266.66, 17-Feb-2012
407,Revenue,CCHD,PWLD Home Care - Under 65 - PS,Private & Voluntary Home Care,Care 1st Homecare,31.84, 17-Feb-2012
408,Revenue,CCHD,PWLD Home Care - Under 65 - KH,Private & Voluntary Home Care,Care 1st Homecare,167.16, 17-Feb-2012
409,Revenue,CCHD,PWLD S 117 Placements,Residential Homes,Care Community Limited,7341.4, 22-Feb-2012
410,Revenue,CCHD,Purchase of Non-Res Care - KD,Private & Voluntary Day Care,Care Horizons Limited,1149.72, 03-Feb-2012
411,Revenue,CCHD,Supported Living - KH,Private & Voluntary Home Care,Care Horizons Limited,1518.67, 20-Feb-2012
412,Revenue,CCHD,Purchase of Non-Res Care - KD,Private & Voluntary Day Care,Care Horizons Limited,1154.93, 03-Feb-2012
413,Revenue,CCHD,Purchase of Non-Res Care - KD,Private & Voluntary Day Care,Care Horizons Limited,1041.91, 02-Feb-2012
414,Revenue,CCHD,Purchase of Non-Res Care - KD,Private & Voluntary Day Care,Care Horizons Limited,746.03, 27-Feb-2012
415,Revenue,CCHD,Purchase of Non-Res Care - KD,Private & Voluntary Day Care,Care Horizons Limited,1414.36, 02-Feb-2012
416,Revenue,CCHD,Supported Living - KD,Private & Voluntary Home Care,Care Horizons Limited,859.53, 03-Feb-2012
417,Revenue,CCHD,Supported Living - KD,Private & Voluntary Home Care,Care Horizons Limited,5234.74, 06-Feb-2012
418,Revenue,CCHD,Supported Living - KD,Private & Voluntary Home Care,Care Horizons Limited,5314.15, 24-Feb-2012
419,Revenue,CCHD,Purchase of Non-Res Care - KD,Private & Voluntary Day Care,Care Horizons Limited,1314.32, 24-Feb-2012
420,Revenue,CCHD,Purchase of Non-Res Care - KD,Private & Voluntary Day Care,Care Horizons Limited,1166.15, 27-Feb-2012
421,Revenue,CCHD,Purchase of Non-Res Care - KD,Private & Voluntary Day Care,Care Horizons Limited,1407.99, 27-Feb-2012
422,Revenue,CCHD,Supported Living - KH,Private & Voluntary Home Care,Care Horizons Limited,1814.9, 20-Feb-2012
423,Revenue,CCHD,Purchase of Non-Res Care - KD,Private & Voluntary Day Care,Care Horizons Limited,1261.83, 24-Feb-2012
424,Revenue,CCHD,Purchase of Non-Res Care - KD,Private & Voluntary Day Care,Care Horizons Limited,882.03, 24-Feb-2012
425,Revenue,CCHD,Electronic Home Care Monitoring,Other Supplies & Services,Care Monitoring 2000 Limited,5039.6, 02-Feb-2012
426,Revenue,CCHD,Home Care - General,Other Supplies & Services,Care Monitoring 2000 Limited,7024.1, 02-Feb-2012
427,Revenue,CCHD,Electronic Home Care Monitoring,Other Supplies & Services,Care Monitoring 2000 Limited,5236.9, 15-Feb-2012
428,Revenue,CCHD,Home Care - General,Other Supplies & Services,Care Monitoring 2000 Limited,6996.3, 15-Feb-2012
429,Revenue,CCHD,Electronic Home Care Monitoring,Other Supplies & Services,Care Monitoring 2000 Limited,6950, 24-Feb-2012
430,Revenue,CCHD,Day Care - North,Private & Voluntary Day Care,Care UK,511.49, 09-Feb-2012
431,Revenue,CCHD,Home Care Purch North,Other Small Contracts,Care UK,536.68, 09-Feb-2012
432,Revenue,CCHD,Home Care Purch South,Other Small Contracts,Care UK,1718.36, 03-Feb-2012
433,Revenue,CCHD,Home Care Purch South,Other Small Contracts,Care UK,658.28, 09-Feb-2012
434,Revenue,CCHD,Home Care Purch South,Other Small Contracts,Care UK,578.49, 09-Feb-2012
435,Revenue,CCHD,Home Care Purch South,Other Small Contracts,Care UK,8956.35, 06-Feb-2012
436,Revenue,CCHD,Home Care Purch North,Other Small Contracts,Care UK,5066.25, 06-Feb-2012
437,Revenue,CCHD,Day Care - South,Private & Voluntary Day Care,Care UK,266.25, 06-Feb-2012
438,Revenue,CCHD,Day Care - North,Private & Voluntary Day Care,Care UK,922.5, 06-Feb-2012
439,Revenue,CCHD,Elderly MH Home Care North,Other Small Contracts,Care UK,817.5, 06-Feb-2012
440,Revenue,CCHD,Elderly MH Day Care North,Private & Voluntary Day Care,Care UK,180, 06-Feb-2012
441,Revenue,CCHD,Home Care Purch South,Other Small Contracts,Care UK,8817.6, 06-Feb-2012
442,Revenue,CCHD,Home Care Purch North,Other Small Contracts,Care UK,4812, 06-Feb-2012
443,Revenue,CCHD,Day Care - South,Private & Voluntary Day Care,Care UK,352.5, 06-Feb-2012
444,Revenue,CCHD,Day Care - North,Private & Voluntary Day Care,Care UK,862.5, 06-Feb-2012
445,Revenue,CCHD,Elderly MH Home Care North,Other Small Contracts,Care UK,1207.5, 06-Feb-2012
446,Revenue,CCHD,Elderly MH Day Care North,Private & Voluntary Day Care,Care UK,138.75, 06-Feb-2012
447,Revenue,CCHD,Home Care Purch South,Other Small Contracts,Care UK,9170.1, 06-Feb-2012
448,Revenue,CCHD,Home Care Purch North,Other Small Contracts,Care UK,4962.9, 06-Feb-2012
449,Revenue,CCHD,Day Care - South,Private & Voluntary Day Care,Care UK,412.5, 06-Feb-2012
450,Revenue,CCHD,Day Care - North,Private & Voluntary Day Care,Care UK,712.5, 06-Feb-2012
451,Revenue,CCHD,Elderly MH Home Care North,Other Small Contracts,Care UK,1181.25, 06-Feb-2012
452,Revenue,CCHD,Elderly MH Day Care North,Private & Voluntary Day Care,Care UK,221.25, 06-Feb-2012
453,Revenue,CCHD,Home Care Purch South,Other Small Contracts,Care UK,8300.44, 06-Feb-2012
454,Revenue,CCHD,Home Care Purch North,Other Small Contracts,Care UK,4743.75, 06-Feb-2012
455,Revenue,CCHD,Day Care - South,Private & Voluntary Day Care,Care UK,405, 06-Feb-2012
456,Revenue,CCHD,Day Care - North,Private & Voluntary Day Care,Care UK,911.25, 06-Feb-2012
457,Revenue,CCHD,Elderly MH Home Care North,Other Small Contracts,Care UK,1158.75, 06-Feb-2012
458,Revenue,CCHD,Elderly MH Day Care North,Private & Voluntary Day Care,Care UK,172.5, 06-Feb-2012
459,Revenue,CCHD,Home Care Purch South,Other Small Contracts,Care UK,8135.44, 06-Feb-2012
460,Revenue,CCHD,Home Care Purch North,Other Small Contracts,Care UK,4428.75, 06-Feb-2012
461,Revenue,CCHD,Day Care - South,Private & Voluntary Day Care,Care UK,341.25, 06-Feb-2012
462,Revenue,CCHD,Day Care - North,Private & Voluntary Day Care,Care UK,622.5, 06-Feb-2012
463,Revenue,CCHD,Elderly MH Home Care North,Other Small Contracts,Care UK,1061.25, 06-Feb-2012
464,Revenue,CCHD,Elderly MH Day Care North,Private & Voluntary Day Care,Care UK,105, 06-Feb-2012
465,Revenue,CCHD,Home Care Purch South,Other Small Contracts,Care UK,8750, 07-Feb-2012
466,Revenue,CCHD,Home Care Purch North,Other Small Contracts,Care UK,8750, 07-Feb-2012
467,Revenue,CCHD,Home Care Purch South,Other Small Contracts,Carewatch (Bristol),169.54, 01-Feb-2012
468,Revenue,CCHD,Home Care Purch North,Other Small Contracts,Carewatch (Bristol),376.74, 01-Feb-2012
469,Revenue,CCHD,Day Care - North,Private & Voluntary Day Care,Carewatch (Bristol),33.12, 01-Feb-2012
470,Revenue,CCHD,Elderly MH Home Care North,Other Small Contracts,Carewatch (Bristol),277.38, 01-Feb-2012
471,Revenue,CCHD,Elderly MH Day Care North,Private & Voluntary Day Care,Carewatch (Bristol),37.26, 01-Feb-2012
472,Revenue,CCHD,Home Care Purch South,Other Small Contracts,Carewatch (Bristol),240.12, 28-Feb-2012
473,Revenue,CCHD,Home Care Purch North,Other Small Contracts,Carewatch (Bristol),302.22, 28-Feb-2012
474,Revenue,CCHD,Home Care Purch South,Other Small Contracts,Carewatch (Bristol),182.16, 16-Feb-2012
475,Revenue,CCHD,Home Care Purch North,Other Small Contracts,Carewatch (Bristol),414, 16-Feb-2012
476,Revenue,CCHD,Elderly MH Home Care North,Other Small Contracts,Carewatch (Bristol),322.92, 16-Feb-2012
477,Revenue,CCHD,Elderly MH Day Care North,Private & Voluntary Day Care,Carewatch (Bristol),62.1, 16-Feb-2012
478,Revenue,CCHD,Home Care Purch South,Other Small Contracts,Carewatch (Bristol),161.46, 16-Feb-2012
479,Revenue,CCHD,Home Care Purch North,Other Small Contracts,Carewatch (Bristol),339.48, 16-Feb-2012
480,Revenue,CCHD,Elderly MH Home Care North,Other Small Contracts,Carewatch (Bristol),302.22, 16-Feb-2012
481,Revenue,CCHD,Elderly MH Day Care North,Private & Voluntary Day Care,Carewatch (Bristol),70.38, 16-Feb-2012
482,Revenue,CCHD,Home Care Purch South,Other Small Contracts,Carewatch (Bristol),235.98, 10-Feb-2012
483,Revenue,CCHD,Home Care Purch North,Other Small Contracts,Carewatch (Bristol),198.72, 10-Feb-2012
484,Revenue,CCHD,Elderly MH Home Care North,Other Small Contracts,Carewatch (Bristol),327.06, 10-Feb-2012
485,Revenue,CCHD,Elderly MH Day Care North,Private & Voluntary Day Care,Carewatch (Bristol),99.36, 10-Feb-2012
486,Revenue,CCHD,Home Care Purch South,Other Small Contracts,Carewatch (Bristol),178.02, 16-Feb-2012
487,Revenue,CCHD,Home Care Purch North,Other Small Contracts,Carewatch (Bristol),186.3, 16-Feb-2012
488,Revenue,CCHD,Elderly MH Home Care North,Other Small Contracts,Carewatch (Bristol),331.2, 16-Feb-2012
489,Revenue,CCHD,Elderly MH Day Care North,Private & Voluntary Day Care,Carewatch (Bristol),49.68, 16-Feb-2012
490,Revenue,CCHD,Home Care Purch South,Other Small Contracts,Carewatch (Bristol),243.74, 10-Feb-2012
491,Revenue,CCHD,Home Care Purch North,Other Small Contracts,Carewatch (Bristol),306.36, 10-Feb-2012
492,Revenue,CCHD,Elderly MH Home Care North,Other Small Contracts,Carewatch (Bristol),136.62, 10-Feb-2012
493,Revenue,CCHD,Elderly MH Day Care North,Private & Voluntary Day Care,Carewatch (Bristol),16.56, 10-Feb-2012
494,Revenue,CCHD,Home Care Purch South,Other Small Contracts,Cash Friday at Lloyds TSB,181.92, 06-Feb-2012
495,Revenue,CCHD,Home Care Purch North,Other Small Contracts,Cash Friday at Lloyds TSB,1341.66, 06-Feb-2012
496,Revenue,CCHD,Day Care - South,Private & Voluntary Day Care,Cash Friday at Lloyds TSB,30.32, 06-Feb-2012
497,Revenue,CCHD,Day Care - North,Private & Voluntary Day Care,Cash Friday at Lloyds TSB,75.8, 06-Feb-2012
498,Revenue,CCHD,Home Care Purch South,Other Small Contracts,Cash Friday at Lloyds TSB,181.92, 06-Feb-2012
499,Revenue,CCHD,Home Care Purch North,Other Small Contracts,Cash Friday at Lloyds TSB,1387.14, 06-Feb-2012
500,Revenue,CCHD,Day Care - South,Private & Voluntary Day Care,Cash Friday at Lloyds TSB,30.32, 06-Feb-2012
501,Revenue,CCHD,Day Care - North,Private & Voluntary Day Care,Cash Friday at Lloyds TSB,83.38, 06-Feb-2012
502,Revenue,CCHD,Detained,Nursing Homes,Castlebeck Care (Teesdale) Limited,16218.98, 21-Feb-2012
503,Revenue,CCHD,Frenchay Hospital Purchasing,Nursing Homes,Cedar Care Homes Ltd,1051.8, 21-Feb-2012
504,Revenue,CCHD,Frenchay Hospital Purchasing,Residential Homes,Centenary Care Homes Ltd,1229, 21-Feb-2012
505,Revenue,CCHD,Elderly Purchasing - South,Residential Homes,Cepen Lodge Care Home,2120, 21-Feb-2012
506,Revenue,CCHD,Elderly Purchasing - South,Residential Homes,Cepen Lodge Care Home,2120, 21-Feb-2012
507,Revenue,CCHD,Frenchay Hospital Purchasing,Residential Homes,Chatsworth House,1389, 21-Feb-2012
508,Revenue,CCHD,Southmead Hospital Purchasing,Residential Homes,Chatsworth House,1008.6, 21-Feb-2012
509,Revenue,CCHD,Home Care Purch South,Other Small Contracts,Cherish Able Care Limited,1595.7, 24-Feb-2012
510,Revenue,CCHD,Elderly MH Home Care North,Other Small Contracts,Cherish Able Care Limited,336.15, 24-Feb-2012
511,Revenue,CCHD,S28A - Under 65 South,Residential Homes,Chescombe Lodge,16720.08, 21-Feb-2012
512,Revenue,CCHD,Under 65s PWLD - PS,Residential Homes,Chosen Court,6873.44, 21-Feb-2012
513,Revenue,CCHD,Under 65s PWLD - PS,Residential Homes,Chosen Court,7040.44, 21-Feb-2012
514,Revenue,CCHD,Under 65s PWLD - KD,Residential Homes,Church House,5668, 21-Feb-2012
515,Revenue,CCHD,Under 65s PWLD - KH,Nursing Homes,Churchill House,9504.88, 21-Feb-2012
516,Revenue,CCHD,Under 65s PWLD - PS,Residential Homes,Churchill House,12402.6, 21-Feb-2012
517,Revenue,CCHD,Elderly Purchasing - North,Residential Homes,Cleeve Lodge,1596.44, 21-Feb-2012
518,Revenue,CCHD,Southmead Hospital Purchasing,Residential Homes,Cleeve Lodge,1406.2, 21-Feb-2012
519,Revenue,CCHD,Elderly Purchasing - North,Residential Homes,Cleeve Lodge,1639.24, 21-Feb-2012
520,Revenue,CCHD,Elderly Purchasing - South,Residential Homes,Cleeve Lodge,1975.18, 21-Feb-2012
521,Revenue,CCHD,Elderly Purchasing - South,Residential Homes,Cleeve Lodge,1229, 21-Feb-2012
522,Revenue,CCHD,Elderly Purchasing - North,Residential Homes,Cleeve Lodge,1497.16, 21-Feb-2012
523,Revenue,CCHD,Elderly Purchasing - South,Residential Homes,Cleeve Lodge,1272.24, 21-Feb-2012
524,Revenue,CCHD,Elderly Purchasing - North,Residential Homes,Cleeve Lodge,1647.6, 21-Feb-2012
525,Revenue,CCHD,Elderly Purchasing - South,Residential Homes,Cleeve Lodge,1439.52, 21-Feb-2012
526,Revenue,CCHD,Elderly Purchasing - South,Residential Homes,Cleeve Lodge,2200, 21-Feb-2012
527,Revenue,CCHD,Elderly Purchasing - North,Residential Homes,Cleeve Lodge,1752.2, 21-Feb-2012
528,Revenue,CCHD,Southmead Hospital Purchasing,Residential Homes,Cleeve Lodge,1419.76, 21-Feb-2012
529,Revenue,CCHD,Day Care - South,Private & Voluntary Day Care,Cleeve Lodge Care Limited,585, 14-Feb-2012
530,Revenue,CCHD,Southmead Hospital Purchasing,Residential Homes,Clifftop Care Home,1175.72, 21-Feb-2012
531,Revenue,CCHD,Frenchay Hospital Purchasing,Residential Homes,Collingwood Residential Home,1035.92, 21-Feb-2012
532,Revenue,CCHD,Elderly Purchasing - South,Residential Homes,Collingwood Residential Home,1253.4, 21-Feb-2012
533,Revenue,CCHD,Elderly Purchasing - South,Residential Homes,Collingwood Residential Home,859.12, 21-Feb-2012
534,Revenue,CCHD,Elderly Purchasing - South,Residential Homes,Collingwood Residential Home,1338.52, 21-Feb-2012
535,Revenue,CCHD,Elderly Purchasing - South,Residential Homes,Collingwood Residential Home,1066.44, 21-Feb-2012
536,Revenue,CCHD,Elderly Purchasing - South,Residential Homes,Collingwood Residential Home,1297.84, 21-Feb-2012
537,Revenue,CCHD,Frenchay Hospital Purchasing,Residential Homes,Collingwood Residential Home,1214.6, 21-Feb-2012
538,Revenue,CCHD,Elderly Mental Health North,Residential Homes,Collingwood Residential Home,1286.88, 21-Feb-2012
539,Revenue,CCHD,Elderly Purchasing - South,Residential Homes,Collingwood Residential Home,1231, 21-Feb-2012
540,Revenue,CCHD,Elderly Purchasing - South,Residential Homes,Collingwood Residential Home,1361, 21-Feb-2012
541,Revenue,CCHD,Elderly Purchasing - South,Residential Homes,Collingwood Residential Home,1176.32, 21-Feb-2012
542,Revenue,CCHD,Elderly Purchasing - South,Residential Homes,Collingwood Residential Home,1363.88, 21-Feb-2012
543,Revenue,CCHD,Bed and Breakfast,Bed & Breakfast,Connolly & Callaghan Limited,861, 01-Feb-2012
544,Revenue,CCHD,Bed and Breakfast,Bed & Breakfast,Connolly & Callaghan Limited,441, 01-Feb-2012
545,Revenue,CCHD,Bed and Breakfast,Bed & Breakfast,Connolly & Callaghan Limited,476, 01-Feb-2012
546,Revenue,CCHD,Bed and Breakfast,Bed & Breakfast,Connolly & Callaghan Limited,546, 01-Feb-2012
547,Revenue,CCHD,Bed and Breakfast,Bed & Breakfast,Connolly & Callaghan Limited,511, 01-Feb-2012
548,Revenue,CCHD,Bed and Breakfast,Bed & Breakfast,Connolly & Callaghan Limited,861, 03-Feb-2012
549,Revenue,CCHD,Bed and Breakfast,Bed & Breakfast,Connolly & Callaghan Limited,441, 03-Feb-2012
550,Revenue,CCHD,Bed and Breakfast,Bed & Breakfast,Connolly & Callaghan Limited,476, 03-Feb-2012
551,Revenue,CCHD,Bed and Breakfast,Bed & Breakfast,Connolly & Callaghan Limited,546, 03-Feb-2012
552,Revenue,CCHD,Bed and Breakfast,Bed & Breakfast,Connolly & Callaghan Limited,511, 03-Feb-2012
553,Revenue,CCHD,Bed and Breakfast,Bed & Breakfast,Connolly & Callaghan Limited,441, 08-Feb-2012
554,Revenue,CCHD,Bed and Breakfast,Bed & Breakfast,Connolly & Callaghan Limited,476, 08-Feb-2012
555,Revenue,CCHD,Bed and Breakfast,Bed & Breakfast,Connolly & Callaghan Limited,861, 10-Feb-2012
556,Revenue,CCHD,Bed and Breakfast,Bed & Breakfast,Connolly & Callaghan Limited,426, 08-Feb-2012
557,Revenue,CCHD,Bed and Breakfast,Bed & Breakfast,Connolly & Callaghan Limited,546, 08-Feb-2012
558,Revenue,CCHD,Bed and Breakfast,Bed & Breakfast,Connolly & Callaghan Limited,511, 08-Feb-2012
559,Revenue,CCHD,Bed and Breakfast,Bed & Breakfast,Connolly & Callaghan Limited,441, 08-Feb-2012
560,Revenue,CCHD,Bed and Breakfast,Bed & Breakfast,Connolly & Callaghan Limited,476, 08-Feb-2012
561,Revenue,CCHD,Bed and Breakfast,Bed & Breakfast,Connolly & Callaghan Limited,861, 08-Feb-2012
562,Revenue,CCHD,Bed and Breakfast,Bed & Breakfast,Connolly & Callaghan Limited,441, 08-Feb-2012
563,Revenue,CCHD,Bed and Breakfast,Bed & Breakfast,Connolly & Callaghan Limited,546, 08-Feb-2012
564,Revenue,CCHD,Bed and Breakfast,Bed & Breakfast,Connolly & Callaghan Limited,511, 08-Feb-2012
565,Revenue,CCHD,Bed and Breakfast,Bed & Breakfast,Connolly & Callaghan Limited,441, 15-Feb-2012
566,Revenue,CCHD,Bed and Breakfast,Bed & Breakfast,Connolly & Callaghan Limited,476, 15-Feb-2012
567,Revenue,CCHD,Bed and Breakfast,Bed & Breakfast,Connolly & Callaghan Limited,861, 15-Feb-2012
568,Revenue,CCHD,Bed and Breakfast,Bed & Breakfast,Connolly & Callaghan Limited,441, 15-Feb-2012
569,Revenue,CCHD,Bed and Breakfast,Bed & Breakfast,Connolly & Callaghan Limited,546, 15-Feb-2012
570,Revenue,CCHD,Bed and Breakfast,Bed & Breakfast,Connolly & Callaghan Limited,476, 24-Feb-2012
571,Revenue,CCHD,Bed and Breakfast,Bed & Breakfast,Connolly & Callaghan Limited,861, 22-Feb-2012
572,Revenue,CCHD,Bed and Breakfast,Bed & Breakfast,Connolly & Callaghan Limited,441, 22-Feb-2012
573,Revenue,CCHD,Bed and Breakfast,Bed & Breakfast,Connolly & Callaghan Limited,546, 22-Feb-2012
574,Revenue,CCHD,Bed and Breakfast,Bed & Breakfast,Connolly & Callaghan Limited,511, 23-Feb-2012
575,Revenue,CCHD,Bed and Breakfast,Bed & Breakfast,Connolly & Callaghan Limited,861, 22-Feb-2012
576,Revenue,CCHD,Bed and Breakfast,Bed & Breakfast,Connolly & Callaghan Limited,441, 22-Feb-2012
577,Revenue,CCHD,Bed and Breakfast,Bed & Breakfast,Connolly & Callaghan Limited,546, 22-Feb-2012
578,Revenue,CCHD,Bed and Breakfast,Bed & Breakfast,Connolly & Callaghan Limited,511, 22-Feb-2012
579,Revenue,CCHD,Bed and Breakfast,Bed & Breakfast,Connolly & Callaghan Limited,441, 27-Feb-2012
580,Revenue,CCHD,Bed and Breakfast,Bed & Breakfast,Connolly & Callaghan Limited,546, 27-Feb-2012
581,Revenue,CCHD,Bed and Breakfast,Bed & Breakfast,Connolly & Callaghan Limited,511, 27-Feb-2012
582,Revenue,CCHD,Under 65s PWLD - KD,Residential Homes,Consensus Support Services Ltd,8938, 08-Feb-2012
583,Revenue,CCHD,Research & Conferences,Consultation Expenses,CPEA Ltd,4908.6, 02-Feb-2012
584,Revenue,CCHD,Research & Conferences,Consultation Expenses,CPEA Ltd,5412.1, 08-Feb-2012
585,Revenue,CCHD,S28A - Under 65 South,Residential Homes,Cream Ii Ltd,7725.68, 21-Feb-2012
586,Revenue,CCHD,S28A - Under 65 South,Residential Homes,Creedy Court,8934.84, 21-Feb-2012
587,Revenue,CCHD,S28A - Over 65 South,Residential Homes,Creedy Court,7434.12, 21-Feb-2012
588,Revenue,CCHD,Brokerage and Information Service,Grants to Voluntary Bodies,D H I,9738.71, 27-Feb-2012
589,Revenue,CCHD,Purchase of Non-Res Care - KH,Private & Voluntary Day Care,Daneswood,4940, 20-Feb-2012
590,Revenue,CCHD,Under 65s PWLD - PS,Residential Homes,Daneswood,10588.2, 21-Feb-2012
591,Revenue,CCHD,Under 65s PWLD - KD,Residential Homes,Daneswood,8756, 21-Feb-2012
592,Revenue,CCHD,Learning Difficulties PSL,Rent,Individual,2016.44, 22-Feb-2012
593,Revenue,CCHD,S28a Day Care,Private & Voluntary Day Care,DCF Premier Workshops Trust,1538.86, 02-Feb-2012
594,Revenue,CCHD,Day Care - North,Private & Voluntary Day Care,Deafblind UK,1061.06, 14-Feb-2012
595,Revenue,CCHD,Day Care - South,Private & Voluntary Day Care,Deafblind UK,1241.24, 14-Feb-2012
596,Revenue,CCHD,Day Care - South,Private & Voluntary Day Care,Deafblind UK,1775, 16-Feb-2012
597,Revenue,CCHD,Purchase of Non-Res Care - KD,Private & Voluntary Day Care,Design 4 Life Ltd,1482, 17-Feb-2012
598,Revenue,CCHD,Purchase of Non-Res Care - KD,Private & Voluntary Day Care,Design 4 Life Ltd,1368, 20-Feb-2012
599,Revenue,CCHD,Purchase of Non-Res Care - KD,Private & Voluntary Day Care,Design 4 Life Ltd,724, 02-Feb-2012
600,Revenue,CCHD,Purchase of Non-Res Care - KD,Private & Voluntary Day Care,Design 4 Life Ltd,1482, 20-Feb-2012
601,Revenue,CCHD,Day Care - South,Private & Voluntary Day Care,Dhek Bhal,740.96, 09-Feb-2012
602,Revenue,CCHD,Day Care - South,Private & Voluntary Day Care,Dhek Bhal,898.27, 09-Feb-2012
603,Revenue,CCHD,Day Care - South,Private & Voluntary Day Care,Dhek Bhal,898.27, 09-Feb-2012
604,Revenue,CCHD,Under 65s PWLD - KH,Residential Homes,Dimensions(Uk) Ltd,4696, 21-Feb-2012
605,Revenue,CCHD,Under 65s PWLD - PS,Residential Homes,Dimensions(Uk) Ltd,1708.92, 21-Feb-2012
606,Revenue,CCHD,Home Care Purch South,Other Small Contracts,DoCare Ltd,2238.22, 10-Feb-2012
607,Revenue,CCHD,Home Care Purch North,Other Small Contracts,DoCare Ltd,2646.83, 10-Feb-2012
608,Revenue,CCHD,Day Care - South,Private & Voluntary Day Care,DoCare Ltd,108.96, 10-Feb-2012
609,Revenue,CCHD,Day Care - North,Private & Voluntary Day Care,DoCare Ltd,286.02, 10-Feb-2012
610,Revenue,CCHD,Elderly MH Home Care North,Other Small Contracts,DoCare Ltd,181.6, 10-Feb-2012
611,Revenue,CCHD,Elderly MH Day Care North,Private & Voluntary Day Care,DoCare Ltd,54.48, 10-Feb-2012
612,Revenue,CCHD,Home Care Purch South,Other Small Contracts,DoCare Ltd,2619.59, 10-Feb-2012
613,Revenue,CCHD,Home Care Purch North,Other Small Contracts,DoCare Ltd,3028.19, 10-Feb-2012
614,Revenue,CCHD,Day Care - South,Private & Voluntary Day Care,DoCare Ltd,54.48, 10-Feb-2012
615,Revenue,CCHD,Day Care - North,Private & Voluntary Day Care,DoCare Ltd,381.37, 10-Feb-2012
616,Revenue,CCHD,Elderly MH Home Care North,Other Small Contracts,DoCare Ltd,172.52, 10-Feb-2012
617,Revenue,CCHD,Elderly MH Day Care North,Private & Voluntary Day Care,DoCare Ltd,54.48, 10-Feb-2012
618,Revenue,CCHD,Home Care Purch South,Other Small Contracts,DoCare Ltd,2633.21, 10-Feb-2012
619,Revenue,CCHD,Home Care Purch North,Other Small Contracts,DoCare Ltd,2914.69, 10-Feb-2012
620,Revenue,CCHD,Day Care - South,Private & Voluntary Day Care,DoCare Ltd,154.36, 10-Feb-2012
621,Revenue,CCHD,Day Care - North,Private & Voluntary Day Care,DoCare Ltd,381.37, 10-Feb-2012
622,Revenue,CCHD,Elderly MH Home Care North,Other Small Contracts,DoCare Ltd,181.6, 10-Feb-2012
623,Revenue,CCHD,Elderly MH Day Care North,Private & Voluntary Day Care,DoCare Ltd,54.48, 10-Feb-2012
624,Revenue,CCHD,Home Care Purch South,Other Small Contracts,DoCare Ltd,2878.37, 10-Feb-2012
625,Revenue,CCHD,Home Care Purch North,Other Small Contracts,DoCare Ltd,3046.35, 10-Feb-2012
626,Revenue,CCHD,Day Care - South,Private & Voluntary Day Care,DoCare Ltd,145.28, 10-Feb-2012
627,Revenue,CCHD,Day Care - North,Private & Voluntary Day Care,DoCare Ltd,454.01, 10-Feb-2012
628,Revenue,CCHD,Elderly MH Home Care North,Other Small Contracts,DoCare Ltd,177.06, 10-Feb-2012
629,Revenue,CCHD,Elderly MH Day Care North,Private & Voluntary Day Care,DoCare Ltd,54.48, 10-Feb-2012
630,Revenue,CCHD,Home Care Purch South,Other Small Contracts,DoCare Ltd,2851.13, 28-Feb-2012
631,Revenue,CCHD,Home Care Purch North,Other Small Contracts,DoCare Ltd,3078.13, 28-Feb-2012
632,Revenue,CCHD,Day Care - South,Private & Voluntary Day Care,DoCare Ltd,99.88, 28-Feb-2012
633,Revenue,CCHD,Day Care - North,Private & Voluntary Day Care,DoCare Ltd,417.69, 28-Feb-2012
634,Revenue,CCHD,Elderly MH Home Care North,Other Small Contracts,DoCare Ltd,172.52, 28-Feb-2012
635,Revenue,CCHD,Elderly MH Day Care North,Private & Voluntary Day Care,DoCare Ltd,54.48, 28-Feb-2012
636,Revenue,CCHD,Frenchay Hospital Purchasing,Nursing Homes,Donness Nursing Home,1246.2, 21-Feb-2012
637,Revenue,CCHD,Elderly Purchasing - South,Nursing Homes,Dunkirk Memorial House,1163.84, 21-Feb-2012
638,Revenue,CCHD,Bed and Breakfast,Bed & Breakfast,E J Bartlett,525, 01-Feb-2012
639,Revenue,CCHD,Bed and Breakfast,Bed & Breakfast,E J Bartlett,540, 01-Feb-2012
640,Revenue,CCHD,Bed and Breakfast,Bed & Breakfast,E J Bartlett,630, 01-Feb-2012
641,Revenue,CCHD,Bed and Breakfast,Bed & Breakfast,E J Bartlett,945, 01-Feb-2012
642,Revenue,CCHD,Bed and Breakfast,Bed & Breakfast,E J Bartlett,960, 01-Feb-2012
643,Revenue,CCHD,Bed and Breakfast,Bed & Breakfast,E J Bartlett,420, 01-Feb-2012
644,Revenue,CCHD,Bed and Breakfast,Bed & Breakfast,E J Bartlett,480, 01-Feb-2012
645,Revenue,CCHD,Bed and Breakfast,Bed & Breakfast,E J Bartlett,630, 01-Feb-2012
646,Revenue,CCHD,Bed and Breakfast,Bed & Breakfast,E J Bartlett,525, 06-Feb-2012
647,Revenue,CCHD,Bed and Breakfast,Bed & Breakfast,E J Bartlett,420, 06-Feb-2012
648,Revenue,CCHD,Bed and Breakfast,Bed & Breakfast,E J Bartlett,630, 06-Feb-2012
649,Revenue,CCHD,Bed and Breakfast,Bed & Breakfast,E J Bartlett,945, 08-Feb-2012
650,Revenue,CCHD,Bed and Breakfast,Bed & Breakfast,E J Bartlett,1290, 06-Feb-2012
651,Revenue,CCHD,Bed and Breakfast,Bed & Breakfast,E J Bartlett,420, 06-Feb-2012
652,Revenue,CCHD,Bed and Breakfast,Bed & Breakfast,E J Bartlett,630, 06-Feb-2012
653,Revenue,CCHD,Bed and Breakfast,Bed & Breakfast,E J Bartlett,525, 09-Feb-2012
654,Revenue,CCHD,Bed and Breakfast,Bed & Breakfast,E J Bartlett,420, 09-Feb-2012
655,Revenue,CCHD,Bed and Breakfast,Bed & Breakfast,E J Bartlett,1050, 09-Feb-2012
656,Revenue,CCHD,Bed and Breakfast,Bed & Breakfast,E J Bartlett,420, 09-Feb-2012
657,Revenue,CCHD,Bed and Breakfast,Bed & Breakfast,E J Bartlett,630, 09-Feb-2012
658,Revenue,CCHD,Bed and Breakfast,Bed & Breakfast,E J Bartlett,525, 16-Feb-2012
659,Revenue,CCHD,Bed and Breakfast,Bed & Breakfast,E J Bartlett,420, 16-Feb-2012
660,Revenue,CCHD,Bed and Breakfast,Bed & Breakfast,E J Bartlett,1050, 16-Feb-2012
661,Revenue,CCHD,Bed and Breakfast,Bed & Breakfast,E J Bartlett,420, 16-Feb-2012
662,Revenue,CCHD,Bed and Breakfast,Bed & Breakfast,E J Bartlett,630, 16-Feb-2012
663,Revenue,CCHD,Bed and Breakfast,Bed & Breakfast,E J Bartlett,420, 22-Feb-2012
664,Revenue,CCHD,Bed and Breakfast,Bed & Breakfast,E J Bartlett,420, 27-Feb-2012
665,Revenue,CCHD,Bed and Breakfast,Bed & Breakfast,E J Bartlett,1050, 22-Feb-2012
666,Revenue,CCHD,Bed and Breakfast,Bed & Breakfast,E J Bartlett,420, 22-Feb-2012
667,Revenue,CCHD,Bed and Breakfast,Bed & Breakfast,E J Bartlett,630, 22-Feb-2012
668,Revenue,CCHD,Charlton,Electricity,EDF Energy 1 Limited,1330.46, 14-Feb-2012
669,Revenue,CCHD,Woodleaze,Electricity,EDF Energy 1 Limited,1236.19, 14-Feb-2012
670,Revenue,CCHD,Newton House,Electricity,EDF Energy 1 Limited,1084.06, 14-Feb-2012
671,Revenue,CCHD,Alexandra Way,Electricity,EDF Energy 1 Limited,1396.72, 14-Feb-2012
672,Revenue,CCHD,Frenchay Hospital Purchasing,Residential Homes,Edgecumbe Lodge,1170, 21-Feb-2012
673,Revenue,CCHD,Elderly Purchasing - South,Residential Homes,Edgecumbe Lodge,1216.68, 21-Feb-2012
674,Revenue,CCHD,Frenchay Hospital Purchasing,Residential Homes,Edgecumbe Lodge,1100.32, 21-Feb-2012
675,Revenue,CCHD,Frenchay Hospital Purchasing,Residential Homes,Edgecumbe Lodge,1062.8, 21-Feb-2012
676,Revenue,CCHD,Elderly Mental Health North,Residential Homes,Edgecumbe Lodge,1146.36, 21-Feb-2012
677,Revenue,CCHD,Elderly Mental Health North,Residential Homes,Edgecumbe Lodge,1350.6, 21-Feb-2012
678,Revenue,CCHD,Elderly PWLD - PS,Residential Homes,Edgemont House Ltd,1299.16, 21-Feb-2012
679,Revenue,CCHD,Elderly Purchasing - South,Residential Homes,Edgemont House Ltd,1229, 21-Feb-2012
680,Revenue,CCHD,Elderly Purchasing - North,Residential Homes,Edgemont House Ltd,1229, 21-Feb-2012
681,Revenue,CCHD,Elderly Purchasing - North,Residential Homes,Edgemont House Ltd,790.08, 21-Feb-2012
682,Revenue,CCHD,Elderly Purchasing - South,Residential Homes,Edgemont House Ltd,1122.4, 21-Feb-2012
683,Revenue,CCHD,Frenchay Hospital Purchasing,Nursing Homes,Edgemont House Ltd,2842.53, 21-Feb-2012
684,Revenue,CCHD,Frenchay Hospital Purchasing,Residential Homes,Edgemont House Ltd,1349, 21-Feb-2012
685,Revenue,CCHD,Frenchay Hospital Purchasing,Residential Homes,Edgemont House Ltd,4003.57, 21-Feb-2012
686,Revenue,CCHD,South Glos Users in South Glos Homes,Nursing Homes,Edgemont View Nursing Home,3882.14, 21-Feb-2012
687,Revenue,CCHD,Elderly Purchasing - South,Nursing Homes,Edgemont View Nursing Home,1405, 21-Feb-2012
688,Revenue,CCHD,South Glos Users in South Glos Homes,Nursing Homes,Edgemont View Nursing Home,823.01, 21-Feb-2012
689,Revenue,CCHD,Frenchay Hospital Purchasing,Nursing Homes,Edgemont View Nursing Home,1335.8, 21-Feb-2012
690,Revenue,CCHD,Elderly Purchasing - South,Nursing Homes,Edgemont View Nursing Home,1247.8, 21-Feb-2012
691,Revenue,CCHD,Elderly Purchasing - South,Nursing Homes,Edgemont View Nursing Home,1586.2, 21-Feb-2012
692,Revenue,CCHD,Frenchay Hospital Purchasing,Nursing Homes,Edgemont View Nursing Home,636.04, 21-Feb-2012
693,Revenue,CCHD,Frenchay Hospital Purchasing,Nursing Homes,Edgemont View Nursing Home,1253.16, 21-Feb-2012
694,Revenue,CCHD,Supporting People Programme,Grants to Voluntary Bodies,Elim Housing Association Ltd,4434.56, 14-Feb-2012
695,Revenue,CCHD,Elderly Purchasing - South,Residential Homes,Elmbridge Residential Home Ltd,1294.4, 21-Feb-2012
696,Revenue,CCHD,Frenchay Hospital Purchasing,Nursing Homes,Elmwood Nursing Home,4325.92, 21-Feb-2012
697,Revenue,CCHD,Younger MH non-res purchasing,Private & Voluntary Day Care,Enham,638.72, 17-Feb-2012
698,Revenue,CCHD,Elderly Mental Health North,Residential Homes,Exmouth House,1305.6, 21-Feb-2012
699,Revenue,CCHD,Southmead Hospital Purchasing,Residential Homes,Fairview Court,1661.48, 21-Feb-2012
700,Revenue,CCHD,Elderly Mental Health North,Residential Homes,Fairview Court,1389, 21-Feb-2012
701,Revenue,CCHD,Frenchay Hospital Purchasing,Residential Homes,Fairview Court,1507.64, 21-Feb-2012
702,Revenue,CCHD,Elderly Purchasing - South,Residential Homes,Fairview Court,2580, 21-Feb-2012
703,Revenue,CCHD,South Glos Users in South Glos Homes,Nursing Homes,Fairview Court,1288.87, 21-Feb-2012
704,Revenue,CCHD,Elderly Purchasing - South,Residential Homes,Fairview Court,2093, 21-Feb-2012
705,Revenue,CCHD,Southmead Hospital Purchasing,Nursing Homes,Fairview Court Care Home,1998.51, 21-Feb-2012
706,Revenue,CCHD,South Glos Users in South Glos Homes,Nursing Homes,Fairview Court Care Home,2748.56, 21-Feb-2012
707,Revenue,CCHD,Purchasing Phys Dis - North,Nursing Homes,Fairview Court Care Home,1949.28, 21-Feb-2012
708,Revenue,CCHD,Elderly Mental Health North,Nursing Homes,Fairview Court Care Home,5438.39, 21-Feb-2012
709,Revenue,CCHD,Section 117 Placements North,Nursing Homes,Fairview Court Care Home,2507.9, 21-Feb-2012
710,Revenue,CCHD,Elderly Purchasing - South,Residential Homes,Fairview House,637.28, 21-Feb-2012
711,Revenue,CCHD,Frenchay Hospital Purchasing,Residential Homes,Fairview House,1234.4, 21-Feb-2012
712,Revenue,CCHD,Frenchay Hospital Purchasing,Residential Homes,Fairview House,1105, 21-Feb-2012
713,Revenue,CCHD,Frenchay Hospital Purchasing,Residential Homes,Fairview House,1005.24, 21-Feb-2012
714,Revenue,CCHD,Section 117 Placements North,Residential Homes,Fairview House,1840, 21-Feb-2012
715,Revenue,CCHD,Southmead Hospital Purchasing,Residential Homes,Fairview House,4338.69, 21-Feb-2012
716,Revenue,CCHD,Southmead Hospital Purchasing,Residential Homes,Fairview House,1029.52, 21-Feb-2012
717,Revenue,CCHD,Southmead Hospital Purchasing,Residential Homes,Fairview House,1101.04, 21-Feb-2012
718,Revenue,CCHD,Elderly Mental Health North,Residential Homes,Fairview House,1084.72, 21-Feb-2012
719,Revenue,CCHD,Frenchay Hospital Purchasing,Residential Homes,Fairview House,1229, 21-Feb-2012
720,Revenue,CCHD,Southmead Hospital Purchasing,Residential Homes,Fairview House,588.92, 21-Feb-2012
721,Revenue,CCHD,Elderly Mental Health North,Residential Homes,Fairview House,1049.28, 21-Feb-2012
722,Revenue,CCHD,Elderly Mental Health North,Residential Homes,Fairview House,1163.88, 21-Feb-2012
723,Revenue,CCHD,Frenchay Hospital Purchasing,Residential Homes,Fairview House,1269.32, 21-Feb-2012
724,Revenue,CCHD,Elderly Purchasing - North,Residential Homes,Faith House,892.2, 21-Feb-2012
725,Revenue,CCHD,Frenchay Hospital Purchasing,Residential Homes,Faith House,1284.48, 21-Feb-2012
726,Revenue,CCHD,Elderly Purchasing - North,Residential Homes,Faith House,1110.8, 21-Feb-2012
727,Revenue,CCHD,Under 65s PWLD - KD,Residential Homes,Fernbank,8350.56, 21-Feb-2012
728,Revenue,CCHD,Tenancy Start Up Scheme,Other Supplies & Services,Flamingo Investments Ltd,625, 23-Feb-2012
729,Revenue,CCHD,Elderly Purchasing - South,Nursing Homes,Four Seasons Health Care,3589.14, 21-Feb-2012
730,Revenue,CCHD,Elderly Purchasing - South,Nursing Homes,Four Seasons Health Care,1256.2, 21-Feb-2012
731,Revenue,CCHD,Frenchay Hospital Purchasing,Residential Homes,Four Seasons Health Care,907.04, 21-Feb-2012
732,Revenue,CCHD,Elderly Mental Health North,Nursing Homes,Four Seasons Health Care,1349, 21-Feb-2012
733,Revenue,CCHD,South Glos Users in South Glos Homes,Nursing Homes,Four Seasons Health Care,1024.89, 21-Feb-2012
734,Revenue,CCHD,Frenchay Hospital Purchasing,Nursing Homes,Four Seasons Health Care,1349, 21-Feb-2012
735,Revenue,CCHD,Frenchay Hospital Purchasing,Nursing Homes,Four Seasons Health Care,1808, 21-Feb-2012
736,Revenue,CCHD,Southmead Hospital Purchasing,Nursing Homes,Four Seasons Health Care,1349, 21-Feb-2012
737,Revenue,CCHD,Southmead Hospital Purchasing,Nursing Homes,Four Seasons Health Care,1349, 21-Feb-2012
738,Revenue,CCHD,South Glos Users in South Glos Homes,Nursing Homes,Four Seasons Health Care,1087, 21-Feb-2012
739,Revenue,CCHD,Elderly Purchasing - South,Nursing Homes,Four Seasons Health Care,835.52, 21-Feb-2012
740,Revenue,CCHD,Southmead Hospital Purchasing,Nursing Homes,Four Seasons Health Care,1349, 21-Feb-2012
741,Revenue,CCHD,Elderly Purchasing - South,Nursing Homes,Four Seasons Health Care,1345.8, 21-Feb-2012
742,Revenue,CCHD,Cash for Change Discharges,Nursing Homes,Four Seasons Health Care,1349, 21-Feb-2012
743,Revenue,CCHD,South Glos Users in South Glos Homes,Nursing Homes,Four Seasons Health Care,574.56, 21-Feb-2012
744,Revenue,CCHD,Elderly Purchasing - South,Nursing Homes,Four Seasons Health Care,1205, 21-Feb-2012
745,Revenue,CCHD,South Glos Users in South Glos Homes,Nursing Homes,Four Seasons Health Care,2795.14, 21-Feb-2012
746,Revenue,CCHD,Southmead Hospital Purchasing,Nursing Homes,Four Seasons Health Care,1349, 21-Feb-2012
747,Revenue,CCHD,Elderly Purchasing - South,Nursing Homes,Four Seasons Health Care,1245.4, 21-Feb-2012
748,Revenue,CCHD,Southmead Hospital Purchasing,Residential Homes,Four Seasons Health Care,580.48, 21-Feb-2012
749,Revenue,CCHD,Elderly Purchasing - South,Nursing Homes,Four Seasons Health Care,1046.64, 21-Feb-2012
750,Revenue,CCHD,Southmead Hospital Purchasing,Residential Homes,Four Seasons Health Care,2313.54, 21-Feb-2012
751,Revenue,CCHD,Southmead Hospital Purchasing,Nursing Homes,Four Seasons Health Care,2066.29, 21-Feb-2012
752,Revenue,CCHD,Southmead Hospital Purchasing,Nursing Homes,Four Seasons Health Care,1253.28, 21-Feb-2012
753,Revenue,CCHD,Elderly Purchasing - South,Nursing Homes,Four Seasons Health Care,1349, 21-Feb-2012
754,Revenue,CCHD,Elderly Purchasing - South,Nursing Homes,Four Seasons Health Care,1290.4, 21-Feb-2012
755,Revenue,CCHD,Elderly Mental Health North,Nursing Homes,Four Seasons Health Care,1342.84, 21-Feb-2012
756,Revenue,CCHD,Elderly Purchasing - South,Nursing Homes,Four Seasons Health Care,2251.77, 21-Feb-2012
757,Revenue,CCHD,Elderly Purchasing - South,Nursing Homes,Four Seasons Health Care,1068.64, 21-Feb-2012
758,Revenue,CCHD,Elderly Purchasing - North,Nursing Homes,Four Seasons Health Care,1313, 21-Feb-2012
759,Revenue,CCHD,Frenchay Hospital Purchasing,Nursing Homes,Four Seasons Health Care,1052.2, 21-Feb-2012
760,Revenue,CCHD,Elderly Mental Health North,Residential Homes,Four Seasons Health Care,1056.64, 21-Feb-2012
761,Revenue,CCHD,Frenchay Hospital Purchasing,Residential Homes,Four Seasons Health Care,1063.88, 21-Feb-2012
762,Revenue,CCHD,Elderly Purchasing - South,Nursing Homes,Four Seasons Health Care,1349, 21-Feb-2012
763,Revenue,CCHD,Elderly Purchasing - North,Nursing Homes,Four Seasons Health Care,626.32, 21-Feb-2012
764,Revenue,CCHD,Elderly Purchasing - North,Nursing Homes,Four Seasons Health Care,569.42, 21-Feb-2012
765,Revenue,CCHD,Elderly Purchasing - South,Nursing Homes,Four Seasons Health Care,1341.32, 21-Feb-2012
766,Revenue,CCHD,Frenchay Hospital Purchasing,Nursing Homes,Four Seasons Health Care,1297, 21-Feb-2012
767,Revenue,CCHD,Elderly Mental Health North,Nursing Homes,Four Seasons Health Care,1199.32, 21-Feb-2012
768,Revenue,CCHD,Elderly Purchasing - North,Nursing Homes,Four Seasons Health Care,1000, 21-Feb-2012
769,Revenue,CCHD,Frenchay Hospital Purchasing,Nursing Homes,Four Seasons Health Care,1517, 21-Feb-2012
770,Revenue,CCHD,Frenchay Hospital Purchasing,Nursing Homes,Four Seasons Health Care,1283.16, 21-Feb-2012
771,Revenue,CCHD,Southmead Hospital Purchasing,Nursing Homes,Four Seasons Health Care,1507.68, 21-Feb-2012
772,Revenue,CCHD,Southmead Hospital Purchasing,Residential Homes,Four Seasons Health Care,1232, 21-Feb-2012
773,Revenue,CCHD,Elderly Purchasing - North,Residential Homes,Four Seasons Health Care,1022.72, 21-Feb-2012
774,Revenue,CCHD,Elderly Purchasing - South,Nursing Homes,Four Seasons Health Care,1206.96, 21-Feb-2012
775,Revenue,CCHD,Elderly Mental Health North,Nursing Homes,Four Seasons Health Care,1313, 21-Feb-2012
776,Revenue,CCHD,Frenchay Hospital Purchasing,Nursing Homes,Four Seasons Health Care,1268.08, 21-Feb-2012
777,Revenue,CCHD,Elderly Purchasing - South,Nursing Homes,Four Seasons Health Care,1349, 21-Feb-2012
778,Revenue,CCHD,Elderly Purchasing - South,Nursing Homes,Four Seasons Health Care,1459.32, 21-Feb-2012
779,Revenue,CCHD,Southmead Hospital Purchasing,Nursing Homes,Four Seasons Health Care,1349, 21-Feb-2012
780,Revenue,CCHD,Elderly Purchasing - South,Nursing Homes,Four Seasons Health Care,1349, 21-Feb-2012
781,Revenue,CCHD,Elderly Mental Health North,Nursing Homes,Four Seasons Health Care,1431.72, 21-Feb-2012
782,Revenue,CCHD,Elderly Purchasing - North,Nursing Homes,Four Seasons Health Care,1248.52, 21-Feb-2012
783,Revenue,CCHD,Elderly Purchasing - North,Nursing Homes,Four Seasons Health Care,1103.48, 21-Feb-2012
784,Revenue,CCHD,Southmead Hospital Purchasing,Nursing Homes,Four Seasons Health Care,1336.4, 21-Feb-2012
785,Revenue,CCHD,Frenchay Hospital Purchasing,Nursing Homes,Four Seasons Health Care,1284.56, 21-Feb-2012
786,Revenue,CCHD,Elderly Purchasing - North,Nursing Homes,Four Seasons Health Care,719.68, 21-Feb-2012
787,Revenue,CCHD,Elderly Mental Health North,Nursing Homes,Four Seasons Health Care,1416, 21-Feb-2012
788,Revenue,CCHD,Frenchay Hospital Purchasing,Nursing Homes,Four Seasons Health Care,1323.8, 21-Feb-2012
789,Revenue,CCHD,Southmead Hospital Purchasing,Nursing Homes,Four Seasons Health Care,1397.36, 21-Feb-2012
790,Revenue,CCHD,Elderly Purchasing - North,Nursing Homes,Four Seasons Health Care,1373, 21-Feb-2012
791,Revenue,CCHD,Elderly Purchasing - North,Nursing Homes,Four Seasons Health Care,1349, 21-Feb-2012
792,Revenue,CCHD,Elderly Purchasing - South,Residential Homes,Four Seasons Health Care,1229, 21-Feb-2012
793,Revenue,CCHD,Elderly Purchasing - North,Nursing Homes,Four Seasons Health Care,1412.48, 21-Feb-2012
794,Revenue,CCHD,Southmead Hospital Purchasing,Residential Homes,Four Seasons Health Care,729.36, 21-Feb-2012
795,Revenue,CCHD,Elderly Mental Health North,Nursing Homes,Four Seasons Health Care,1402.52, 21-Feb-2012
796,Revenue,CCHD,Southmead Hospital Purchasing,Nursing Homes,Four Seasons Health Care,1422.32, 21-Feb-2012
797,Revenue,CCHD,Frenchay Hospital Purchasing,Nursing Homes,Four Seasons Health Care,1199.6, 21-Feb-2012
798,Revenue,CCHD,Southmead Hospital Purchasing,Nursing Homes,Four Seasons Health Care,1517, 21-Feb-2012
799,Revenue,CCHD,Elderly Purchasing - North,Nursing Homes,Four Seasons Health Care,820.24, 21-Feb-2012
800,Revenue,CCHD,Frenchay Hospital Purchasing,Nursing Homes,Four Seasons Health Care,1161.72, 21-Feb-2012
801,Revenue,CCHD,Elderly Mental Health North,Residential Homes,Four Seasons Health Care,1202.24, 21-Feb-2012
802,Revenue,CCHD,Southmead Hospital Purchasing,Residential Homes,Four Seasons Health Care,1229, 21-Feb-2012
803,Revenue,CCHD,Frenchay Hospital Purchasing,Nursing Homes,Four Seasons Health Care,1150.66, 21-Feb-2012
804,Revenue,CCHD,Southmead Hospital Purchasing,Nursing Homes,Four Seasons Health Care,955.32, 21-Feb-2012
805,Revenue,CCHD,Elderly Mental Health North,Residential Homes,Four Seasons Health Care,1344.16, 21-Feb-2012
806,Revenue,CCHD,Elderly Purchasing - North,Nursing Homes,Four Seasons Health Care,1341.32, 21-Feb-2012
807,Revenue,CCHD,Elderly Mental Health North,Nursing Homes,Four Seasons Health Care,1034.84, 21-Feb-2012
808,Revenue,CCHD,Frenchay Hospital Purchasing,Nursing Homes,Four Seasons Health Care,1349, 21-Feb-2012
809,Revenue,CCHD,South Glos Users in South Glos Homes,Nursing Homes,Four Seasons Health Care,2034.24, 21-Feb-2012
810,Revenue,CCHD,South Glos Users in South Glos Homes,Nursing Homes,Four Seasons Health Care,760.9, 21-Feb-2012
811,Revenue,CCHD,Frenchay Hospital Purchasing,Nursing Homes,Four Seasons Health Care,1349, 21-Feb-2012
812,Revenue,CCHD,Elderly Purchasing - South,Nursing Homes,Four Seasons Health Care,1251.72, 21-Feb-2012
813,Revenue,CCHD,Frenchay Hospital Purchasing,Nursing Homes,Four Seasons Health Care,1277, 21-Feb-2012
814,Revenue,CCHD,South Glos Users in South Glos Homes,Nursing Homes,Four Seasons Health Care,1009.36, 21-Feb-2012
815,Revenue,CCHD,South Glos Users in South Glos Homes,Nursing Homes,Four Seasons Health Care,1149.11, 21-Feb-2012
816,Revenue,CCHD,Frenchay Hospital Purchasing,Nursing Homes,Four Seasons Health Care,1349, 21-Feb-2012
817,Revenue,CCHD,Elderly Purchasing - North,Nursing Homes,Four Seasons Health Care,1385, 21-Feb-2012
818,Revenue,CCHD,Frenchay Hospital Purchasing,Nursing Homes,Four Seasons Health Care,1349, 21-Feb-2012
819,Revenue,CCHD,Frenchay Hospital Purchasing,Nursing Homes,Four Seasons Health Care,1349, 21-Feb-2012
820,Revenue,CCHD,Frenchay Hospital Purchasing,Nursing Homes,Four Seasons Health Care,1365, 21-Feb-2012
821,Revenue,CCHD,Elderly Purchasing - South,Nursing Homes,Four Seasons Health Care,1057.92, 21-Feb-2012
822,Revenue,CCHD,Elderly Purchasing - North,Nursing Homes,Four Seasons Health Care,857.96, 21-Feb-2012
823,Revenue,CCHD,Southmead Hospital Purchasing,Residential Homes,Four Seasons Health Care,1103.44, 21-Feb-2012
824,Revenue,CCHD,Southmead Hospital Purchasing,Nursing Homes,Four Seasons Health Care,1349, 21-Feb-2012
825,Revenue,CCHD,Southmead Hospital Purchasing,Nursing Homes,Four Seasons Health Care,1397, 21-Feb-2012
826,Revenue,CCHD,Purchasing Phys Dis - North,Nursing Homes,Four Seasons Health Care,1152.8, 21-Feb-2012
827,Revenue,CCHD,Southmead Hospital Purchasing,Nursing Homes,Four Seasons Health Care,1317.56, 21-Feb-2012
828,Revenue,CCHD,Purchasing Phys Dis - North,Nursing Homes,Four Seasons Health Care,1355.08, 21-Feb-2012
829,Revenue,CCHD,Elderly Purchasing - South,Nursing Homes,Four Seasons Health Care,1225.28, 21-Feb-2012
830,Revenue,CCHD,Southmead Hospital Purchasing,Nursing Homes,Four Seasons Health Care,1275.28, 21-Feb-2012
831,Revenue,CCHD,Elderly Mental Health North,Residential Homes,Four Seasons Health Care,1375.96, 21-Feb-2012
832,Revenue,CCHD,Southmead Hospital Purchasing,Residential Homes,Four Seasons Health Care,1151.56, 21-Feb-2012
833,Revenue,CCHD,Frenchay Hospital Purchasing,Nursing Homes,Four Seasons Health Care,1211.8, 21-Feb-2012
834,Revenue,CCHD,South Glos Users in South Glos Homes,Nursing Homes,Four Seasons Health Care,2205.06, 21-Feb-2012
835,Revenue,CCHD,Southmead Hospital Purchasing,Nursing Homes,Four Seasons Health Care,1185.2, 21-Feb-2012
836,Revenue,CCHD,Elderly PWLD - PS,Residential Homes,Four Seasons Health Care,1229, 21-Feb-2012
837,Revenue,CCHD,Frenchay Hospital Purchasing,Nursing Homes,Four Seasons Health Care,1349, 21-Feb-2012
838,Revenue,CCHD,South Glos Users in South Glos Homes,Nursing Homes,Four Seasons Health Care,2142.94, 21-Feb-2012
839,Revenue,CCHD,Southmead Hospital Purchasing,Nursing Homes,Four Seasons Health Care,1349, 21-Feb-2012
840,Revenue,CCHD,Elderly Purchasing - South,Nursing Homes,Four Seasons Health Care,1265.52, 21-Feb-2012
841,Revenue,CCHD,Elderly Purchasing - South,Nursing Homes,Four Seasons Health Care,1349, 21-Feb-2012
842,Revenue,CCHD,Elderly Purchasing - South,Nursing Homes,Four Seasons Health Care,915.4, 21-Feb-2012
843,Revenue,CCHD,Elderly Purchasing - South,Nursing Homes,Four Seasons Health Care,1335.64, 21-Feb-2012
844,Revenue,CCHD,Frenchay Hospital Purchasing,Residential Homes,Four Seasons Health Care,751.52, 21-Feb-2012
845,Revenue,CCHD,South Glos Users in South Glos Homes,Nursing Homes,Four Seasons Health Care,2997.01, 21-Feb-2012
846,Revenue,CCHD,Southmead Hospital Purchasing,Nursing Homes,Four Seasons Health Care,1125.12, 21-Feb-2012
847,Revenue,CCHD,Elderly Purchasing - South,Residential Homes,Four Seasons Health Care,859.68, 21-Feb-2012
848,Revenue,CCHD,Southmead Hospital Purchasing,Nursing Homes,Four Seasons Health Care,1287.24, 21-Feb-2012
849,Revenue,CCHD,Southmead Hospital Purchasing,Residential Homes,Four Seasons Health Care,1367.48, 21-Feb-2012
850,Revenue,CCHD,Elderly Purchasing - South,Residential Homes,Four Seasons Health Care,1169.23, 21-Feb-2012
851,Revenue,CCHD,Elderly Purchasing - South,Residential Homes,Four Seasons Health Care,1071.2, 21-Feb-2012
852,Revenue,CCHD,Frenchay Hospital Purchasing,Nursing Homes,Four Seasons Health Care,774.32, 21-Feb-2012
853,Revenue,CCHD,Elderly Purchasing - South,Nursing Homes,Four Seasons Health Care,960.32, 21-Feb-2012
854,Revenue,CCHD,Frenchay Hospital Purchasing,Residential Homes,Four Seasons Health Care,1227.8, 21-Feb-2012
855,Revenue,CCHD,South Glos Users in South Glos Homes,Nursing Homes,Four Seasons Health Care,2375.87, 21-Feb-2012
856,Revenue,CCHD,Section 117 Placements North,Nursing Homes,Four Seasons Health Care,1808, 21-Feb-2012
857,Revenue,CCHD,Frenchay Hospital Purchasing,Residential Homes,Four Seasons Health Care,1092.96, 21-Feb-2012
858,Revenue,CCHD,Elderly Mental Health North,Nursing Homes,Four Seasons Health Care,1592.47, 21-Feb-2012
859,Revenue,CCHD,Elderly Mental Health North,Nursing Homes,Four Seasons Health Care,1173.4, 21-Feb-2012
860,Revenue,CCHD,South Glos Users in South Glos Homes,Nursing Homes,Four Seasons Health Care,590.09, 21-Feb-2012
861,Revenue,CCHD,Frenchay Hospital Purchasing,Nursing Homes,Four Seasons Health Care,1251.72, 21-Feb-2012
862,Revenue,CCHD,South Glos Users in South Glos Homes,Nursing Homes,Four Seasons Health Care,931.71, 21-Feb-2012
863,Revenue,CCHD,Elderly Purchasing - South,Residential Homes,Four Seasons Health Care,562.76, 21-Feb-2012
864,Revenue,CCHD,Frenchay Hospital Purchasing,Nursing Homes,Four Seasons Health Care,1345.8, 21-Feb-2012
865,Revenue,CCHD,Southmead Hospital Purchasing,Nursing Homes,Four Seasons Health Care,1337.68, 21-Feb-2012
866,Revenue,CCHD,Elderly Mental Health North,Residential Homes,Four Seasons Health Care,954.64, 21-Feb-2012
867,Revenue,CCHD,Frenchay Hospital Purchasing,Nursing Homes,Four Seasons Health Care,1115.84, 21-Feb-2012
868,Revenue,CCHD,Southmead Hospital Purchasing,Nursing Homes,Four Seasons Health Care,739, 21-Feb-2012
869,Revenue,CCHD,Elderly Purchasing - North,Nursing Homes,Four Seasons Health Care,1285.16, 21-Feb-2012
870,Revenue,CCHD,South Glos Users in South Glos Homes,Nursing Homes,Four Seasons Health Care,1009.36, 21-Feb-2012
871,Revenue,CCHD,Southmead Hospital Purchasing,Nursing Homes,Four Seasons Health Care,999.56, 21-Feb-2012
872,Revenue,CCHD,Southmead Hospital Purchasing,Nursing Homes,Four Seasons Health Care,1503.4, 21-Feb-2012
873,Revenue,CCHD,Southmead Hospital Purchasing,Nursing Homes,Four Seasons Health Care,895.64, 21-Feb-2012
874,Revenue,CCHD,Supported Living - PS,Private & Voluntary Home Care,Freeways Trust Limited,2035.65, 24-Feb-2012
875,Revenue,CCHD,Supported Living - PS,Private & Voluntary Home Care,Freeways Trust Limited,1056, 24-Feb-2012
876,Revenue,CCHD,Under 65s PWLD - KD,Residential Homes,Freeways Trust Ltd,2757, 21-Feb-2012
877,Revenue,CCHD,S28A - Under 65 South,Residential Homes,Freeways Trust Ltd,2838.8, 21-Feb-2012
878,Revenue,CCHD,Under 65s PWLD - KD,Residential Homes,Freeways Trust Ltd,2206.88, 21-Feb-2012
879,Revenue,CCHD,Under 65s PWLD - KD,Residential Homes,Freeways Trust Ltd,2625, 21-Feb-2012
880,Revenue,CCHD,Under 65s PWLD - KD,Residential Homes,Freeways Trust Ltd,2217.28, 21-Feb-2012
881,Revenue,CCHD,Under 65s PWLD - KD,Residential Homes,Freeways Trust Ltd,2633.48, 21-Feb-2012
882,Revenue,CCHD,Under 65s PWLD - KH,Residential Homes,Freeways Trust Ltd,3216.52, 21-Feb-2012
883,Revenue,CCHD,Elderly PWLD - KD,Residential Homes,Freeways Trust Ltd,2192.48, 21-Feb-2012
884,Revenue,CCHD,Under 65s PWLD - KH,Residential Homes,Freeways Trust Ltd,2335.12, 21-Feb-2012
885,Revenue,CCHD,Under 65s PWLD - KH,Residential Homes,Freeways Trust Ltd,2633.48, 21-Feb-2012
886,Revenue,CCHD,Elderly PWLD - KD,Residential Homes,Freeways Trust Ltd,11338.18, 21-Feb-2012
887,Revenue,CCHD,Elderly PWLD - KD,Residential Homes,Freeways Trust Ltd,2461, 21-Feb-2012
888,Revenue,CCHD,Section 117 Placements MH Younger,Residential Homes,Freeways Trust Ltd,3238, 21-Feb-2012
889,Revenue,CCHD,Frenchay Hospital Purchasing,Nursing Homes,Frenchay Park Nursing Home,1198, 21-Feb-2012
890,Revenue,CCHD,Complaints and FOI,Complaints External Expenses,G4S Assessment Services (UK) Limited,650, 14-Feb-2012
891,Revenue,CCHD,Directorate,Directorate (JNC Staff) Pay,Gatenby Sanderson Limited,10901, 16-Feb-2012
892,Revenue,CCHD,Management & Support costs,Other Supplies & Services,Geo Testing Services Limited,1900, 29-Feb-2012
893,Revenue,CCHD,Woodleaze,Prop.Serv. General Repairs,Geoff Lewis Flooring Limited,1510, 27-Feb-2012
894,Revenue,CCHD,Under 65s PWLD - PS,Residential Homes,Glasallt Fawr,4442.2, 21-Feb-2012
895,Revenue,CCHD,Elderly Purchasing - North,Nursing Homes,Glebe House Nursing Home,1366.64, 21-Feb-2012
896,Revenue,CCHD,South Glos Users in South Glos Homes,Nursing Homes,Glebe House Nursing Home,1739.2, 21-Feb-2012
897,Revenue,CCHD,South Glos Users in South Glos Homes,Nursing Homes,Glebe House Nursing Home,807.49, 21-Feb-2012
898,Revenue,CCHD,Elderly Purchasing - South,Residential Homes,Glebe House Nursing Home,6741, 21-Feb-2012
899,Revenue,CCHD,Elderly Purchasing - North,Nursing Homes,Glebe House Nursing Home,1285, 21-Feb-2012
900,Revenue,CCHD,Elderly Purchasing - North,Nursing Homes,Glebe House Nursing Home,1285, 21-Feb-2012
901,Revenue,CCHD,South Glos Users in South Glos Homes,Nursing Homes,Glebe House Nursing Home,1614.97, 21-Feb-2012
902,Revenue,CCHD,Southmead Hospital Purchasing,Nursing Homes,Glebe House Nursing Home,1285, 21-Feb-2012
903,Revenue,CCHD,Southmead Hospital Purchasing,Nursing Homes,Glebe House Nursing Home,1644, 21-Feb-2012
904,Revenue,CCHD,Purchasing Phys Dis - South,Nursing Homes,Glenside Centre For Brain Injury,6955.52, 21-Feb-2012
905,Revenue,CCHD,Under 65s PWLD - KH,Residential Homes,Gordena Care Home,2040.52, 21-Feb-2012
906,Revenue,CCHD,Elderly PWLD - KH,Residential Homes,Gordena Care Home,4624.36, 21-Feb-2012
907,Revenue,CCHD,Elderly PWLD - KH,Residential Homes,Gordena Care Home,2866.12, 21-Feb-2012
908,Revenue,CCHD,Under 65s PWLD - KH,Residential Homes,Gordena Care Home,2036.68, 21-Feb-2012
909,Revenue,CCHD,Home Care Purch South,Other Small Contracts,Greenbanks Homecare (Western) Limited,3921.76, 14-Feb-2012
910,Revenue,CCHD,Home Care Purch North,Other Small Contracts,Greenbanks Homecare (Western) Limited,289.5, 14-Feb-2012
911,Revenue,CCHD,Day Care - South,Private & Voluntary Day Care,Greenbanks Homecare (Western) Limited,289.5, 14-Feb-2012
912,Revenue,CCHD,Day Care - North,Private & Voluntary Day Care,Greenbanks Homecare (Western) Limited,30.88, 14-Feb-2012
913,Revenue,CCHD,Carer`s Grant - South,Carers Breaks & Services,Greenbanks Homecare (Western) Limited,108.08, 14-Feb-2012
914,Revenue,CCHD,Elderly MH Home Care North,Other Small Contracts,Greenbanks Homecare (Western) Limited,386, 14-Feb-2012
915,Revenue,CCHD,Elderly MH Day Care North,Private & Voluntary Day Care,Greenbanks Homecare (Western) Limited,30.88, 14-Feb-2012
916,Revenue,CCHD,Home Care Purch South,Other Small Contracts,Greenbanks Homecare (Western) Limited,4010.54, 14-Feb-2012
917,Revenue,CCHD,Home Care Purch North,Other Small Contracts,Greenbanks Homecare (Western) Limited,258.62, 14-Feb-2012
918,Revenue,CCHD,Day Care - South,Private & Voluntary Day Care,Greenbanks Homecare (Western) Limited,293.36, 14-Feb-2012
919,Revenue,CCHD,Day Care - North,Private & Voluntary Day Care,Greenbanks Homecare (Western) Limited,108.08, 14-Feb-2012
920,Revenue,CCHD,Carer`s Grant - South,Carers Breaks & Services,Greenbanks Homecare (Western) Limited,108.08, 14-Feb-2012
921,Revenue,CCHD,Elderly MH Home Care North,Other Small Contracts,Greenbanks Homecare (Western) Limited,517.24, 14-Feb-2012
922,Revenue,CCHD,Elderly MH Day Care North,Private & Voluntary Day Care,Greenbanks Homecare (Western) Limited,15.44, 14-Feb-2012
923,Revenue,CCHD,Home Care Purch South,Other Small Contracts,Greenbanks Homecare (Western) Limited,3836.84, 14-Feb-2012
924,Revenue,CCHD,Home Care Purch North,Other Small Contracts,Greenbanks Homecare (Western) Limited,320.38, 14-Feb-2012
925,Revenue,CCHD,Day Care - South,Private & Voluntary Day Care,Greenbanks Homecare (Western) Limited,274.06, 14-Feb-2012
926,Revenue,CCHD,Day Care - North,Private & Voluntary Day Care,Greenbanks Homecare (Western) Limited,104.22, 14-Feb-2012
927,Revenue,CCHD,Carer`s Grant - South,Carers Breaks & Services,Greenbanks Homecare (Western) Limited,108.08, 14-Feb-2012
928,Revenue,CCHD,Elderly MH Home Care North,Other Small Contracts,Greenbanks Homecare (Western) Limited,482.5, 14-Feb-2012
929,Revenue,CCHD,Elderly MH Day Care North,Private & Voluntary Day Care,Greenbanks Homecare (Western) Limited,15.44, 14-Feb-2012
930,Revenue,CCHD,Home Care Purch South,Other Small Contracts,Greenbanks Homecare (Western) Limited,3829.12, 14-Feb-2012
931,Revenue,CCHD,Home Care Purch North,Private & Voluntary Day Care,Greenbanks Homecare (Western) Limited,277.92, 14-Feb-2012
932,Revenue,CCHD,Day Care - South,Private & Voluntary Day Care,Greenbanks Homecare (Western) Limited,285.64, 14-Feb-2012
933,Revenue,CCHD,Day Care - North,Private & Voluntary Day Care,Greenbanks Homecare (Western) Limited,100.36, 14-Feb-2012
934,Revenue,CCHD,Carer`s Grant - South,Carers Breaks & Services,Greenbanks Homecare (Western) Limited,108.08, 14-Feb-2012
935,Revenue,CCHD,Elderly MH Home Care North,Other Small Contracts,Greenbanks Homecare (Western) Limited,463.2, 14-Feb-2012
936,Revenue,CCHD,Elderly MH Day Care North,Private & Voluntary Day Care,Greenbanks Homecare (Western) Limited,23.16, 14-Feb-2012
937,Revenue,CCHD,Elderly Purchasing - North,Residential Homes,Greensleeves,2583.84, 21-Feb-2012
938,Revenue,CCHD,Under 65s PWLD - KD,Residential Homes,Greyhound Care Home,3557.96, 21-Feb-2012
939,Revenue,CCHD,Frenchay Hospital Purchasing,Residential Homes,Gwendoline House,1176.84, 21-Feb-2012
940,Revenue,CCHD,Elderly Purchasing - South,Residential Homes,Gwendoline House,1465, 21-Feb-2012
941,Revenue,CCHD,Elderly Purchasing - South,Residential Homes,Gwendoline House,1146.28, 21-Feb-2012
942,Revenue,CCHD,Elderly Purchasing - South,Residential Homes,Gwendoline House,1202.32, 21-Feb-2012
943,Revenue,CCHD,Elderly Mental Health North,Residential Homes,Gwendoline House,1219.6, 21-Feb-2012
944,Revenue,CCHD,Elderly Purchasing - South,Residential Homes,Gwendoline House,1413.96, 21-Feb-2012
945,Revenue,CCHD,Elderly Purchasing - South,Residential Homes,Gwendoline House,1111.56, 21-Feb-2012
946,Revenue,CCHD,Elderly Purchasing - South,Residential Homes,Gwendoline House,987.72, 21-Feb-2012
947,Revenue,CCHD,Woodleaze,Prop.Serv. General Repairs,H Mealing & Sons Limited,2095, 03-Feb-2012
948,Revenue,CCHD,Newton House,Prop.Serv. General Repairs,H Mealing & Sons Limited,1698.5, 17-Feb-2012
949,Revenue,CCHD,Elderly Purchasing - South,Residential Homes,Harefield Hall,3499.83, 21-Feb-2012
950,Revenue,CCHD,Elderly Mental Health North,Residential Homes,Harefield Hall,1109.4, 21-Feb-2012
951,Revenue,CCHD,Newton House,Furniture & Fittings Loose,Harvey Servicing & Engineering Limited,500.5, 16-Feb-2012
952,Revenue,CCHD,Southmead Hospital Purchasing,Nursing Homes,Hc-One Ltd,1586.2, 21-Feb-2012
953,Revenue,CCHD,Section 117 Placements North,Nursing Homes,Hc-One Ltd,3824, 21-Feb-2012
954,Revenue,CCHD,Southmead Hospital Purchasing,Nursing Homes,Hc-One Ltd,5192.56, 21-Feb-2012
955,Revenue,CCHD,Elderly Purchasing - North,Nursing Homes,Hc-One Ltd,1463.32, 21-Feb-2012
956,Revenue,CCHD,Elderly Mental Health North,Nursing Homes,Hc-One Ltd,2906, 21-Feb-2012
957,Revenue,CCHD,South Glos Users in Gloucestershire Home,Nursing Homes,Hc-One Ltd,869.6, 21-Feb-2012
958,Revenue,CCHD,Elderly Mental Health North,Nursing Homes,Hc-One Ltd,2421.44, 21-Feb-2012
959,Revenue,CCHD,Elderly Mental Health North,Nursing Homes,Hc-One Ltd,2906, 21-Feb-2012
960,Revenue,CCHD,South Glos Users in Gloucestershire Home,Nursing Homes,Hc-One Ltd,869.6, 21-Feb-2012
961,Revenue,CCHD,Elderly Mental Health North,Nursing Homes,Hc-One Ltd,2332.96, 21-Feb-2012
962,Revenue,CCHD,Elderly Mental Health North,Nursing Homes,Hc-One Ltd,1748.56, 21-Feb-2012
963,Revenue,CCHD,South Glos Users in Gloucestershire Home,Nursing Homes,Hc-One Ltd,869.6, 21-Feb-2012
964,Revenue,CCHD,Day Care - North,Private & Voluntary Day Care,Headway Bristol,750.33, 07-Feb-2012
965,Revenue,CCHD,Day Care - North,Private & Voluntary Day Care,Headway Bristol,750.33, 07-Feb-2012
966,Revenue,CCHD,Day Care - North,Private & Voluntary Day Care,Headway Bristol,1036.17, 07-Feb-2012
967,Revenue,CCHD,Purchasing Phys Dis - North,Nursing Homes,Helen & Douglas House,1800, 13-Feb-2012
968,Revenue,CCHD,Home Care Purch North,Private & Voluntary Home Care,Henry Hatherell,1645, 14-Feb-2012
969,Revenue,CCHD,Supported Living - KH,Private & Voluntary Home Care,HFT,3660.6, 20-Feb-2012
970,Revenue,CCHD,Supported Living - KD,Private & Voluntary Home Care,HFT,1496.34, 03-Feb-2012
971,Revenue,CCHD,Southmead Hospital Purchasing,Residential Homes,Highgate Studios,1174.88, 21-Feb-2012
972,Revenue,CCHD,Under 65s PWLD - KD,Residential Homes,Holmleigh Care Homes Ltd,3908.68, 21-Feb-2012
973,Revenue,CCHD,Under 65s PWLD - KH,Residential Homes,Holmleigh Care Homes Ltd,4909.68, 21-Feb-2012
974,Revenue,CCHD,Under 65s PWLD - KD,Residential Homes,Home Farm Trust Ltd  5-6 Brook Office Pa,2749.36, 21-Feb-2012
975,Revenue,CCHD,Under 65s PWLD - PS,Residential Homes,Home Farm Trust Ltd  5-6 Brook Office Pa,2398.8, 21-Feb-2012
976,Revenue,CCHD,Under 65s PWLD - PS,Residential Homes,Home Farm Trust Ltd  5-6 Brook Office Pa,2156.57, 21-Feb-2012
977,Revenue,CCHD,Under 65s PWLD - KD,Residential Homes,Home Farm Trust Ltd  5-6 Brook Office Pa,3319.88, 21-Feb-2012
978,Revenue,CCHD,Under 65s PWLD - PS,Residential Homes,Home Farm Trust Ltd  5-6 Brook Office Pa,4428.64, 21-Feb-2012
979,Revenue,CCHD,Under 65s PWLD - KD,Residential Homes,Home From Home Care Ltd,8770.4, 21-Feb-2012
980,Revenue,CCHD,Elderly Purchasing - North,Nursing Homes,Horfield Care Limited,7849.82, 17-Feb-2012
981,Revenue,CCHD,Frenchay Hospital Purchasing,Nursing Homes,Horfield Care Limited,4488.72, 17-Feb-2012
982,Revenue,CCHD,Southmead Hospital Purchasing,Nursing Homes,Horfield Care Limited,1278.72, 17-Feb-2012
983,Revenue,CCHD,Supporting People Programme,Grants to Voluntary Bodies,Housing 21,545.6, 24-Feb-2012
984,Revenue,CCHD,Supporting People Programme,Grants to Voluntary Bodies,Housing 21,545.6, 24-Feb-2012
985,Revenue,CCHD,Supporting People Programme,Grants to Voluntary Bodies,Housing 21,545.6, 24-Feb-2012
986,Revenue,CCHD,Supporting People Programme,Grants to Voluntary Bodies,Housing 21,828, 24-Feb-2012
987,Revenue,CCHD,Home Care Purch North,Private & Voluntary Home Care,Housing 21,35812.8, 10-Feb-2012
988,Revenue,CCHD,Home Care Purch South,Private & Voluntary Home Care,Housing 21,22092.54, 01-Feb-2012
989,Revenue,CCHD,Elderly Purchasing - South,Residential Homes,Jah-Jireh Charity Homes,1241, 21-Feb-2012
990,Revenue,CCHD,Training - Adult Services,Training Expenses,Jo Williams,561, 14-Feb-2012
991,Revenue,CCHD,Kingswood District Office,Office Supplies & Equipment,K N Office Supplies,434.6, 21-Feb-2012
992,Revenue,CCHD,Under 65s PWLD - KD,Residential Homes,Kelly House,6964.4, 21-Feb-2012
993,Revenue,CCHD,S28A - Under 65 South,Residential Homes,Kelly House,6732.08, 21-Feb-2012
994,Revenue,CCHD,Elderly Mental Health North,Residential Homes,Kenver House Residential Home,1496.44, 21-Feb-2012
995,Revenue,CCHD,Section 117 Placements North,Residential Homes,Kenver House Residential Home,1848, 21-Feb-2012
996,Revenue,CCHD,Elderly Mental Health North,Residential Homes,Kenver House Residential Home,1358.84, 21-Feb-2012
997,Revenue,CCHD,Elderly Mental Health North,Residential Homes,Kenver House Residential Home,1621, 21-Feb-2012
998,Revenue,CCHD,Frenchay Hospital Purchasing,Residential Homes,Kenver House Residential Home,1291.52, 21-Feb-2012
999,Revenue,CCHD,Elderly Mental Health North,Residential Homes,Kenver House Residential Home,1210.68, 21-Feb-2012
1000,Revenue,CCHD,Southmead Hospital Purchasing,Residential Homes,Kenver House Residential Home,1510.32, 21-Feb-2012
1001,Revenue,CCHD,Elderly Mental Health North,Residential Homes,Kenver House Residential Home,1621, 21-Feb-2012
1002,Revenue,CCHD,Frenchay Hospital Purchasing,Residential Homes,Kenver House Residential Home,1621, 21-Feb-2012
1003,Revenue,CCHD,Frenchay Hospital Purchasing,Residential Homes,Kenver House Residential Home,1105.4, 21-Feb-2012
1004,Revenue,CCHD,Elderly Mental Health North,Residential Homes,Kenver House Residential Home,1178.52, 21-Feb-2012
1005,Revenue,CCHD,Elderly Mental Health North,Residential Homes,Kenver House Residential Home,1210.44, 21-Feb-2012
1006,Revenue,CCHD,Frenchay Hospital Purchasing,Residential Homes,Kenver House Residential Home,1409.04, 21-Feb-2012
1007,Revenue,CCHD,Elderly Mental Health North,Residential Homes,Kenver House Residential Home,1174.16, 21-Feb-2012
1008,Revenue,CCHD,Elderly Mental Health North,Residential Homes,Kenver House Residential Home,1387.64, 21-Feb-2012
1009,Revenue,CCHD,Elderly Purchasing - South,Residential Homes,Kenver House Residential Home,1382.24, 21-Feb-2012
1010,Revenue,CCHD,Frenchay Hospital Purchasing,Residential Homes,Kenver House Residential Home,1536.6, 21-Feb-2012
1011,Revenue,CCHD,Elderly Mental Health North,Residential Homes,Kenver House Residential Home,1447.92, 21-Feb-2012
1012,Revenue,CCHD,Elderly Mental Health North,Residential Homes,Kenver House Residential Home,1284.48, 21-Feb-2012
1013,Revenue,CCHD,Supporting People Programme,Grants to Voluntary Bodies,Keyring Living Support Networks,2577.6, 24-Feb-2012
1014,Revenue,CCHD,Supporting People Programme,Grants to Voluntary Bodies,Kingswood Young Homeless Project,15764.4, 28-Feb-2012
1015,Revenue,CCHD,Supporting People Programme,Grants to Voluntary Bodies,Kingswood Young Homeless Project,1430.13, 01-Feb-2012
1016,Revenue,CCHD,Supporting People Programme,Grants to Voluntary Bodies,Kingswood Young Homeless Project,5133.12, 01-Feb-2012
1017,Revenue,CCHD,Under 65s PWLD - KH,Residential Homes,Kisimul Group,11078.72, 21-Feb-2012
1018,Revenue,CCHD,Supporting People Programme,Grants to Voluntary Bodies,Knightstone Housing Association Limited,1718, 24-Feb-2012
1019,Revenue,CCHD,Supporting People Programme,Grants to Voluntary Bodies,Knightstone Housing Association Limited,1897.71, 24-Feb-2012
1020,Revenue,CCHD,Supporting People Programme,Grants to Voluntary Bodies,Knightstone Housing Association Limited,2115.49, 24-Feb-2012
1021,Revenue,CCHD,Supporting People Programme,Grants to Voluntary Bodies,Knightstone Housing Association Limited,2116.03, 24-Feb-2012
1022,Revenue,CCHD,Supporting People Programme,Grants to Voluntary Bodies,Knightstone Housing Association Limited,6477.99, 24-Feb-2012
1023,Revenue,CCHD,Supporting People Programme,Grants to Voluntary Bodies,Knightstone Housing Association Limited,18789.92, 24-Feb-2012
1024,Revenue,CCHD,Home Care Purch North,Other Small Contracts,Kumari Care Limited,775.12, 03-Feb-2012
1025,Revenue,CCHD,Home Care Purch South,Other Small Contracts,Kumari Care Limited,4125, 10-Feb-2012
1026,Revenue,CCHD,Home Care Purch North,Other Small Contracts,Kumari Care Limited,52.5, 10-Feb-2012
1027,Revenue,CCHD,Day Care - South,Private & Voluntary Day Care,Kumari Care Limited,210, 10-Feb-2012
1028,Revenue,CCHD,Under 65s -MH  Home Care Purch,Other Small Contracts,Kumari Care Limited,112.5, 10-Feb-2012
1029,Revenue,CCHD,Elderly MH Home Care North,Other Small Contracts,Kumari Care Limited,30, 10-Feb-2012
1030,Revenue,CCHD,PWLD Home Care - Under 65 - KH,Private & Voluntary Home Care,Kumari Care Limited,75, 10-Feb-2012
1031,Revenue,CCHD,Home Care Purch South,Other Small Contracts,Kumari Care Limited,4357.5, 03-Feb-2012
1032,Revenue,CCHD,Home Care Purch North,Other Small Contracts,Kumari Care Limited,52.5, 03-Feb-2012
1033,Revenue,CCHD,Day Care - South,Private & Voluntary Day Care,Kumari Care Limited,221.25, 03-Feb-2012
1034,Revenue,CCHD,Under 65s -MH  Home Care Purch,Other Small Contracts,Kumari Care Limited,142.5, 03-Feb-2012
1035,Revenue,CCHD,Elderly MH Home Care North,Other Small Contracts,Kumari Care Limited,45, 03-Feb-2012
1036,Revenue,CCHD,PWLD Home Care - Under 65 - KH,Private & Voluntary Home Care,Kumari Care Limited,303.75, 03-Feb-2012
1037,Revenue,CCHD,Home Care Purch South,Other Small Contracts,Kumari Care Limited,3922.5, 10-Feb-2012
1038,Revenue,CCHD,Home Care Purch North,Other Small Contracts,Kumari Care Limited,399.72, 10-Feb-2012
1039,Revenue,CCHD,Day Care - South,Private & Voluntary Day Care,Kumari Care Limited,266.25, 10-Feb-2012
1040,Revenue,CCHD,Under 65s -MH  Home Care Purch,Other Small Contracts,Kumari Care Limited,142.5, 10-Feb-2012
1041,Revenue,CCHD,Elderly MH Home Care North,Other Small Contracts,Kumari Care Limited,37.5, 10-Feb-2012
1042,Revenue,CCHD,PWLD Home Care - Under 65 - KH,Private & Voluntary Home Care,Kumari Care Limited,303.75, 10-Feb-2012
1043,Revenue,CCHD,Purchasing Phys Dis - North,Nursing Homes,Leonard Cheshire  National Account Centr,2588.28, 21-Feb-2012
1044,Revenue,CCHD,Purchasing Phys Dis - North,Residential Homes,Leonard Cheshire  National Account Centr,2303.36, 21-Feb-2012
1045,Revenue,CCHD,Under 65s PWLD - KH,Residential Homes,Leonard Cheshire  National Account Centr,2894.92, 21-Feb-2012
1046,Revenue,CCHD,Purchasing Phys Dis - North,Nursing Homes,Leonard Cheshire  National Account Centr,2693.2, 21-Feb-2012
1047,Revenue,CCHD,Elderly Purchasing - North,Residential Homes,Leonard Cheshire  National Account Centr,3084.48, 21-Feb-2012
1048,Revenue,CCHD,Purchasing Phys Dis - North,Nursing Homes,Leonard Cheshire  National Account Centr,2777.24, 21-Feb-2012
1049,Revenue,CCHD,Purchasing Phys Dis - North,Nursing Homes,Leonard Cheshire  National Account Centr,3143.8, 21-Feb-2012
1050,Revenue,CCHD,Purchasing Phys Dis - North,Residential Homes,Leonard Cheshire  National Account Centr,2837.08, 21-Feb-2012
1051,Revenue,CCHD,Elderly Purchasing - North,Nursing Homes,Leonard Cheshire  National Account Centr,3464.96, 21-Feb-2012
1052,Revenue,CCHD,Elderly Purchasing - South,Nursing Homes,Leonard Cheshire  National Account Centr,2878.32, 21-Feb-2012
1053,Revenue,CCHD,Southmead Hospital Purchasing,Nursing Homes,Leonard Cheshire  National Account Centr,2940.48, 21-Feb-2012
1054,Revenue,CCHD,South Glos Users in all other LA Homes,Nursing Homes,Leonard Cheshire  National Account Centr,598.4, 21-Feb-2012
1055,Revenue,CCHD,Purchasing Phys Dis - North,Nursing Homes,Leonard Cheshire  National Account Centr,3235.6, 21-Feb-2012
1056,Revenue,CCHD,Frenchay Hospital Purchasing,Residential Homes,Leonard Cheshire  National Account Centr,3687.8, 21-Feb-2012
1057,Revenue,CCHD,Under 65s PWLD - KD,Residential Homes,Littlecroft Residential Homes  Longcroft,6427.88, 21-Feb-2012
1058,Revenue,CCHD,Supported Living - PS,Private & Voluntary Home Care,Lloyds TSB Commercial Finance Limited,6062.1, 20-Feb-2012
1059,Revenue,CCHD,Supported Living - KH,Private & Voluntary Home Care,Lloyds TSB Commercial Finance Limited,5589.25, 17-Feb-2012
1060,Revenue,CCHD,Supported Living - KH,Private & Voluntary Home Care,Lloyds TSB Commercial Finance Limited,5542.39, 17-Feb-2012
1061,Revenue,CCHD,Supported Living - KD,Private & Voluntary Home Care,Lloyds TSB Commercial Finance Limited,3795.82, 27-Feb-2012
1062,Revenue,CCHD,Supported Living - KD,Private & Voluntary Home Care,Lloyds TSB Commercial Finance Limited,3813.99, 24-Feb-2012
1063,Revenue,CCHD,Supported Living - PS,Private & Voluntary Home Care,Lloyds TSB Commercial Finance Limited,4052.28, 28-Feb-2012
1064,Revenue,CCHD,Supported Living - PS,Private & Voluntary Home Care,Lloyds TSB Commercial Finance Limited,3655.29, 28-Feb-2012
1065,Revenue,CCHD,Supported Living - PS,Private & Voluntary Home Care,Lloyds TSB Commercial Finance Limited,3608.55, 28-Feb-2012
1066,Revenue,CCHD,Home Care Purch South,Other Small Contracts,Lloyds TSB Commercial Finance Limited,1307.2, 10-Feb-2012
1067,Revenue,CCHD,Home Care Purch North,Other Small Contracts,Lloyds TSB Commercial Finance Limited,5829.2, 10-Feb-2012
1068,Revenue,CCHD,Day Care - South,Private & Voluntary Day Care,Lloyds TSB Commercial Finance Limited,79.8, 10-Feb-2012
1069,Revenue,CCHD,Day Care - North,Private & Voluntary Day Care,Lloyds TSB Commercial Finance Limited,421.8, 10-Feb-2012
1070,Revenue,CCHD,Elderly MH Home Care North,Other Small Contracts,Lloyds TSB Commercial Finance Limited,285, 10-Feb-2012
1071,Revenue,CCHD,Elderly MH Day Care North,Private & Voluntary Day Care,Lloyds TSB Commercial Finance Limited,45.6, 10-Feb-2012
1072,Revenue,CCHD,Home Care Purch South,Other Small Contracts,Lloyds TSB Commercial Finance Limited,1056.4, 28-Feb-2012
1073,Revenue,CCHD,Home Care Purch North,Other Small Contracts,Lloyds TSB Commercial Finance Limited,5073, 28-Feb-2012
1074,Revenue,CCHD,Day Care - South,Private & Voluntary Day Care,Lloyds TSB Commercial Finance Limited,125.4, 28-Feb-2012
1075,Revenue,CCHD,Day Care - North,Private & Voluntary Day Care,Lloyds TSB Commercial Finance Limited,562.4, 28-Feb-2012
1076,Revenue,CCHD,Elderly MH Home Care North,Other Small Contracts,Lloyds TSB Commercial Finance Limited,741, 28-Feb-2012
1077,Revenue,CCHD,Elderly MH Day Care North,Private & Voluntary Day Care,Lloyds TSB Commercial Finance Limited,45.6, 28-Feb-2012
1078,Revenue,CCHD,Home Care Purch South,Other Small Contracts,Lloyds TSB Commercial Finance Limited,1333.8, 10-Feb-2012
1079,Revenue,CCHD,Home Care Purch North,Other Small Contracts,Lloyds TSB Commercial Finance Limited,5491, 10-Feb-2012
1080,Revenue,CCHD,Day Care - South,Private & Voluntary Day Care,Lloyds TSB Commercial Finance Limited,95, 10-Feb-2012
1081,Revenue,CCHD,Day Care - North,Private & Voluntary Day Care,Lloyds TSB Commercial Finance Limited,604.2, 10-Feb-2012
1082,Revenue,CCHD,Elderly MH Home Care North,Other Small Contracts,Lloyds TSB Commercial Finance Limited,653.6, 10-Feb-2012
1083,Revenue,CCHD,Elderly MH Day Care North,Private & Voluntary Day Care,Lloyds TSB Commercial Finance Limited,53.2, 10-Feb-2012
1084,Revenue,CCHD,Home Care Purch South,Other Small Contracts,Lloyds TSB Commercial Finance Limited,1345.2, 10-Feb-2012
1085,Revenue,CCHD,Home Care Purch North,Other Small Contracts,Lloyds TSB Commercial Finance Limited,5749.4, 10-Feb-2012
1086,Revenue,CCHD,Day Care - South,Private & Voluntary Day Care,Lloyds TSB Commercial Finance Limited,95, 10-Feb-2012
1087,Revenue,CCHD,Day Care - North,Private & Voluntary Day Care,Lloyds TSB Commercial Finance Limited,566.2, 10-Feb-2012
1088,Revenue,CCHD,Elderly MH Home Care North,Other Small Contracts,Lloyds TSB Commercial Finance Limited,269.8, 10-Feb-2012
1089,Revenue,CCHD,Elderly MH Day Care North,Private & Voluntary Day Care,Lloyds TSB Commercial Finance Limited,45.6, 10-Feb-2012
1090,Revenue,CCHD,Home Care Purch South,Other Small Contracts,Lloyds TSB Commercial Finance Limited,946.2, 28-Feb-2012
1091,Revenue,CCHD,Home Care Purch North,Other Small Contracts,Lloyds TSB Commercial Finance Limited,5331.4, 28-Feb-2012
1092,Revenue,CCHD,Day Care - South,Private & Voluntary Day Care,Lloyds TSB Commercial Finance Limited,91.2, 28-Feb-2012
1093,Revenue,CCHD,Day Care - North,Private & Voluntary Day Care,Lloyds TSB Commercial Finance Limited,543.4, 28-Feb-2012
1094,Revenue,CCHD,Elderly MH Home Care North,Other Small Contracts,Lloyds TSB Commercial Finance Limited,661.2, 28-Feb-2012
1095,Revenue,CCHD,Elderly MH Day Care North,Private & Voluntary Day Care,Lloyds TSB Commercial Finance Limited,45.6, 28-Feb-2012
1096,Revenue,CCHD,Supported Living - KD,Private & Voluntary Home Care,Lloyds TSB Commercial Finance Limited,3409.09, 27-Feb-2012
1097,Revenue,CCHD,Supported Living - KH,Private & Voluntary Home Care,Lloyds TSB Commercial Finance Limited,3549.31, 17-Feb-2012
1098,Revenue,CCHD,Home Care Purch South,Other Small Contracts,Lloyds TSB Commercial Finance Limited,1356.6, 10-Feb-2012
1099,Revenue,CCHD,Home Care Purch North,Other Small Contracts,Lloyds TSB Commercial Finance Limited,5730.4, 10-Feb-2012
1100,Revenue,CCHD,Day Care - South,Private & Voluntary Day Care,Lloyds TSB Commercial Finance Limited,117.8, 10-Feb-2012
1101,Revenue,CCHD,Day Care - North,Private & Voluntary Day Care,Lloyds TSB Commercial Finance Limited,505.4, 10-Feb-2012
1102,Revenue,CCHD,Elderly MH Home Care North,Other Small Contracts,Lloyds TSB Commercial Finance Limited,691.6, 10-Feb-2012
1103,Revenue,CCHD,Elderly MH Day Care North,Private & Voluntary Day Care,Lloyds TSB Commercial Finance Limited,38, 10-Feb-2012
1104,Revenue,CCHD,Supported Living - KH,Private & Voluntary Home Care,Lloyds TSB Commercial Finance Limited,533.8, 17-Feb-2012
1105,Revenue,CCHD,Supported Living - KH,Private & Voluntary Home Care,Lloyds TSB Commercial Finance Limited,580.9, 17-Feb-2012
1106,Revenue,CCHD,Under 65s PWLD - KH,Residential Homes,Longton Court,9361.2, 21-Feb-2012
1107,Revenue,CCHD,Social Lettings Agency,Other Supplies & Services,Individual,565, 06-Feb-2012
1108,Revenue,CCHD,Under 65s PWLD - KH,Residential Homes,Lufton Manor College,1182.97, 21-Feb-2012
1109,Revenue,CCHD,Southmead Hospital Purchasing,Nursing Homes,Majestic 3 Limited,1017.44, 21-Feb-2012
1110,Revenue,CCHD,Elderly Purchasing - South,Residential Homes,Manor Cottage,738.68, 21-Feb-2012
1111,Revenue,CCHD,Elderly Purchasing - South,Residential Homes,Manor Cottage,1421.44, 21-Feb-2012
1112,Revenue,CCHD,Elderly Purchasing - South,Residential Homes,Manor Cottage,1296.68, 21-Feb-2012
1113,Revenue,CCHD,Elderly Purchasing - North,Residential Homes,Manton Hall Residential Home,1460.76, 21-Feb-2012
1114,Revenue,CCHD,Supporting People Programme,Grants to Voluntary Bodies,Maples Community Housing Limited,2315.44, 28-Feb-2012
1115,Revenue,CCHD,Supporting People Programme,Grants to Voluntary Bodies,Maples Community Housing Limited,2401.2, 01-Feb-2012
1116,Revenue,CCHD,Under 65s PWLD - PS,Residential Homes,Marsden Healthcare Limited,865.12, 17-Feb-2012
1117,Revenue,CCHD,Elderly PWLD - PS,Residential Homes,Marsden Healthcare Limited,3134.56, 17-Feb-2012
1118,Revenue,CCHD,Elderly PWLD - PS,Residential Homes,Marsden Healthcare Limited,24513.21, 17-Feb-2012
1119,Revenue,CCHD,Elderly PWLD - KH,Residential Homes,Marsden Healthcare Limited,1481.4, 17-Feb-2012
1120,Revenue,CCHD,Woodleaze,Prop.Serv. General Repairs,Mat Fire Systems Limited,860, 17-Feb-2012
1121,Revenue,CCHD,Elderly Mental Health North,Nursing Homes,Meadow Care Home,2905.92, 21-Feb-2012
1122,Revenue,CCHD,Home Care Purch South,Private & Voluntary Home Care,Mears Care,47442.58, 28-Feb-2012
1123,Revenue,CCHD,Home Care Purch South,Other Small Contracts,Mears Care,597.6, 03-Feb-2012
1124,Revenue,CCHD,Home Care Purch North,Other Small Contracts,Mears Care,6430.8, 03-Feb-2012
1125,Revenue,CCHD,Day Care - South,Private & Voluntary Day Care,Mears Care,201.6, 03-Feb-2012
1126,Revenue,CCHD,Day Care - North,Private & Voluntary Day Care,Mears Care,266.4, 03-Feb-2012
1127,Revenue,CCHD,Under 65s -MH  Home Care Purch,Other Small Contracts,Mears Care,108, 03-Feb-2012
1128,Revenue,CCHD,Elderly MH Home Care North,Other Small Contracts,Mears Care,741.6, 03-Feb-2012
1129,Revenue,CCHD,Elderly MH Day Care North,Private & Voluntary Day Care,Mears Care,37.6, 03-Feb-2012
1130,Revenue,CCHD,Home Care - Elderly LD - KH,Private & Voluntary Home Care,Mears Care,43.2, 03-Feb-2012
1131,Revenue,CCHD,Home Care Purch South,Other Small Contracts,Mears Care,619.2, 03-Feb-2012
1132,Revenue,CCHD,Home Care Purch North,Other Small Contracts,Mears Care,6387.9, 03-Feb-2012
1133,Revenue,CCHD,Day Care - South,Private & Voluntary Day Care,Mears Care,201.6, 03-Feb-2012
1134,Revenue,CCHD,Day Care - North,Private & Voluntary Day Care,Mears Care,309.6, 03-Feb-2012
1135,Revenue,CCHD,Under 65s -MH  Home Care Purch,Other Small Contracts,Mears Care,108, 03-Feb-2012
1136,Revenue,CCHD,Elderly MH Home Care North,Other Small Contracts,Mears Care,748.8, 03-Feb-2012
1137,Revenue,CCHD,Elderly MH Day Care North,Private & Voluntary Day Care,Mears Care,66.4, 03-Feb-2012
1138,Revenue,CCHD,Home Care - Elderly LD - KH,Private & Voluntary Home Care,Mears Care,50.4, 03-Feb-2012
1139,Revenue,CCHD,Home Care Purch South,Other Small Contracts,Mears Care,626.4, 28-Feb-2012
1140,Revenue,CCHD,Home Care Purch North,Other Small Contracts,Mears Care,6250.2, 28-Feb-2012
1141,Revenue,CCHD,Day Care - South,Private & Voluntary Day Care,Mears Care,205.2, 28-Feb-2012
1142,Revenue,CCHD,Day Care - North,Private & Voluntary Day Care,Mears Care,273.6, 28-Feb-2012
1143,Revenue,CCHD,Under 65s -MH  Home Care Purch,Other Small Contracts,Mears Care,108, 28-Feb-2012
1144,Revenue,CCHD,Elderly MH Home Care North,Other Small Contracts,Mears Care,745.2, 28-Feb-2012
1145,Revenue,CCHD,Elderly MH Day Care North,Private & Voluntary Day Care,Mears Care,95.2, 28-Feb-2012
1146,Revenue,CCHD,Home Care - Elderly LD - KH,Private & Voluntary Home Care,Mears Care,50.4, 28-Feb-2012
1147,Revenue,CCHD,Home Care Purch South,Other Small Contracts,Mears Care,604.8, 28-Feb-2012
1148,Revenue,CCHD,Home Care Purch North,Other Small Contracts,Mears Care,6235.2, 28-Feb-2012
1149,Revenue,CCHD,Day Care - South,Private & Voluntary Day Care,Mears Care,216, 28-Feb-2012
1150,Revenue,CCHD,Day Care - North,Private & Voluntary Day Care,Mears Care,262.8, 28-Feb-2012
1151,Revenue,CCHD,Under 65s -MH  Home Care Purch,Other Small Contracts,Mears Care,108, 28-Feb-2012
1152,Revenue,CCHD,Elderly MH Home Care North,Other Small Contracts,Mears Care,766.8, 28-Feb-2012
1153,Revenue,CCHD,Elderly MH Day Care North,Private & Voluntary Day Care,Mears Care,95.2, 28-Feb-2012
1154,Revenue,CCHD,Home Care - Elderly LD - KH,Private & Voluntary Home Care,Mears Care,50.4, 28-Feb-2012
1155,Revenue,CCHD,Home Care Purch South,Other Small Contracts,Medacs Home Care,57.8, 10-Feb-2012
1156,Revenue,CCHD,Home Care Purch North,Other Small Contracts,Medacs Home Care,1077.8, 10-Feb-2012
1157,Revenue,CCHD,Elderly MH Home Care North,Other Small Contracts,Medacs Home Care,119, 10-Feb-2012
1158,Revenue,CCHD,Elderly MH Day Care North,Private & Voluntary Day Care,Medacs Home Care,34, 10-Feb-2012
1159,Revenue,CCHD,Home Care Purch South,Other Small Contracts,Medacs Home Care,54.4, 10-Feb-2012
1160,Revenue,CCHD,Home Care Purch North,Other Small Contracts,Medacs Home Care,1003, 10-Feb-2012
1161,Revenue,CCHD,Elderly MH Home Care North,Other Small Contracts,Medacs Home Care,129.2, 10-Feb-2012
1162,Revenue,CCHD,Home Care Purch South,Other Small Contracts,Medacs Home Care,54.4, 10-Feb-2012
1163,Revenue,CCHD,Home Care Purch North,Other Small Contracts,Medacs Home Care,1125.4, 10-Feb-2012
1164,Revenue,CCHD,Day Care - North,Private & Voluntary Day Care,Medacs Home Care,23.8, 10-Feb-2012
1165,Revenue,CCHD,Elderly MH Home Care North,Other Small Contracts,Medacs Home Care,112.2, 10-Feb-2012
1166,Revenue,CCHD,Elderly MH Day Care North,Private & Voluntary Day Care,Medacs Home Care,34, 10-Feb-2012
1167,Revenue,CCHD,Home Care Purch South,Other Small Contracts,Medacs Home Care,54.4, 28-Feb-2012
1168,Revenue,CCHD,Home Care Purch North,Other Small Contracts,Medacs Home Care,1101.6, 28-Feb-2012
1169,Revenue,CCHD,Day Care - North,Private & Voluntary Day Care,Medacs Home Care,37.4, 28-Feb-2012
1170,Revenue,CCHD,Elderly MH Home Care North,Other Small Contracts,Medacs Home Care,119, 28-Feb-2012
1171,Revenue,CCHD,Elderly MH Day Care North,Private & Voluntary Day Care,Medacs Home Care,34, 28-Feb-2012
1172,Revenue,CCHD,NRS Contract,Daily Living Equipment,Medequip Assistive Technology Ltd,34569.34, 15-Feb-2012
1173,Revenue,CCHD,NRS Contract,Daily Living Equipment,Medequip Assistive Technology Ltd,60392.95, 15-Feb-2012
1174,Revenue,CCHD,NRS Contract,Other Supplies & Services,Medequip Assistive Technology Ltd,12933.06, 15-Feb-2012
1175,Revenue,CCHD,Home Care Purch South,Other Small Contracts,Medico Nursing & Homecare Ltd,2133.1, 10-Feb-2012
1176,Revenue,CCHD,Home Care Purch North,Other Small Contracts,Medico Nursing & Homecare Ltd,6572.96, 10-Feb-2012
1177,Revenue,CCHD,Day Care - South,Private & Voluntary Day Care,Medico Nursing & Homecare Ltd,33.2, 10-Feb-2012
1178,Revenue,CCHD,Day Care - North,Private & Voluntary Day Care,Medico Nursing & Homecare Ltd,626.65, 10-Feb-2012
1179,Revenue,CCHD,Elderly MH Home Care North,Other Small Contracts,Medico Nursing & Homecare Ltd,1049.94, 10-Feb-2012
1180,Revenue,CCHD,Elderly MH Day Care North,Private & Voluntary Day Care,Medico Nursing & Homecare Ltd,199.2, 10-Feb-2012
1181,Revenue,CCHD,PWLD Home Care - Under 65 - PS,Private & Voluntary Home Care,Medico Nursing & Homecare Ltd,348.6, 10-Feb-2012
1182,Revenue,CCHD,PWLD Home Care - Under 65 - KH,Private & Voluntary Home Care,Medico Nursing & Homecare Ltd,402.55, 10-Feb-2012
1183,Revenue,CCHD,Home Care Purch South,Other Small Contracts,Medico Nursing & Homecare Ltd,2133.1, 03-Feb-2012
1184,Revenue,CCHD,Home Care Purch North,Other Small Contracts,Medico Nursing & Homecare Ltd,8183.8, 03-Feb-2012
1185,Revenue,CCHD,Day Care - South,Private & Voluntary Day Care,Medico Nursing & Homecare Ltd,70.55, 03-Feb-2012
1186,Revenue,CCHD,Day Care - North,Private & Voluntary Day Care,Medico Nursing & Homecare Ltd,755.3, 03-Feb-2012
1187,Revenue,CCHD,Elderly MH Home Care North,Other Small Contracts,Medico Nursing & Homecare Ltd,1045.8, 03-Feb-2012
1188,Revenue,CCHD,Elderly MH Day Care North,Private & Voluntary Day Care,Medico Nursing & Homecare Ltd,149.4, 03-Feb-2012
1189,Revenue,CCHD,PWLD Home Care - Under 65 - PS,Private & Voluntary Home Care,Medico Nursing & Homecare Ltd,269.75, 03-Feb-2012
1190,Revenue,CCHD,PWLD Home Care - Under 65 - KD,Private & Voluntary Home Care,Medico Nursing & Homecare Ltd,124.5, 03-Feb-2012
1191,Revenue,CCHD,PWLD Home Care - Under 65 - KH,Private & Voluntary Home Care,Medico Nursing & Homecare Ltd,622.5, 03-Feb-2012
1192,Revenue,CCHD,Home Care Purch South,Other Small Contracts,Medico Nursing & Homecare Ltd,2182.9, 03-Feb-2012
1193,Revenue,CCHD,Home Care Purch North,Other Small Contracts,Medico Nursing & Homecare Ltd,7976.3, 03-Feb-2012
1194,Revenue,CCHD,Day Care - South,Private & Voluntary Day Care,Medico Nursing & Homecare Ltd,58.1, 03-Feb-2012
1195,Revenue,CCHD,Day Care - North,Private & Voluntary Day Care,Medico Nursing & Homecare Ltd,722.1, 03-Feb-2012
1196,Revenue,CCHD,Elderly MH Home Care North,Other Small Contracts,Medico Nursing & Homecare Ltd,1037.5, 03-Feb-2012
1197,Revenue,CCHD,Elderly MH Day Care North,Private & Voluntary Day Care,Medico Nursing & Homecare Ltd,149.4, 03-Feb-2012
1198,Revenue,CCHD,PWLD Home Care - Under 65 - PS,Private & Voluntary Home Care,Medico Nursing & Homecare Ltd,265.6, 03-Feb-2012
1199,Revenue,CCHD,PWLD Home Care - Under 65 - KD,Private & Voluntary Home Care,Medico Nursing & Homecare Ltd,107.9, 03-Feb-2012
1200,Revenue,CCHD,PWLD Home Care - Under 65 - KH,Private & Voluntary Home Care,Medico Nursing & Homecare Ltd,655.7, 03-Feb-2012
1201,Revenue,CCHD,Home Care Purch South,Other Small Contracts,Medico Nursing & Homecare Ltd,2091.6, 03-Feb-2012
1202,Revenue,CCHD,Home Care Purch North,Other Small Contracts,Medico Nursing & Homecare Ltd,7623.08, 03-Feb-2012
1203,Revenue,CCHD,Day Care - South,Private & Voluntary Day Care,Medico Nursing & Homecare Ltd,66.4, 03-Feb-2012
1204,Revenue,CCHD,Day Care - North,Private & Voluntary Day Care,Medico Nursing & Homecare Ltd,680.6, 03-Feb-2012
1205,Revenue,CCHD,Elderly MH Home Care North,Other Small Contracts,Medico Nursing & Homecare Ltd,1054.1, 03-Feb-2012
1206,Revenue,CCHD,Elderly MH Day Care North,Private & Voluntary Day Care,Medico Nursing & Homecare Ltd,149.4, 03-Feb-2012
1207,Revenue,CCHD,PWLD Home Care - Under 65 - PS,Private & Voluntary Home Care,Medico Nursing & Homecare Ltd,265.6, 03-Feb-2012
1208,Revenue,CCHD,PWLD Home Care - Under 65 - KD,Private & Voluntary Home Care,Medico Nursing & Homecare Ltd,124.5, 03-Feb-2012
1209,Revenue,CCHD,PWLD Home Care - Under 65 - KH,Private & Voluntary Home Care,Medico Nursing & Homecare Ltd,659.85, 03-Feb-2012
1210,Revenue,CCHD,Home Care Purch South,Other Small Contracts,Medico Nursing & Homecare Ltd,2033.5, 10-Feb-2012
1211,Revenue,CCHD,Home Care Purch North,Other Small Contracts,Medico Nursing & Homecare Ltd,6395.67, 10-Feb-2012
1212,Revenue,CCHD,Day Care - South,Private & Voluntary Day Care,Medico Nursing & Homecare Ltd,74.7, 10-Feb-2012
1213,Revenue,CCHD,Day Care - North,Private & Voluntary Day Care,Medico Nursing & Homecare Ltd,514.6, 10-Feb-2012
1214,Revenue,CCHD,Elderly MH Home Care North,Other Small Contracts,Medico Nursing & Homecare Ltd,859.05, 10-Feb-2012
1215,Revenue,CCHD,Elderly MH Day Care North,Private & Voluntary Day Care,Medico Nursing & Homecare Ltd,149.4, 10-Feb-2012
1216,Revenue,CCHD,PWLD Home Care - Under 65 - PS,Private & Voluntary Home Care,Medico Nursing & Homecare Ltd,240.7, 10-Feb-2012
1217,Revenue,CCHD,PWLD Home Care - Under 65 - KD,Private & Voluntary Home Care,Medico Nursing & Homecare Ltd,124.5, 10-Feb-2012
1218,Revenue,CCHD,PWLD Home Care - Under 65 - KH,Private & Voluntary Home Care,Medico Nursing & Homecare Ltd,456.5, 10-Feb-2012
1219,Revenue,CCHD,Home Care Purch South,Other Small Contracts,Medico Nursing & Homecare Ltd,2104.05, 03-Feb-2012
1220,Revenue,CCHD,Home Care Purch North,Other Small Contracts,Medico Nursing & Homecare Ltd,8134, 03-Feb-2012
1221,Revenue,CCHD,Day Care - South,Private & Voluntary Day Care,Medico Nursing & Homecare Ltd,99.6, 03-Feb-2012
1222,Revenue,CCHD,Day Care - North,Private & Voluntary Day Care,Medico Nursing & Homecare Ltd,477.25, 03-Feb-2012
1223,Revenue,CCHD,Elderly MH Home Care North,Other Small Contracts,Medico Nursing & Homecare Ltd,1058.25, 03-Feb-2012
1224,Revenue,CCHD,Elderly MH Day Care North,Private & Voluntary Day Care,Medico Nursing & Homecare Ltd,149.4, 03-Feb-2012
1225,Revenue,CCHD,PWLD Home Care - Under 65 - PS,Private & Voluntary Home Care,Medico Nursing & Homecare Ltd,265.6, 03-Feb-2012
1226,Revenue,CCHD,PWLD Home Care - Under 65 - KD,Private & Voluntary Home Care,Medico Nursing & Homecare Ltd,124.5, 03-Feb-2012
1227,Revenue,CCHD,PWLD Home Care - Under 65 - KH,Private & Voluntary Home Care,Medico Nursing & Homecare Ltd,655.7, 03-Feb-2012
1228,Revenue,CCHD,Under 65s PWLD - KH,Residential Homes,Mencap,2173.8, 21-Feb-2012
1229,Revenue,CCHD,Learning Difficulties Development Fund,Other Supplies & Services,Mencap Employment,1792, 13-Feb-2012
1230,Revenue,CCHD,Supporting People Programme,Grants to Voluntary Bodies,Merlin Housing Society,887.67, 24-Feb-2012
1231,Revenue,CCHD,Supporting People Programme,Grants to Voluntary Bodies,Merlin Housing Society,2095.2, 24-Feb-2012
1232,Revenue,CCHD,Supporting People Programme,Grants to Voluntary Bodies,Merlin Housing Society,2108.22, 24-Feb-2012
1233,Revenue,CCHD,Supporting People Programme,Grants to Voluntary Bodies,Merlin Housing Society,2330.14, 24-Feb-2012
1234,Revenue,CCHD,Supporting People Programme,Grants to Voluntary Bodies,Merlin Housing Society,13315.63, 24-Feb-2012
1235,Revenue,CCHD,Supporting People Programme,Grants to Voluntary Bodies,Merlin Housing Society,39945.21, 24-Feb-2012
1236,Revenue,CCHD,Intermediate Care Accommodation,Other Supplies & Services,Merlin Housing Society,925.72, 21-Feb-2012
1237,Revenue,CCHD,Intermediate Care Accommodation,Other Supplies & Services,Merlin Housing Society,1157.15, 23-Feb-2012
1238,Revenue,CCHD,Home Care Purch South,Other Small Contracts,Milestones Outreach Dementia Services,521.25, 01-Feb-2012
1239,Revenue,CCHD,Day Care - South,Private & Voluntary Day Care,Milestones Outreach Dementia Services,45, 01-Feb-2012
1240,Revenue,CCHD,Day Care - North,Private & Voluntary Day Care,Milestones Outreach Dementia Services,60, 01-Feb-2012
1241,Revenue,CCHD,Elderly MH Home Care North,Other Small Contracts,Milestones Outreach Dementia Services,896.25, 01-Feb-2012
1242,Revenue,CCHD,Elderly MH Day Care North,Private & Voluntary Day Care,Milestones Outreach Dementia Services,656.25, 01-Feb-2012
1243,Revenue,CCHD,Home Care Purch South,Other Small Contracts,Milestones Outreach Dementia Services,487.5, 02-Feb-2012
1244,Revenue,CCHD,Day Care - South,Private & Voluntary Day Care,Milestones Outreach Dementia Services,30, 02-Feb-2012
1245,Revenue,CCHD,Elderly MH Home Care North,Other Small Contracts,Milestones Outreach Dementia Services,757.5, 02-Feb-2012
1246,Revenue,CCHD,Elderly MH Day Care North,Private & Voluntary Day Care,Milestones Outreach Dementia Services,791.25, 02-Feb-2012
1247,Revenue,CCHD,Supported Living (S28a) South,Private & Voluntary Home Care,Milestones Trust,4577.9, 24-Feb-2012
1248,Revenue,CCHD,Supported Living (S28a) South,Private & Voluntary Home Care,Milestones Trust,3666.35, 21-Feb-2012
1249,Revenue,CCHD,Supported Living - KD,Private & Voluntary Home Care,Milestones Trust,1647.79, 09-Feb-2012
1250,Revenue,CCHD,Elderly MH Day Care North,Private & Voluntary Day Care,Milestones Trust,544.83, 09-Feb-2012
1251,Revenue,CCHD,Elderly MH Day Care North,Private & Voluntary Day Care,Milestones Trust,536.05, 10-Feb-2012
1252,Revenue,CCHD,Elderly MH Day Care North,Private & Voluntary Day Care,Milestones Trust,544.49, 10-Feb-2012
1253,Revenue,CCHD,Younger MH non-res purchasing,Private & Voluntary Day Care,Milestones Trust,753.05, 10-Feb-2012
1254,Revenue,CCHD,Day Care - South,Private & Voluntary Day Care,Milestones Trust,669.1, 16-Feb-2012
1255,Revenue,CCHD,Elderly MH Day Care North,Private & Voluntary Day Care,Milestones Trust,1039.5, 10-Feb-2012
1256,Revenue,CCHD,Elderly MH Day Care North,Private & Voluntary Day Care,Milestones Trust,639.21, 10-Feb-2012
1257,Revenue,CCHD,Supported Living (S28a) South,Private & Voluntary Home Care,Milestones Trust,938.8, 02-Feb-2012
1258,Revenue,CCHD,Supported Living - PS,Private & Voluntary Home Care,Milestones Trust,551.32, 07-Feb-2012
1259,Revenue,CCHD,Supported Living - PS,Private & Voluntary Home Care,Milestones Trust,812.35, 07-Feb-2012
1260,Revenue,CCHD,Supported Living - PS,Private & Voluntary Home Care,Milestones Trust,799.2, 07-Feb-2012
1261,Revenue,CCHD,Supported Living - KH,Private & Voluntary Home Care,Milestones Trust,1262.85, 28-Feb-2012
1262,Revenue,CCHD,Supported Living - KH,Private & Voluntary Home Care,Milestones Trust,2713.84, 28-Feb-2012
1263,Revenue,CCHD,Supported Living - KD,Private & Voluntary Home Care,Milestones Trust,4510.66, 06-Feb-2012
1264,Revenue,CCHD,Supported Living - PS,Private & Voluntary Home Care,Milestones Trust,1568.51, 13-Feb-2012
1265,Revenue,CCHD,Supported Living (S28a) South,Private & Voluntary Home Care,Milestones Trust,597.75, 02-Feb-2012
1266,Revenue,CCHD,Purchase of Non-Res Care - PS,Private & Voluntary Day Care,Milestones Trust,757.21, 14-Feb-2012
1267,Revenue,CCHD,Purchase of Non-Res Care - KH,Private & Voluntary Day Care,Milestones Trust,1165.05, 28-Feb-2012
1268,Revenue,CCHD,Purchase of Non-Res Care - PS,Private & Voluntary Day Care,Milestones Trust,1199.59, 13-Feb-2012
1269,Revenue,CCHD,Purchase of Non-Res Care - PS,Private & Voluntary Day Care,Milestones Trust,1180.8, 20-Feb-2012
1270,Revenue,CCHD,Purchase of Non-Res Care - PS,Private & Voluntary Day Care,Milestones Trust,1296.2, 13-Feb-2012
1271,Revenue,CCHD,Purchase of Non-Res Care - KH,Private & Voluntary Day Care,Milestones Trust,1296.52, 28-Feb-2012
1272,Revenue,CCHD,Purchase of Non-Res Care - KH,Private & Voluntary Day Care,Milestones Trust,1061.1, 28-Feb-2012
1273,Revenue,CCHD,Purchase of Non-Res Care - KH,Private & Voluntary Day Care,Milestones Trust,812.43, 28-Feb-2012
1274,Revenue,CCHD,Purchase of Non-Res Care - PS,Private & Voluntary Day Care,Milestones Trust,1029.11, 27-Feb-2012
1275,Revenue,CCHD,Purchase of Non-Res Care - KH,Private & Voluntary Day Care,Milestones Trust,1264.64, 28-Feb-2012
1276,Revenue,CCHD,Supported Living - PS,Private & Voluntary Home Care,Milestones Trust,1084.28, 07-Feb-2012
1277,Revenue,CCHD,Supported Living - KD,Private & Voluntary Home Care,Milestones Trust,1523.11, 23-Feb-2012
1278,Revenue,CCHD,Supported Living - KH,Private & Voluntary Home Care,Milestones Trust,926.1, 28-Feb-2012
1279,Revenue,CCHD,Supported Living (S28a) South,Private & Voluntary Home Care,Milestones Trust,1286.74, 22-Feb-2012
1280,Revenue,CCHD,Supported Living (S28a) South,Private & Voluntary Home Care,Milestones Trust,5179.2, 24-Feb-2012
1281,Revenue,CCHD,Supported Living (S28a) South,Private & Voluntary Home Care,Milestones Trust,5179.2, 24-Feb-2012
1282,Revenue,CCHD,Supported Living (S28a) South,Private & Voluntary Home Care,Milestones Trust,4577.9, 24-Feb-2012
1283,Revenue,CCHD,Supported Living (S28a) South,Private & Voluntary Home Care,Milestones Trust,4577.9, 24-Feb-2012
1284,Revenue,CCHD,Supported Living (S28a) South,Private & Voluntary Home Care,Milestones Trust,4637.64, 24-Feb-2012
1285,Revenue,CCHD,Supported Living (S28a) South,Private & Voluntary Home Care,Milestones Trust,8751.52, 24-Feb-2012
1286,Revenue,CCHD,Supported Living (S28a) South,Private & Voluntary Home Care,Milestones Trust,11531.55, 24-Feb-2012
1287,Revenue,CCHD,Supported Living (S28a) South,Private & Voluntary Home Care,Milestones Trust,3761.75, 24-Feb-2012
1288,Revenue,CCHD,Supported Living (S28a) South,Private & Voluntary Home Care,Milestones Trust,3792.8, 24-Feb-2012
1289,Revenue,CCHD,Supported Living (S28a) South,Private & Voluntary Home Care,Milestones Trust,3970.96, 24-Feb-2012
1290,Revenue,CCHD,Supported Living (S28a) South,Private & Voluntary Home Care,Milestones Trust,6650.74, 24-Feb-2012
1291,Revenue,CCHD,Supported Living (S28a) South,Private & Voluntary Home Care,Milestones Trust,998.55, 29-Feb-2012
1292,Revenue,CCHD,Supported Living (S28a) South,Private & Voluntary Home Care,Milestones Trust,700.1, 29-Feb-2012
1293,Revenue,CCHD,Under 65s PWLD - PS,Residential Homes,Miller Farm,3305, 21-Feb-2012
1294,Revenue,CCHD,Section 117 Placements North,Nursing Homes,Mimosa Healthcare Holdings Ltd,1888, 21-Feb-2012
1295,Revenue,CCHD,Under 65s PWLD - KH,Residential Homes,Mmcg  Westcourt,12745.2, 21-Feb-2012
1296,Revenue,CCHD,Elderly Purchasing - North,Nursing Homes,Mortimer House Nursing Home,2552.88, 17-Feb-2012
1297,Revenue,CCHD,S28A - Over 65 South,Nursing Homes,Mortimer House Nursing Home,2521.56, 17-Feb-2012
1298,Revenue,CCHD,S28A - Over 65 South,Nursing Homes,Mortimer House Nursing Home,2953, 17-Feb-2012
1299,Revenue,CCHD,S28A - Over 65 South,Nursing Homes,Mortimer House Nursing Home,15354, 17-Feb-2012
1300,Revenue,CCHD,S28A - Over 65 South,Nursing Homes,Mortimer House Nursing Home,2521.56, 17-Feb-2012
1301,Revenue,CCHD,S28A - Over 65 South,Nursing Homes,Mortimer House Nursing Home,3227.8, 17-Feb-2012
1302,Revenue,CCHD,Elderly PWLD - PS,Nursing Homes,Mortimer House Nursing Home,2910.2, 17-Feb-2012
1303,Revenue,CCHD,S28A - Over 65 South,Nursing Homes,Mortimer House Nursing Home,3233, 17-Feb-2012
1304,Revenue,CCHD,Southmead Hospital Purchasing,Residential Homes,Mostyn Lodge Residential Home,1253, 21-Feb-2012
1305,Revenue,CCHD,Section 117 Placements North,Residential Homes,Mostyn Lodge Residential Home,1848, 21-Feb-2012
1306,Revenue,CCHD,Supported Living - PS,Private & Voluntary Home Care,Moving On,3650.73, 13-Feb-2012
1307,Revenue,CCHD,Supported Living - PS,Private & Voluntary Home Care,Moving On,3659.76, 14-Feb-2012
1308,Revenue,CCHD,Supported Living - PS,Private & Voluntary Home Care,Moving On,6456.38, 13-Feb-2012
1309,Revenue,CCHD,Supported Living - PS,Private & Voluntary Home Care,Moving On,6456.38, 14-Feb-2012
1310,Revenue,CCHD,Tenancy Start Up Scheme,Other Supplies & Services,Individual,1300, 23-Feb-2012
1311,Revenue,CCHD,Elderly Mental Health North,Residential Homes,Mr Gordon Heddington,2083.5, 14-Feb-2012
1312,Revenue,CCHD,Under 65s PWLD - KH,Residential Homes,Mr J Davis & Mrs S Davis,1840, 28-Feb-2012
1313,Revenue,CCHD,Social Lettings Agency,Other Supplies & Services,Individual,565, 14-Feb-2012
1314,Revenue,CCHD,Tenancy Start Up Scheme,Other Supplies & Services,Individual,623.31, 15-Feb-2012
1315,Revenue,CCHD,Social Lettings Agency,Other Supplies & Services,Individual,551.44, 14-Feb-2012
1316,Revenue,CCHD,Tenancy Start Up Scheme,Other Supplies & Services,Individual,632.81, 27-Feb-2012
1317,Revenue,CCHD,Tenancy Start Up Scheme,Other Supplies & Services,Individual,1200, 06-Feb-2012
1318,Revenue,CCHD,Supported Living - KH,Private & Voluntary Home Care,Mrs B Kimber,772.22, 20-Feb-2012
1319,Revenue,CCHD,Supported Living - KH,Private & Voluntary Home Care,Mrs B Kimber,1337.27, 17-Feb-2012
1320,Revenue,CCHD,Purchase of Non-Res Care - KH,Private & Voluntary Day Care,Mrs B Kimber,1074.72, 17-Feb-2012
1321,Revenue,CCHD,Supported Living - PS,Private & Voluntary Home Care,Mrs B Kimber,8475.36, 28-Feb-2012
1322,Revenue,CCHD,Supported Living - PS,Private & Voluntary Home Care,Mrs B Kimber,10440.58, 22-Feb-2012
1323,Revenue,CCHD,Purchase of Non-Res Care - KH,Private & Voluntary Day Care,Mrs B Kimber,1074.72, 17-Feb-2012
1324,Revenue,CCHD,Purchase of Non-Res Care - KD,Private & Voluntary Day Care,Mrs B Kimber,761.87, 24-Feb-2012
1325,Revenue,CCHD,Supported Living - KD,Private & Voluntary Home Care,Mrs B Kimber,1152.48, 24-Feb-2012
1326,Revenue,CCHD,Day Care - South,Private & Voluntary Day Care,Mrs B Kimber,668.05, 13-Feb-2012
1327,Revenue,CCHD,Day Care - North,Private & Voluntary Day Care,Mrs B Kimber,1199.22, 16-Feb-2012
1328,Revenue,CCHD,Home Care Purch South,Other Small Contracts,Mrs B Kimber - Stepping Stones,2576.76, 09-Feb-2012
1329,Revenue,CCHD,Home Care Purch North,Other Small Contracts,Mrs B Kimber - Stepping Stones,2884.08, 09-Feb-2012
1330,Revenue,CCHD,Day Care - South,Private & Voluntary Day Care,Mrs B Kimber - Stepping Stones,681.62, 09-Feb-2012
1331,Revenue,CCHD,Day Care - North,Private & Voluntary Day Care,Mrs B Kimber - Stepping Stones,228.52, 09-Feb-2012
1332,Revenue,CCHD,Under 65s -MH  Home Care Purch,Other Small Contracts,Mrs B Kimber - Stepping Stones,238.44, 09-Feb-2012
1333,Revenue,CCHD,Elderly MH Home Care North,Other Small Contracts,Mrs B Kimber - Stepping Stones,370.36, 09-Feb-2012
1334,Revenue,CCHD,Elderly MH Day Care North,Private & Voluntary Day Care,Mrs B Kimber - Stepping Stones,437.34, 09-Feb-2012
1335,Revenue,CCHD,Supported Living - KD,Private & Voluntary Home Care,Mrs B Kimber - Stepping Stones,732.84, 09-Feb-2012
1336,Revenue,CCHD,PWLD Home Care - Under 65 - KD,Private & Voluntary Home Care,Mrs B Kimber - Stepping Stones,47.28, 09-Feb-2012
1337,Revenue,CCHD,PWLD Home Care - Under 65 - KH,Private & Voluntary Home Care,Mrs B Kimber - Stepping Stones,86.68, 09-Feb-2012
1338,Revenue,CCHD,Home Care - Elderly LD - KD,Private & Voluntary Home Care,Mrs B Kimber - Stepping Stones,981.06, 09-Feb-2012
1339,Revenue,CCHD,Home Care Purch South,Other Small Contracts,Mrs B Kimber - Stepping Stones,2785.58, 20-Feb-2012
1340,Revenue,CCHD,Home Care Purch North,Other Small Contracts,Mrs B Kimber - Stepping Stones,3061.38, 20-Feb-2012
1341,Revenue,CCHD,Day Care - South,Private & Voluntary Day Care,Mrs B Kimber - Stepping Stones,677.68, 20-Feb-2012
1342,Revenue,CCHD,Day Care - North,Private & Voluntary Day Care,Mrs B Kimber - Stepping Stones,244.28, 20-Feb-2012
1343,Revenue,CCHD,Under 65s -MH  Home Care Purch,Other Small Contracts,Mrs B Kimber - Stepping Stones,179.75, 20-Feb-2012
1344,Revenue,CCHD,Elderly MH Home Care North,Other Small Contracts,Mrs B Kimber - Stepping Stones,350.66, 20-Feb-2012
1345,Revenue,CCHD,Elderly MH Day Care North,Private & Voluntary Day Care,Mrs B Kimber - Stepping Stones,433.4, 20-Feb-2012
1346,Revenue,CCHD,Supported Living - KD,Private & Voluntary Home Care,Mrs B Kimber - Stepping Stones,748.6, 20-Feb-2012
1347,Revenue,CCHD,PWLD Home Care - Under 65 - KD,Private & Voluntary Home Care,Mrs B Kimber - Stepping Stones,43.34, 20-Feb-2012
1348,Revenue,CCHD,PWLD Home Care - Under 65 - KH,Private & Voluntary Home Care,Mrs B Kimber - Stepping Stones,82.74, 20-Feb-2012
1349,Revenue,CCHD,Home Care - Elderly LD - KD,Private & Voluntary Home Care,Mrs B Kimber - Stepping Stones,981.06, 20-Feb-2012
1350,Revenue,CCHD,Home Care Purch South,Other Small Contracts,Mrs B Kimber - Stepping Stones,2911.66, 20-Feb-2012
1351,Revenue,CCHD,Home Care Purch North,Other Small Contracts,Mrs B Kimber - Stepping Stones,2990.46, 20-Feb-2012
1352,Revenue,CCHD,Day Care - South,Private & Voluntary Day Care,Mrs B Kimber - Stepping Stones,705.26, 20-Feb-2012
1353,Revenue,CCHD,Day Care - North,Private & Voluntary Day Care,Mrs B Kimber - Stepping Stones,224.58, 20-Feb-2012
1354,Revenue,CCHD,Under 65s -MH  Home Care Purch,Other Small Contracts,Mrs B Kimber - Stepping Stones,231.11, 20-Feb-2012
1355,Revenue,CCHD,Elderly MH Home Care North,Other Small Contracts,Mrs B Kimber - Stepping Stones,342.78, 20-Feb-2012
1356,Revenue,CCHD,Elderly MH Day Care North,Private & Voluntary Day Care,Mrs B Kimber - Stepping Stones,409.76, 20-Feb-2012
1357,Revenue,CCHD,Supported Living - KD,Private & Voluntary Home Care,Mrs B Kimber - Stepping Stones,780.12, 20-Feb-2012
1358,Revenue,CCHD,PWLD Home Care - Under 65 - PS,Private & Voluntary Home Care,Mrs B Kimber - Stepping Stones,74.86, 20-Feb-2012
1359,Revenue,CCHD,PWLD Home Care - Under 65 - KD,Private & Voluntary Home Care,Mrs B Kimber - Stepping Stones,47.28, 20-Feb-2012
1360,Revenue,CCHD,PWLD Home Care - Under 65 - KH,Private & Voluntary Home Care,Mrs B Kimber - Stepping Stones,86.68, 20-Feb-2012
1361,Revenue,CCHD,Home Care - Elderly LD - KD,Private & Voluntary Home Care,Mrs B Kimber - Stepping Stones,921.96, 20-Feb-2012
1362,Revenue,CCHD,Home Care Purch South,Other Small Contracts,Mrs B Kimber - Stepping Stones,2533.42, 03-Feb-2012
1363,Revenue,CCHD,Home Care Purch North,Other Small Contracts,Mrs B Kimber - Stepping Stones,2683.14, 03-Feb-2012
1364,Revenue,CCHD,Day Care - South,Private & Voluntary Day Care,Mrs B Kimber - Stepping Stones,669.8, 03-Feb-2012
1365,Revenue,CCHD,Day Care - North,Private & Voluntary Day Care,Mrs B Kimber - Stepping Stones,212.76, 03-Feb-2012
1366,Revenue,CCHD,Under 65s -MH  Home Care Purch,Other Small Contracts,Mrs B Kimber - Stepping Stones,194.42, 03-Feb-2012
1367,Revenue,CCHD,Elderly MH Home Care North,Other Small Contracts,Mrs B Kimber - Stepping Stones,362.48, 03-Feb-2012
1368,Revenue,CCHD,Elderly MH Day Care North,Private & Voluntary Day Care,Mrs B Kimber - Stepping Stones,429.46, 03-Feb-2012
1369,Revenue,CCHD,Supported Living - KD,Private & Voluntary Home Care,Mrs B Kimber - Stepping Stones,764.36, 03-Feb-2012
1370,Revenue,CCHD,PWLD Home Care - Under 65 - KD,Private & Voluntary Home Care,Mrs B Kimber - Stepping Stones,47.28, 03-Feb-2012
1371,Revenue,CCHD,PWLD Home Care - Under 65 - KH,Private & Voluntary Home Care,Mrs B Kimber - Stepping Stones,141.84, 03-Feb-2012
1372,Revenue,CCHD,Home Care - Elderly LD - KD,Private & Voluntary Home Care,Mrs B Kimber - Stepping Stones,953.48, 03-Feb-2012
1373,Revenue,CCHD,Home Care Purch South,Other Small Contracts,Mrs B Kimber - Stepping Stones,2525.54, 03-Feb-2012
1374,Revenue,CCHD,Home Care Purch North,Other Small Contracts,Mrs B Kimber - Stepping Stones,2576.76, 03-Feb-2012
1375,Revenue,CCHD,Day Care - South,Private & Voluntary Day Care,Mrs B Kimber - Stepping Stones,906.2, 03-Feb-2012
1376,Revenue,CCHD,Day Care - North,Private & Voluntary Day Care,Mrs B Kimber - Stepping Stones,86.68, 03-Feb-2012
1377,Revenue,CCHD,Under 65s -MH  Home Care Purch,Other Small Contracts,Mrs B Kimber - Stepping Stones,209.09, 03-Feb-2012
1378,Revenue,CCHD,Elderly MH Home Care North,Other Small Contracts,Mrs B Kimber - Stepping Stones,354.6, 03-Feb-2012
1379,Revenue,CCHD,Elderly MH Day Care North,Private & Voluntary Day Care,Mrs B Kimber - Stepping Stones,397.94, 03-Feb-2012
1380,Revenue,CCHD,Supported Living - KD,Private & Voluntary Home Care,Mrs B Kimber - Stepping Stones,776.18, 03-Feb-2012
1381,Revenue,CCHD,PWLD Home Care - Under 65 - KD,Private & Voluntary Home Care,Mrs B Kimber - Stepping Stones,47.28, 03-Feb-2012
1382,Revenue,CCHD,PWLD Home Care - Under 65 - KH,Private & Voluntary Home Care,Mrs B Kimber - Stepping Stones,145.78, 03-Feb-2012
1383,Revenue,CCHD,Home Care - Elderly LD - KD,Private & Voluntary Home Care,Mrs B Kimber - Stepping Stones,953.48, 03-Feb-2012
1384,Revenue,CCHD,Social Lettings Agency,Other Supplies & Services,Individual,565.61, 09-Feb-2012
1385,Revenue,CCHD,Younger MH non-res purchasing,Private & Voluntary Home Care,Mrs Felicity Cooksley,598.57, 13-Feb-2012
1386,Revenue,CCHD,Social Lettings Agency,Other Supplies & Services,Individual,565, 14-Feb-2012
1387,Revenue,CCHD,Purchase of Non-Res Care - KD,Private & Voluntary Day Care,Mrs W Thompson,1314, 10-Feb-2012
1388,Revenue,CCHD,Purchase of Non-Res Care - KD,Private & Voluntary Day Care,Mrs W Thompson,554, 10-Feb-2012
1389,Revenue,CCHD,Finance,"Provisions (Food, etc)",Ms Sarah Hannett,4961.6, 17-Feb-2012
1390,Revenue,CCHD,Alexandra Way,Cleaning & Domestic Supplies,Muzzell Healthcare,644.51, 28-Feb-2012
1391,Revenue,CCHD,Younger MH non-res purchasing,Private & Voluntary Day Care,NAS Services Limited,1319.5, 10-Feb-2012
1392,Revenue,CCHD,Younger MH non-res purchasing,Private & Voluntary Day Care,NAS Services Limited,550.6, 17-Feb-2012
1393,Revenue,CCHD,Community Support ACM - South,Preventative Assistance,National Star College FDY Limited,5539.31, 16-Feb-2012
1394,Revenue,CCHD,Purchase of Non-Res Care - KD,Private & Voluntary Day Care,Natureworks Training Community Interest,601.86, 06-Feb-2012
1395,Revenue,CCHD,Purchase of Non-Res Care - KD,Private & Voluntary Day Care,Natureworks Training Community Interest,687.84, 13-Feb-2012
1396,Revenue,CCHD,Younger MH non-res purchasing,Private & Voluntary Day Care,Natureworks Training Community Interest,540, 29-Feb-2012
1397,Revenue,CCHD,Training - Adult Services,Training Expenses,Nelson Training Limited,1187.6, 15-Feb-2012
1398,Revenue,CCHD,Home Care Purch South,Other Small Contracts,Network Health & Social Care,540.54, 09-Feb-2012
1399,Revenue,CCHD,Home Care Purch North,Other Small Contracts,Network Health & Social Care,2097.9, 09-Feb-2012
1400,Revenue,CCHD,Elderly Purchasing - North,Residential Homes,Newton House,850.48, 21-Feb-2012
1401,Revenue,CCHD,Under 65s PWLD - KH,Residential Homes,Nightingale Nursing Home,3037.08, 21-Feb-2012
1402,Revenue,CCHD,S28A - Under 65 South,Residential Homes,North Lincolnshire Council,3632.56, 21-Feb-2012
1403,Revenue,CCHD,S28A - Under 65 South,Residential Homes,North Lincolnshire Council,3675.79, 21-Feb-2012
1404,Revenue,CCHD,S28A - Under 65 South,Residential Homes,North Lincolnshire Council,3675.79, 21-Feb-2012
1405,Revenue,CCHD,Training - Adult Services,Training Expenses,North Somerset Council,820, 24-Feb-2012
1406,Revenue,CCHD,Information Systems - Software,Software Support & Maintenance,Northgate Information Solutions UK Limited,23280, 27-Feb-2012
1407,Revenue,CCHD,Under 65s PWLD - PS,Residential Homes,Norwood   Broadway House,4784.72, 21-Feb-2012
1408,Revenue,CCHD,Home Care Purch South,Other Small Contracts,Nursing Solutions Limited,951.29, 03-Feb-2012
1409,Revenue,CCHD,Elderly MH Home Care North,Other Small Contracts,Nursing Solutions Limited,253.93, 03-Feb-2012
1410,Revenue,CCHD,Elderly MH Day Care North,Private & Voluntary Day Care,Nursing Solutions Limited,197.08, 03-Feb-2012
1411,Revenue,CCHD,Home Care Purch South,Other Small Contracts,Nursing Solutions Limited,974.03, 03-Feb-2012
1412,Revenue,CCHD,Elderly MH Home Care North,Other Small Contracts,Nursing Solutions Limited,159.18, 03-Feb-2012
1413,Revenue,CCHD,Elderly MH Day Care North,Private & Voluntary Day Care,Nursing Solutions Limited,197.08, 03-Feb-2012
1414,Revenue,CCHD,Home Care Purch South,Other Small Contracts,Nursing Solutions Limited,784.53, 15-Feb-2012
1415,Revenue,CCHD,Elderly MH Home Care North,Other Small Contracts,Nursing Solutions Limited,128.86, 15-Feb-2012
1416,Revenue,CCHD,Elderly MH Day Care North,Private & Voluntary Day Care,Nursing Solutions Limited,151.6, 15-Feb-2012
1417,Revenue,CCHD,Home Care Purch South,Other Small Contracts,Nursing Solutions Limited,871.7, 15-Feb-2012
1418,Revenue,CCHD,Elderly MH Home Care North,Other Small Contracts,Nursing Solutions Limited,170.55, 15-Feb-2012
1419,Revenue,CCHD,Elderly MH Day Care North,Private & Voluntary Day Care,Nursing Solutions Limited,197.08, 15-Feb-2012
1420,Revenue,CCHD,Home Care Purch South,Other Small Contracts,Nursing Solutions Limited,947.5, 28-Feb-2012
1421,Revenue,CCHD,Elderly MH Home Care North,Other Small Contracts,Nursing Solutions Limited,159.18, 28-Feb-2012
1422,Revenue,CCHD,Elderly MH Day Care North,Private & Voluntary Day Care,Nursing Solutions Limited,193.29, 28-Feb-2012
1423,Revenue,CCHD,Elderly Purchasing - South,Residential Homes,Oaktree Lodge,1257, 21-Feb-2012
1424,Revenue,CCHD,Woodleaze,Refuse Collection Charges,OCS Group UK Ltd,468.48, 22-Feb-2012
1425,Revenue,CCHD,Charlton,Refuse Collection Charges,OCS Group UK Ltd,557.43, 15-Feb-2012
1426,Revenue,CCHD,S28A - Under 65 South,Residential Homes,Orchard End Limited,7466.16, 21-Feb-2012
1427,Revenue,CCHD,Elderly Mental Health North,Residential Homes,Osborne House,1404.12, 21-Feb-2012
1428,Revenue,CCHD,Under 65s PWLD - PS,Residential Homes,Osprey Court,15483.04, 21-Feb-2012
1429,Revenue,CCHD,S28A - Under 65 South,Residential Homes,Osprey Court,8646.72, 21-Feb-2012
1430,Revenue,CCHD,S28A - Under 65 South,Residential Homes,Osprey Court,13133.76, 21-Feb-2012
1431,Revenue,CCHD,Supported Living - KH,Private & Voluntary Home Care,Pace Petroleum Limited,1350.8, 27-Feb-2012
1432,Revenue,CCHD,Elderly Mental Health North,Residential Homes,Park Farm House,1331.48, 21-Feb-2012
1433,Revenue,CCHD,Frenchay Hospital Purchasing,Residential Homes,Park Farm House,2355.45, 21-Feb-2012
1434,Revenue,CCHD,Frenchay Hospital Purchasing,Residential Homes,Park Farm House,1288.48, 21-Feb-2012
1435,Revenue,CCHD,Elderly Purchasing - South,Residential Homes,Park Farm House,1498.8, 21-Feb-2012
1436,Revenue,CCHD,Elderly Mental Health North,Residential Homes,Park Farm House,1566.4, 21-Feb-2012
1437,Revenue,CCHD,Elderly Mental Health North,Residential Homes,Park Farm House,1106, 21-Feb-2012
1438,Revenue,CCHD,Elderly PWLD - KH,Residential Homes,Park Hall,4785.48, 21-Feb-2012
1439,Revenue,CCHD,Under 65s PWLD - KH,Residential Homes,Park Hall,4196.32, 21-Feb-2012
1440,Revenue,CCHD,Under 65s PWLD - KH,Residential Homes,Park Hall,4825.08, 21-Feb-2012
1441,Revenue,CCHD,Under 65s PWLD - KH,Residential Homes,Park Hall,12336.4, 21-Feb-2012
1442,Revenue,CCHD,Under 65s PWLD - PS,Residential Homes,Park Hall,5420.4, 21-Feb-2012
1443,Revenue,CCHD,Elderly PWLD - KH,Residential Homes,Park Hall,2470.16, 21-Feb-2012
1444,Revenue,CCHD,Under 65s PWLD - KD,Residential Homes,Park Hall,2720.8, 21-Feb-2012
1445,Revenue,CCHD,S28A - Under 65 South,Residential Homes,Park Hall,4506.8, 21-Feb-2012
1446,Revenue,CCHD,S28A - Over 65 South,Residential Homes,Park Hall,5163.72, 21-Feb-2012
1447,Revenue,CCHD,Under 65s PWLD - KH,Residential Homes,Park Hall,6276.68, 21-Feb-2012
1448,Revenue,CCHD,Under 65s PWLD - KD,Residential Homes,Park Hall,2149.28, 21-Feb-2012
1449,Revenue,CCHD,Under 65s PWLD - KH,Residential Homes,Park Hall,4801.96, 21-Feb-2012
1450,Revenue,CCHD,S28A - Under 65 South,Residential Homes,Park Hall,5705.02, 21-Feb-2012
1451,Revenue,CCHD,S28A - Under 65 South,Residential Homes,Park Hall,5436.32, 21-Feb-2012
1452,Revenue,CCHD,Elderly Purchasing - South,Residential Homes,Park Street Home,2012.48, 21-Feb-2012
1453,Revenue,CCHD,Home Energy Conservation Act Activities,Office Supplies & Equipment,Pat Training Services Limited,1330, 10-Feb-2012
1454,Revenue,CCHD,Under 65s PWLD - KH,Residential Homes,Penleigh House Care Home,4389.32, 21-Feb-2012
1455,Revenue,CCHD,Under 65s PWLD - KD,Residential Homes,Penleigh House Care Home,5101.28, 21-Feb-2012
1456,Revenue,CCHD,Elderly PWLD - KD,Residential Homes,Penleigh House Care Home,4162.72, 21-Feb-2012
1457,Revenue,CCHD,Under 65s PWLD - KD,Residential Homes,Penleigh House Care Home,4326.72, 21-Feb-2012
1458,Revenue,CCHD,S28A - Under 65 South,Residential Homes,Penleigh House Care Home,5288.92, 21-Feb-2012
1459,Revenue,CCHD,Under 65s PWLD - KD,Residential Homes,Penleigh House Care Home,4778.72, 21-Feb-2012
1460,Revenue,CCHD,Southmead Hospital Purchasing,Nursing Homes,Pennwood Lodge Nursing Home,1854.48, 21-Feb-2012
1461,Revenue,CCHD,Southmead Hospital Purchasing,Residential Homes,Petersfield Ad Care Home,815.76, 21-Feb-2012
1462,Revenue,CCHD,Elderly Purchasing - North,Residential Homes,Petersfield Ad Care Home,1229, 21-Feb-2012
1463,Revenue,CCHD,Bed and Breakfast,Bed & Breakfast,Pleasant Bed & Breakfast Limited,588, 03-Feb-2012
1464,Revenue,CCHD,Bed and Breakfast,Bed & Breakfast,Pleasant Bed & Breakfast Limited,588, 10-Feb-2012
1465,Revenue,CCHD,Bed and Breakfast,Bed & Breakfast,Pleasant Bed & Breakfast Limited,588, 17-Feb-2012
1466,Revenue,CCHD,Home Care Purch North,Other Small Contracts,Premier Homecare Limited,4578.55, 03-Feb-2012
1467,Revenue,CCHD,Day Care - North,Private & Voluntary Day Care,Premier Homecare Limited,270.82, 03-Feb-2012
1468,Revenue,CCHD,Elderly MH Home Care North,Other Small Contracts,Premier Homecare Limited,308.64, 03-Feb-2012
1469,Revenue,CCHD,Elderly MH Day Care North,Private & Voluntary Day Care,Premier Homecare Limited,367.99, 03-Feb-2012
1470,Revenue,CCHD,Home Care Purch North,Other Small Contracts,Premier Homecare Limited,4624.62, 02-Feb-2012
1471,Revenue,CCHD,Day Care - North,Private & Voluntary Day Care,Premier Homecare Limited,217.96, 02-Feb-2012
1472,Revenue,CCHD,Elderly MH Home Care North,Other Small Contracts,Premier Homecare Limited,306.56, 02-Feb-2012
1473,Revenue,CCHD,Elderly MH Day Care North,Private & Voluntary Day Care,Premier Homecare Limited,370.07, 02-Feb-2012
1474,Revenue,CCHD,Home Care Purch North,Other Small Contracts,Premier Homecare Limited,4463.67, 14-Feb-2012
1475,Revenue,CCHD,Day Care - North,Private & Voluntary Day Care,Premier Homecare Limited,217.96, 14-Feb-2012
1476,Revenue,CCHD,Elderly MH Home Care North,Other Small Contracts,Premier Homecare Limited,302.13, 14-Feb-2012
1477,Revenue,CCHD,Elderly MH Day Care North,Private & Voluntary Day Care,Premier Homecare Limited,414.65, 14-Feb-2012
1478,Revenue,CCHD,Home Care Purch North,Other Small Contracts,Premier Homecare Limited,3773.77, 16-Feb-2012
1479,Revenue,CCHD,Day Care - North,Private & Voluntary Day Care,Premier Homecare Limited,215.89, 16-Feb-2012
1480,Revenue,CCHD,Elderly MH Home Care North,Other Small Contracts,Premier Homecare Limited,310.99, 16-Feb-2012
1481,Revenue,CCHD,Elderly MH Day Care North,Private & Voluntary Day Care,Premier Homecare Limited,420.85, 16-Feb-2012
1482,Revenue,CCHD,Home Care Purch North,Other Small Contracts,Premier Homecare Limited,3626.14, 24-Feb-2012
1483,Revenue,CCHD,Day Care - North,Private & Voluntary Day Care,Premier Homecare Limited,181.63, 24-Feb-2012
1484,Revenue,CCHD,Elderly MH Home Care North,Other Small Contracts,Premier Homecare Limited,279.98, 24-Feb-2012
1485,Revenue,CCHD,Elderly MH Day Care North,Private & Voluntary Day Care,Premier Homecare Limited,420.85, 24-Feb-2012
1486,Revenue,CCHD,Home Care Purch South,Other Small Contracts,Prestige Nursing,919.8, 06-Feb-2012
1487,Revenue,CCHD,Home Care Purch North,Other Small Contracts,Prestige Nursing,726.6, 06-Feb-2012
1488,Revenue,CCHD,Day Care - South,Private & Voluntary Day Care,Prestige Nursing,441, 06-Feb-2012
1489,Revenue,CCHD,Day Care - North,Private & Voluntary Day Care,Prestige Nursing,1360.8, 06-Feb-2012
1490,Revenue,CCHD,Elderly MH Home Care North,Other Small Contracts,Prestige Nursing,294, 06-Feb-2012
1491,Revenue,CCHD,Elderly MH Day Care North,Private & Voluntary Day Care,Prestige Nursing,793.8, 06-Feb-2012
1492,Revenue,CCHD,Home Care Purch South,Other Small Contracts,Prestige Nursing,861, 28-Feb-2012
1493,Revenue,CCHD,Home Care Purch North,Other Small Contracts,Prestige Nursing,714, 28-Feb-2012
1494,Revenue,CCHD,Day Care - South,Private & Voluntary Day Care,Prestige Nursing,432.6, 28-Feb-2012
1495,Revenue,CCHD,Day Care - North,Private & Voluntary Day Care,Prestige Nursing,1365, 28-Feb-2012
1496,Revenue,CCHD,Elderly MH Home Care North,Other Small Contracts,Prestige Nursing,340.2, 28-Feb-2012
1497,Revenue,CCHD,Elderly MH Day Care North,Private & Voluntary Day Care,Prestige Nursing,760.2, 28-Feb-2012
1498,Revenue,CCHD,Kingswood District Office,Postages,Purchase Power,523.79, 21-Feb-2012
1499,Revenue,CCHD,Frenchay Hospital Purchasing,Residential Homes,Quality Care Homes Ltd,1887.4, 21-Feb-2012
1500,Revenue,CCHD,Elderly Purchasing - South,Residential Homes,Quality Care Homes Ltd,1238.96, 21-Feb-2012
1501,Revenue,CCHD,Elderly Purchasing - South,Residential Homes,Quality Care Homes Ltd,1229, 21-Feb-2012
1502,Revenue,CCHD,Elderly Purchasing - South,Residential Homes,Quality Care Homes Ltd,1396, 21-Feb-2012
1503,Revenue,CCHD,Elderly Purchasing - South,Residential Homes,Quality Care Homes Ltd,1128.96, 21-Feb-2012
1504,Revenue,CCHD,Frenchay Hospital Purchasing,Residential Homes,Quality Care Homes Ltd,2282.43, 21-Feb-2012
1505,Revenue,CCHD,Elderly Purchasing - South,Residential Homes,Quality Care Homes Ltd,1808, 21-Feb-2012
1506,Revenue,CCHD,Elderly Purchasing - South,Residential Homes,Quality Care Homes Ltd,1242.8, 21-Feb-2012
1507,Revenue,CCHD,Elderly Purchasing - South,Residential Homes,Quality Care Homes Ltd,3653.57, 21-Feb-2012
1508,Revenue,CCHD,Elderly Purchasing - South,Residential Homes,Quality Care Homes Ltd,627.6, 21-Feb-2012
1509,Revenue,CCHD,Southmead Hospital Purchasing,Residential Homes,Quality Care Homes Ltd,627.08, 21-Feb-2012
1510,Revenue,CCHD,Southmead Hospital Purchasing,Residential Homes,Quality Care Homes Ltd,1199.04, 21-Feb-2012
1511,Revenue,CCHD,Elderly Mental Health North,Residential Homes,Quality Care Homes Ltd,1215.17, 21-Feb-2012
1512,Revenue,CCHD,Elderly Mental Health North,Residential Homes,Quality Care Homes Ltd,1438.4, 21-Feb-2012
1513,Revenue,CCHD,Southmead Hospital Purchasing,Residential Homes,Quality Care Homes Ltd,1232.16, 21-Feb-2012
1514,Revenue,CCHD,Elderly Mental Health North,Nursing Homes,Ravenswood,1266.8, 21-Feb-2012
1515,Revenue,CCHD,Elderly Mental Health North,Residential Homes,Ravenswood,2148.24, 21-Feb-2012
1516,Revenue,CCHD,Section 117 Placements North,Nursing Homes,Redholme Memory Care Limited,1912, 21-Feb-2012
1517,Revenue,CCHD,Elderly Purchasing - South,Nursing Homes,Regent House,1620.8, 21-Feb-2012
1518,Revenue,CCHD,Southmead Hospital Purchasing,Nursing Homes,Regent House,1288.68, 21-Feb-2012
1519,Revenue,CCHD,South Glos Users in South Glos Homes,Nursing Homes,Regent House,1304.4, 21-Feb-2012
1520,Revenue,CCHD,Elderly Purchasing - South,Nursing Homes,Regent House,1620.8, 21-Feb-2012
1521,Revenue,CCHD,Elderly Purchasing - South,Nursing Homes,Regent House,621.2, 21-Feb-2012
1522,Revenue,CCHD,Southmead Hospital Purchasing,Nursing Homes,Regent House,1367, 21-Feb-2012
1523,Revenue,CCHD,South Glos Users in South Glos Homes,Nursing Homes,Regent House,2484.57, 21-Feb-2012
1524,Revenue,CCHD,Elderly Purchasing - South,Nursing Homes,Regent House,2465.2, 21-Feb-2012
1525,Revenue,CCHD,Elderly Purchasing - South,Nursing Homes,Regent House,1102.6, 21-Feb-2012
1526,Revenue,CCHD,Elderly Mental Health North,Nursing Homes,Regent House,1906.2, 21-Feb-2012
1527,Revenue,CCHD,Elderly Mental Health North,Nursing Homes,Regent House,1053.04, 21-Feb-2012
1528,Revenue,CCHD,Elderly Mental Health North,Nursing Homes,Regent House,1282.72, 21-Feb-2012
1529,Revenue,CCHD,Elderly PWLD - PS,Residential Homes,Renaissance,2156.6, 21-Feb-2012
1530,Revenue,CCHD,Under 65s PWLD - PS,Residential Homes,Ridgeway House,3373.32, 21-Feb-2012
1531,Revenue,CCHD,Elderly Purchasing - South,Nursing Homes,Riversway Nursing Home,1146.88, 21-Feb-2012
1532,Revenue,CCHD,Southmead Hospital Purchasing,Nursing Homes,Riversway Nursing Home,1334.52, 21-Feb-2012
1533,Revenue,CCHD,Southmead Hospital Purchasing,Nursing Homes,Riversway Nursing Home,1690.2, 21-Feb-2012
1534,Revenue,CCHD,Elderly PWLD - PS,Residential Homes,Rockleaze,2134.16, 21-Feb-2012
1535,Revenue,CCHD,Elderly PWLD - PS,Residential Homes,Rockleaze,1386.56, 21-Feb-2012
1536,Revenue,CCHD,S28A - Over 65 South,Residential Homes,Rockleaze,2015.52, 21-Feb-2012
1537,Revenue,CCHD,Under 65s PWLD - PS,Residential Homes,Rockleaze,2335.08, 21-Feb-2012
1538,Revenue,CCHD,Elderly PWLD - PS,Residential Homes,Rockleaze,1386.56, 21-Feb-2012
1539,Revenue,CCHD,Under 65s PWLD - PS,Residential Homes,Rosewood Lodge & Brook House,7838.16, 21-Feb-2012
1540,Revenue,CCHD,Elderly Mental Health North,Residential Homes,Ross Healthcare,1265.36, 21-Feb-2012
1541,Revenue,CCHD,Frenchay Hospital Purchasing,Residential Homes,Roundham Court,1229, 21-Feb-2012
1542,Revenue,CCHD,Under 65s PWLD - PS,Residential Homes,Salters Hill Barn,1964.08, 21-Feb-2012
1543,Revenue,CCHD,Learning Difficulties PSL,Rent,Individual,1400, 01-Feb-2012
1544,Revenue,CCHD,Under 65s PWLD - KH,Residential Homes,Scope   Accounts Dept,4926.6, 21-Feb-2012
1545,Revenue,CCHD,Under 65s PWLD - KH,Residential Homes,Scope   Accounts Dept,3016.28, 21-Feb-2012
1546,Revenue,CCHD,Supported Living - KH,Private & Voluntary Home Care,SeeAbility,2973.94, 20-Feb-2012
1547,Revenue,CCHD,Supported Living - KH,Private & Voluntary Home Care,SeeAbility,7149.71, 20-Feb-2012
1548,Revenue,CCHD,Supported Living - KH,Private & Voluntary Home Care,SeeAbility,6518.86, 20-Feb-2012
1549,Revenue,CCHD,Supported Living - KH,Private & Voluntary Home Care,SeeAbility,6308.57, 20-Feb-2012
1550,Revenue,CCHD,Supported Living - KH,Private & Voluntary Home Care,SeeAbility,6518.86, 20-Feb-2012
1551,Revenue,CCHD,Supported Living - KH,Private & Voluntary Home Care,SeeAbility,6518.86, 20-Feb-2012
1552,Revenue,CCHD,Supported Living - KH,Private & Voluntary Home Care,SeeAbility,6308.57, 20-Feb-2012
1553,Revenue,CCHD,Supported Living - KH,Private & Voluntary Home Care,SeeAbility,6518.86, 20-Feb-2012
1554,Revenue,CCHD,Supported Living - KH,Private & Voluntary Home Care,SeeAbility,965.25, 20-Feb-2012
1555,Revenue,CCHD,Supported Living - KH,Private & Voluntary Home Care,SeeAbility,6308.57, 20-Feb-2012
1556,Revenue,CCHD,Day Care - North,Private & Voluntary Day Care,SeeAbility,2326.5, 07-Feb-2012
1557,Revenue,CCHD,Day Care - North,Private & Voluntary Day Care,SeeAbility,1287.5, 07-Feb-2012
1558,Revenue,CCHD,Day Care - North,Private & Voluntary Day Care,SeeAbility,3265.71, 07-Feb-2012
1559,Revenue,CCHD,Supported Living - KH,Private & Voluntary Home Care,SeeAbility,1196.25, 20-Feb-2012
1560,Revenue,CCHD,Supported Living - KH,Private & Voluntary Home Care,SeeAbility,6308.57, 20-Feb-2012
1561,Revenue,CCHD,Purchase of Non-Res Care - KD,Private & Voluntary Day Care,Selborne Care Ltd,1305.48, 03-Feb-2012
1562,Revenue,CCHD,Purchase of Non-Res Care - KD,Private & Voluntary Day Care,Selborne Care Ltd,658.56, 03-Feb-2012
1563,Revenue,CCHD,Supported Living - KH,Private & Voluntary Home Care,Selborne Care Ltd,1115.4, 20-Feb-2012
1564,Revenue,CCHD,Purchase of Non-Res Care - KD,Private & Voluntary Day Care,Selborne Care Ltd,795.04, 03-Feb-2012
1565,Revenue,CCHD,Supported Living - KH,Private & Voluntary Home Care,Selborne Care Ltd,501.76, 20-Feb-2012
1566,Revenue,CCHD,Purchase of Non-Res Care - KD,Private & Voluntary Day Care,Selborne Care Ltd,736.12, 03-Feb-2012
1567,Revenue,CCHD,Supported Living - KH,Private & Voluntary Home Care,Selborne Care Ltd,540.44, 20-Feb-2012
1568,Revenue,CCHD,Supported Living - PS,Private & Voluntary Home Care,Selborne Care Ltd,1807.36, 06-Feb-2012
1569,Revenue,CCHD,Purchase of Non-Res Care - KD,Private & Voluntary Day Care,Selborne Care Ltd,864.96, 03-Feb-2012
1570,Revenue,CCHD,Supported Living - PS,Private & Voluntary Home Care,Selborne Care Ltd,1706.4, 28-Feb-2012
1571,Revenue,CCHD,Supported Living - PS,Private & Voluntary Home Care,Selborne Care Ltd,1128.96, 20-Feb-2012
1572,Revenue,CCHD,Purchase of Non-Res Care - KD,Private & Voluntary Day Care,Selborne Care Ltd,1387.68, 27-Feb-2012
1573,Revenue,CCHD,Supported Living - PS,Private & Voluntary Home Care,Selborne Care Ltd,4876.6, 28-Feb-2012
1574,Revenue,CCHD,Purchase of Non-Res Care - KD,Private & Voluntary Day Care,Selborne Care Ltd,878.08, 24-Feb-2012
1575,Revenue,CCHD,Supported Living - KD,Private & Voluntary Home Care,Selborne Care Ltd,561.76, 27-Feb-2012
1576,Revenue,CCHD,Supported Living - PS,Private & Voluntary Home Care,Selborne Care Ltd,4557, 28-Feb-2012
1577,Revenue,CCHD,Purchase of Non-Res Care - KD,Private & Voluntary Day Care,Selborne Care Ltd,768.32, 24-Feb-2012
1578,Revenue,CCHD,Supported Living - PS,Private & Voluntary Home Care,Selborne Care Ltd,1856.08, 20-Feb-2012
1579,Revenue,CCHD,Purchase of Non-Res Care - KD,Private & Voluntary Day Care,Selborne Care Ltd,868.16, 27-Feb-2012
1580,Revenue,CCHD,Home Care Purch South,Other Small Contracts,Servoca Nursing & Care,1298.04, 06-Feb-2012
1581,Revenue,CCHD,Home Care Purch North,Other Small Contracts,Servoca Nursing & Care,134.28, 06-Feb-2012
1582,Revenue,CCHD,Day Care - South,Private & Voluntary Day Care,Servoca Nursing & Care,760.92, 06-Feb-2012
1583,Revenue,CCHD,Day Care - North,Private & Voluntary Day Care,Servoca Nursing & Care,302.13, 06-Feb-2012
1584,Revenue,CCHD,Younger MH non-res purchasing,Private & Voluntary Day Care,Servoca Nursing & Care,44.76, 06-Feb-2012
1585,Revenue,CCHD,Elderly MH Day Care North,Private & Voluntary Day Care,Servoca Nursing & Care,152.93, 06-Feb-2012
1586,Revenue,CCHD,Supported Living - KD,Private & Voluntary Home Care,Servoca Nursing & Care,89.52, 06-Feb-2012
1587,Revenue,CCHD,Home Care Purch South,Other Small Contracts,Servoca Nursing & Care,1312.96, 09-Feb-2012
1588,Revenue,CCHD,Home Care Purch North,Other Small Contracts,Servoca Nursing & Care,283.48, 09-Feb-2012
1589,Revenue,CCHD,Day Care - South,Private & Voluntary Day Care,Servoca Nursing & Care,760.92, 09-Feb-2012
1590,Revenue,CCHD,Day Care - North,Private & Voluntary Day Care,Servoca Nursing & Care,350.62, 09-Feb-2012
1591,Revenue,CCHD,Younger MH non-res purchasing,Private & Voluntary Day Care,Servoca Nursing & Care,74.6, 09-Feb-2012
1592,Revenue,CCHD,Elderly MH Day Care North,Private & Voluntary Day Care,Servoca Nursing & Care,149.2, 09-Feb-2012
1593,Revenue,CCHD,Supported Living - KD,Private & Voluntary Home Care,Servoca Nursing & Care,59.68, 09-Feb-2012
1594,Revenue,CCHD,Home Care Purch South,Other Small Contracts,Servoca Nursing & Care,1197.33, 20-Feb-2012
1595,Revenue,CCHD,Home Care Purch North,Other Small Contracts,Servoca Nursing & Care,212.61, 20-Feb-2012
1596,Revenue,CCHD,Day Care - South,Private & Voluntary Day Care,Servoca Nursing & Care,716.16, 20-Feb-2012
1597,Revenue,CCHD,Day Care - North,Private & Voluntary Day Care,Servoca Nursing & Care,402.84, 20-Feb-2012
1598,Revenue,CCHD,Younger MH non-res purchasing,Private & Voluntary Day Care,Servoca Nursing & Care,74.6, 20-Feb-2012
1599,Revenue,CCHD,Elderly MH Day Care North,Private & Voluntary Day Care,Servoca Nursing & Care,201.42, 20-Feb-2012
1600,Revenue,CCHD,Supported Living - KD,Private & Voluntary Home Care,Servoca Nursing & Care,89.52, 20-Feb-2012
1601,Revenue,CCHD,Adult Learning Difficulties - Kingswood,Other Employee Expenses,Seven Social Care Limited,825, 21-Feb-2012
1602,Revenue,CCHD,Southmead Hospital Purchasing,Nursing Homes,Shaw Healthcare Ltd,1453, 21-Feb-2012
1603,Revenue,CCHD,Elderly Mental Health North,Nursing Homes,Shaw Healthcare Ltd,1231.84, 21-Feb-2012
1604,Revenue,CCHD,S28A - Under 65 South,Residential Homes,Shaw Healthcare Ltd,10457.12, 21-Feb-2012
1605,Revenue,CCHD,S28A - Under 65 South,Residential Homes,Shaw Healthcare Ltd,10293.12, 21-Feb-2012
1606,Revenue,CCHD,S28A - Under 65 South,Residential Homes,Shaw Healthcare Ltd,10457.12, 21-Feb-2012
1607,Revenue,CCHD,S117 Placements PCT,Residential Homes,Shaw Healthcare Ltd,15106.96, 21-Feb-2012
1608,Revenue,CCHD,Under 65s PWLD - PS,Nursing Homes,Shaw Healthcare Ltd,9513.68, 21-Feb-2012
1609,Revenue,CCHD,Under 65s PWLD - KD,Residential Homes,Shaw Healthcare Ltd,8935.92, 21-Feb-2012
1610,Revenue,CCHD,Elderly PWLD - KH,Residential Homes,Shaw Healthcare Ltd,10098.36, 21-Feb-2012
1611,Revenue,CCHD,Elderly PWLD - KH,Residential Homes,Shaw Healthcare Ltd,3821, 21-Feb-2012
1612,Revenue,CCHD,S28A - Under 65 South,Residential Homes,Shaw Healthcare Ltd,10137, 21-Feb-2012
1613,Revenue,CCHD,S28A - Under 65 South,Residential Homes,Shaw Healthcare Ltd,11756.44, 21-Feb-2012
1614,Revenue,CCHD,S28A - Under 65 South,Residential Homes,Shaw Healthcare Ltd,4681.16, 21-Feb-2012
1615,Revenue,CCHD,S28A - Over 65 South,Residential Homes,Shaw Healthcare Ltd,4681.16, 21-Feb-2012
1616,Revenue,CCHD,Under 65s PWLD - PS,Nursing Homes,Shaw Healthcare Ltd,9842, 21-Feb-2012
1617,Revenue,CCHD,S28A - Over 65 South,Residential Homes,Shaw Healthcare Ltd,4681.16, 21-Feb-2012
1618,Revenue,CCHD,S28A - Over 65 South,Residential Homes,Shaw Healthcare Ltd,4681.16, 21-Feb-2012
1619,Revenue,CCHD,S28A - Over 65 South,Residential Homes,Shaw Healthcare Ltd,4688.84, 21-Feb-2012
1620,Revenue,CCHD,S28A - Under 65 South,Residential Homes,Shaw Healthcare Ltd,9131.32, 21-Feb-2012
1621,Revenue,CCHD,S28A - Over 65 South,Residential Homes,Shaw Healthcare Ltd,8935.92, 21-Feb-2012
1622,Revenue,CCHD,Purchase of Non-Res Care - KD,Private & Voluntary Day Care,Shaw Healthcare Specialist Services Ltd,563.73, 24-Feb-2012
1623,Revenue,CCHD,Supported Living - KH,Private & Voluntary Home Care,Silva Care Limited,4415.44, 20-Feb-2012
1624,Revenue,CCHD,Day Care - North,Private & Voluntary Day Care,Silva Care Limited,660.07, 07-Feb-2012
1625,Revenue,CCHD,Under 65s PWLD - KD,Residential Homes,Small House Homes Limited,17308.68, 21-Feb-2012
1626,Revenue,CCHD,Elderly MH Day Care North,Private & Voluntary Day Care,Smile Independent Living Support Limited,501, 21-Feb-2012
1627,Revenue,CCHD,Purchase of Non-Res Care - PS,Private & Voluntary Day Care,Smile Independent Living Support Limited,581.4, 20-Feb-2012
1628,Revenue,CCHD,Supported Living - KD,Private & Voluntary Home Care,Smile Independent Living Support Limited,4094.6, 23-Feb-2012
1629,Revenue,CCHD,Purchase of Non-Res Care - KD,Private & Voluntary Day Care,Smile Independent Living Support Limited,1090.15, 23-Feb-2012
1630,Revenue,CCHD,Supported Living - KD,Private & Voluntary Home Care,Smile Independent Living Support Limited,1861.9, 23-Feb-2012
1631,Revenue,CCHD,Purchase of Non-Res Care - KD,Private & Voluntary Day Care,Smile Independent Living Support Limited,934.01, 23-Feb-2012
1632,Revenue,CCHD,Purchase of Non-Res Care - KD,Private & Voluntary Day Care,Smile Independent Living Support Limited,918.1, 23-Feb-2012
1633,Revenue,CCHD,Purchase of Non-Res Care - KD,Private & Voluntary Day Care,Smile Independent Living Support Limited,571.2, 23-Feb-2012
1634,Revenue,CCHD,Purchase of Non-Res Care - KD,Private & Voluntary Day Care,Smile Independent Living Support Limited,2716.83, 23-Feb-2012
1635,Revenue,CCHD,Purchase of Non-Res Care - KD,Private & Voluntary Day Care,Smile Indpendent Living Support Ltd,1213, 23-Feb-2012
1636,Revenue,CCHD,Supported Living - KD,Private & Voluntary Home Care,Smile Indpendent Living Support Ltd,938.35, 23-Feb-2012
1637,Revenue,CCHD,Purchase of Non-Res Care - KD,Private & Voluntary Day Care,Smile Indpendent Living Support Ltd,609.1, 23-Feb-2012
1638,Revenue,CCHD,Training - Adult Services,Training Expenses,South London and South West ASW,950, 03-Feb-2012
1639,Revenue,CCHD,Training - Adult Services,Training Expenses,South London and South West ASW,755, 03-Feb-2012
1640,Revenue,CCHD,Under 65s PWLD - KH,Residential Homes,St Brigas,2014.4, 21-Feb-2012
1641,Revenue,CCHD,Under 65s PWLD - PS,Residential Homes,St Brigas,2907.24, 21-Feb-2012
1642,Revenue,CCHD,Under 65s PWLD - KH,Residential Homes,St Brigas,1963.52, 21-Feb-2012
1643,Revenue,CCHD,Frenchay Hospital Purchasing,Nursing Homes,St George Nursing Home,1285, 21-Feb-2012
1644,Revenue,CCHD,Elderly Purchasing - South,Nursing Homes,St George Nursing Home,1293, 21-Feb-2012
1645,Revenue,CCHD,Frenchay Hospital Purchasing,Residential Homes,St Monicas Trust,1232.16, 21-Feb-2012
1646,Revenue,CCHD,Elderly Purchasing - South,Residential Homes,St Roses School,11742.13, 17-Feb-2012
1647,Revenue,CCHD,Swift Dump Code,Residential Homes,St Teresa`S Nursing Home,1007.79, 21-Feb-2012
1648,Revenue,CCHD,Under 65s PWLD - PS,Residential Homes,Stepping Stones Re-Sett. Unit,8464.68, 21-Feb-2012
1649,Revenue,CCHD,Elderly Mental Health North,Residential Homes,Stuart House,1809.24, 21-Feb-2012
1650,Revenue,CCHD,Southmead Hospital Purchasing,Residential Homes,Stuart House,1345.92, 21-Feb-2012
1651,Revenue,CCHD,Younger MH non-res purchasing,Private & Voluntary Day Care,Supported Independence Ltd,1228.5, 09-Feb-2012
1652,Revenue,CCHD,Supported Living - KD,Private & Voluntary Home Care,Supported Independence Ltd,897, 03-Feb-2012
1653,Revenue,CCHD,Section 117 Placements MH Younger,Private & Voluntary Day Care,Supported Independence Ltd,1131, 24-Feb-2012
1654,Revenue,CCHD,Younger MH non-res purchasing,Private & Voluntary Day Care,Supported Independence Ltd,682.5, 24-Feb-2012
1655,Revenue,CCHD,Supported Living - KD,Private & Voluntary Home Care,Supported Independence Ltd,877.5, 22-Feb-2012
1656,Revenue,CCHD,Younger MH non-res purchasing,Private & Voluntary Day Care,Supported Independence Ltd,1033.5, 24-Feb-2012
1657,Revenue,CCHD,Supported Living - PS,Private & Voluntary Home Care,Supported Independence Ltd,663, 22-Feb-2012
1658,Revenue,CCHD,Section 117 Placements MH Younger,Private & Voluntary Day Care,Supported Independence Ltd,858, 24-Feb-2012
1659,Revenue,CCHD,Younger MH non-res purchasing,Private & Voluntary Day Care,Supported Independence Ltd,780, 29-Feb-2012
1660,Revenue,CCHD,Younger MH non-res purchasing,Private & Voluntary Day Care,Supported Independence Ltd,702, 22-Feb-2012
1661,Revenue,CCHD,Supported Living - KD,Private & Voluntary Home Care,Supported Independence Ltd,877.5, 22-Feb-2012
1662,Revenue,CCHD,Younger MH non-res purchasing,Private & Voluntary Day Care,Supported Independence Ltd,721.5, 24-Feb-2012
1663,Revenue,CCHD,Younger MH non-res purchasing,Private & Voluntary Day Care,Supported Independence Ltd,926.25, 29-Feb-2012
1664,Revenue,CCHD,Younger MH non-res purchasing,Private & Voluntary Day Care,Supported Independence Ltd,5197.5, 24-Feb-2012
1665,Revenue,CCHD,Supporting People Programme,Grants to Voluntary Bodies,Supported Independence Ltd,2678.48, 24-Feb-2012
1666,Revenue,CCHD,Supporting People Programme,Grants to Voluntary Bodies,Supported Independence Ltd,5538.4, 24-Feb-2012
1667,Revenue,CCHD,Supported Living - PS,Private & Voluntary Home Care,Supported Independent Living Schemes,642.96, 07-Feb-2012
1668,Revenue,CCHD,Supported Living - PS,Private & Voluntary Home Care,Supported Independent Living Schemes,642.96, 28-Feb-2012
1669,Revenue,CCHD,Supporting People Programme,Grants to Voluntary Bodies,Supported Independent Living Schemes,4465.92, 14-Feb-2012
1670,Revenue,CCHD,Supporting People Programme,Grants to Voluntary Bodies,Supported Independent Living Schemes,5388.32, 14-Feb-2012
1671,Revenue,CCHD,Frenchay Hospital Purchasing,Residential Homes,T/A Stonebow House Residential Home,1218.16, 21-Feb-2012
1672,Revenue,CCHD,Under 65s PWLD - PS,Residential Homes,The Ann Coleman Centre,5956, 21-Feb-2012
1673,Revenue,CCHD,Southmead Hospital Purchasing,Residential Homes,The Beeches,2595.94, 21-Feb-2012
1674,Revenue,CCHD,Southmead Hospital Purchasing,Residential Homes,The Beeches,1211.44, 21-Feb-2012
1675,Revenue,CCHD,Frenchay Hospital Purchasing,Residential Homes,The Beeches,1125.12, 21-Feb-2012
1676,Revenue,CCHD,Frenchay Hospital Purchasing,Residential Homes,The Beeches,686.44, 21-Feb-2012
1677,Revenue,CCHD,Southmead Hospital Purchasing,Residential Homes,The Beeches,1229, 21-Feb-2012
1678,Revenue,CCHD,Elderly Purchasing - South,Residential Homes,The Beeches,1098.68, 21-Feb-2012
1679,Revenue,CCHD,Supported Living - KH,Private & Voluntary Home Care,The Brandon Trust,4422.34, 16-Feb-2012
1680,Revenue,CCHD,Supported Living - KH,Private & Voluntary Home Care,The Brandon Trust,4279.68, 16-Feb-2012
1681,Revenue,CCHD,Supported Living - KH,Private & Voluntary Home Care,The Brandon Trust,4422.34, 16-Feb-2012
1682,Revenue,CCHD,Purchase of Non-Res Care - KH,Private & Voluntary Day Care,The Brandon Trust,517.63, 02-Feb-2012
1683,Revenue,CCHD,Purchase of Non-Res Care - KH,Private & Voluntary Day Care,The Brandon Trust,5740, 16-Feb-2012
1684,Revenue,CCHD,Purchase of Non-Res Care - KH,Private & Voluntary Day Care,The Brandon Trust,3864.25, 16-Feb-2012
1685,Revenue,CCHD,Purchase of Non-Res Care - KH,Private & Voluntary Day Care,The Brandon Trust,746.64, 16-Feb-2012
1686,Revenue,CCHD,Supported Living - KD,Private & Voluntary Home Care,The Brandon Trust,590.42, 03-Feb-2012
1687,Revenue,CCHD,Supported Living - KD,Private & Voluntary Home Care,The Brandon Trust,8561.04, 03-Feb-2012
1688,Revenue,CCHD,Purchase of Non-Res Care - KD,Private & Voluntary Day Care,The Brandon Trust,622.2, 03-Feb-2012
1689,Revenue,CCHD,Purchase of Non-Res Care - KH,Private & Voluntary Day Care,The Brandon Trust,1291.5, 16-Feb-2012
1690,Revenue,CCHD,Supported Living - KH,Private & Voluntary Home Care,The Brandon Trust,746.64, 16-Feb-2012
1691,Revenue,CCHD,Purchase of Non-Res Care - PS,Private & Voluntary Day Care,The Brandon Trust,746.64, 06-Feb-2012
1692,Revenue,CCHD,Day Care - North,Private & Voluntary Day Care,The Brandon Trust,553.5, 24-Feb-2012
1693,Revenue,CCHD,Purchase of Non-Res Care - KD,Private & Voluntary Day Care,The Brandon Trust,4305, 27-Feb-2012
1694,Revenue,CCHD,Purchase of Non-Res Care - KD,Private & Voluntary Day Care,The Brandon Trust,784.13, 27-Feb-2012
1695,Revenue,CCHD,Purchase of Non-Res Care - KD,Private & Voluntary Day Care,The Brandon Trust,1096.75, 23-Feb-2012
1696,Revenue,CCHD,Purchase of Non-Res Care - KH,Private & Voluntary Day Care,The Brandon Trust,1004.5, 16-Feb-2012
1697,Revenue,CCHD,Purchase of Non-Res Care - KD,Private & Voluntary Day Care,The Brandon Trust,1035.25, 24-Feb-2012
1698,Revenue,CCHD,Purchase of Non-Res Care - KH,Private & Voluntary Day Care,The Brandon Trust,4920, 16-Feb-2012
1699,Revenue,CCHD,Purchase of Non-Res Care - KH,Private & Voluntary Day Care,The Brandon Trust,3157, 16-Feb-2012
1700,Revenue,CCHD,Purchase of Non-Res Care - KD,Private & Voluntary Day Care,The Brandon Trust,738, 24-Feb-2012
1701,Revenue,CCHD,Purchase of Non-Res Care - KD,Private & Voluntary Day Care,The Brandon Trust,881.5, 23-Feb-2012
1702,Revenue,CCHD,Purchase of Non-Res Care - KD,Private & Voluntary Day Care,The Brandon Trust,1250.5, 24-Feb-2012
1703,Revenue,CCHD,Brandon Day Care,Private & Voluntary Day Care,The Brandon Trust,6329.44, 21-Feb-2012
1704,Revenue,CCHD,Supported Living - KD,Private & Voluntary Home Care,The Brandon Trust,9151.46, 24-Feb-2012
1705,Revenue,CCHD,Under 65s PWLD - PS,Nursing Homes,The Brandon Trust  Olympus House,5641, 21-Feb-2012
1706,Revenue,CCHD,S28A - Over 65 South,Residential Homes,The Brandon Trust  Olympus House,3537.96, 21-Feb-2012
1707,Revenue,CCHD,Under 65s PWLD - PS,Residential Homes,The Brandon Trust  Olympus House,11149.88, 21-Feb-2012
1708,Revenue,CCHD,Under 65s PWLD - KD,Residential Homes,The Brandon Trust  Olympus House,3227.8, 21-Feb-2012
1709,Revenue,CCHD,Under 65s PWLD - KD,Residential Homes,The Brandon Trust  Olympus House,5108.24, 21-Feb-2012
1710,Revenue,CCHD,Elderly PWLD - PS,Residential Homes,The Brandon Trust  Olympus House,3338.16, 21-Feb-2012
1711,Revenue,CCHD,S28A - Over 65 South,Residential Homes,The Brandon Trust  Olympus House,3781.68, 21-Feb-2012
1712,Revenue,CCHD,Under 65s PWLD - PS,Nursing Homes,The Brandon Trust  Olympus House,5054.2, 21-Feb-2012
1713,Revenue,CCHD,S28A - Under 65 South,Residential Homes,The Brandon Trust  Olympus House,5944.52, 21-Feb-2012
1714,Revenue,CCHD,S28A - Under 65 South,Residential Homes,The Brandon Trust  Olympus House,4815.96, 21-Feb-2012
1715,Revenue,CCHD,S28A - Under 65 South,Residential Homes,The Brandon Trust  Olympus House,5944.52, 21-Feb-2012
1716,Revenue,CCHD,S28A - Under 65 South,Residential Homes,The Brandon Trust  Olympus House,5780.52, 21-Feb-2012
1717,Revenue,CCHD,S28A - Over 65 South,Nursing Homes,The Brandon Trust  Olympus House,5368.28, 21-Feb-2012
1718,Revenue,CCHD,S28A - Over 65 South,Nursing Homes,The Brandon Trust  Olympus House,5720.76, 21-Feb-2012
1719,Revenue,CCHD,S28A - Under 65 South,Residential Homes,The Brandon Trust  Olympus House,5189.52, 21-Feb-2012
1720,Revenue,CCHD,S28A - Under 65 South,Residential Homes,The Brandon Trust  Olympus House,5262.04, 21-Feb-2012
1721,Revenue,CCHD,S28A - Over 65 South,Residential Homes,The Brandon Trust  Olympus House,7104.36, 21-Feb-2012
1722,Revenue,CCHD,S28A - Under 65 South,Residential Homes,The Brandon Trust  Olympus House,5944.52, 21-Feb-2012
1723,Revenue,CCHD,S28A - Under 65 South,Residential Homes,The Brandon Trust  Olympus House,5944.48, 21-Feb-2012
1724,Revenue,CCHD,S28A - Under 65 South,Residential Homes,The Brandon Trust  Olympus House,4603.08, 21-Feb-2012
1725,Revenue,CCHD,S28A - Under 65 South,Residential Homes,The Brandon Trust  Olympus House,5262.08, 21-Feb-2012
1726,Revenue,CCHD,S28A - Over 65 South,Residential Homes,The Brandon Trust  Olympus House,4662.84, 21-Feb-2012
1727,Revenue,CCHD,S28A - Over 65 South,Residential Homes,The Brandon Trust  Olympus House,3969, 21-Feb-2012
1728,Revenue,CCHD,Elderly Mental Health North,Nursing Homes,The Cidermill,954, 21-Feb-2012
1729,Revenue,CCHD,Elderly Mental Health North,Residential Homes,The Cidermill,1389, 21-Feb-2012
1730,Revenue,CCHD,Elderly Mental Health North,Nursing Homes,The Cidermill,1181.8, 21-Feb-2012
1731,Revenue,CCHD,Under 65s PWLD - PS,Residential Homes,The Conifers,8032.4, 21-Feb-2012
1732,Revenue,CCHD,Kingswood Centre - Maples Suite,Furniture & Fittings Loose,The Consortium,748.83, 07-Feb-2012
1733,Revenue,CCHD,Kingswood Centre - Maples Suite,Educational Materials,The Consortium,161.3, 07-Feb-2012
1734,Revenue,CCHD,Elderly Purchasing - South,Residential Homes,The Gables Residential Home,1285.04, 21-Feb-2012
1735,Revenue,CCHD,Frenchay Hospital Purchasing,Residential Homes,The Gables Residential Home,1229, 21-Feb-2012
1736,Revenue,CCHD,Elderly Purchasing - South,Residential Homes,The Gables Residential Home,1084.28, 21-Feb-2012
1737,Revenue,CCHD,Elderly Mental Health North,Residential Homes,The Gables Residential Home,1172.52, 21-Feb-2012
1738,Revenue,CCHD,Section 117 Placements North,Residential Homes,The Gables Residential Home,2156.84, 21-Feb-2012
1739,Revenue,CCHD,Elderly Mental Health North,Residential Homes,The Grove,983.64, 21-Feb-2012
1740,Revenue,CCHD,Elderly Mental Health North,Residential Homes,The Grove,1582.4, 21-Feb-2012
1741,Revenue,CCHD,Elderly Mental Health North,Residential Homes,The Grove,1112.08, 21-Feb-2012
1742,Revenue,CCHD,Elderly Mental Health North,Residential Homes,The Grove,580.64, 21-Feb-2012
1743,Revenue,CCHD,Section 117 Placements North,Residential Homes,The Grove,2040, 21-Feb-2012
1744,Revenue,CCHD,Elderly Mental Health North,Residential Homes,The Grove,1475.92, 21-Feb-2012
1745,Revenue,CCHD,Southmead Hospital Purchasing,Residential Homes,The Grove,1318.76, 21-Feb-2012
1746,Revenue,CCHD,Elderly Mental Health North,Residential Homes,The Grove,1480.48, 21-Feb-2012
1747,Revenue,CCHD,Section 117 Placements North,Residential Homes,The Grove,1867.47, 21-Feb-2012
1748,Revenue,CCHD,Elderly Mental Health North,Residential Homes,The Grove,1106.29, 21-Feb-2012
1749,Revenue,CCHD,Elderly Mental Health North,Residential Homes,The Grove,939.52, 21-Feb-2012
1750,Revenue,CCHD,Frenchay Hospital Purchasing,Residential Homes,The Grove,814.32, 21-Feb-2012
1751,Revenue,CCHD,Supporting People Programme,Grants to Voluntary Bodies,The Hatch Camphill Community,1168.28, 24-Feb-2012
1752,Revenue,CCHD,Supporting People Programme,Grants to Voluntary Bodies,The Hatch Camphill Community,1168.28, 24-Feb-2012
1753,Revenue,CCHD,Supporting People Programme,Grants to Voluntary Bodies,The Hatch Camphill Community,1168.28, 24-Feb-2012
1754,Revenue,CCHD,Supporting People Programme,Grants to Voluntary Bodies,The Hatch Camphill Community,1168.28, 24-Feb-2012
1755,Revenue,CCHD,Supporting People Programme,Grants to Voluntary Bodies,The Hatch Camphill Community,1168.28, 24-Feb-2012
1756,Revenue,CCHD,Supporting People Programme,Grants to Voluntary Bodies,The Hatch Camphill Community,1168.28, 24-Feb-2012
1757,Revenue,CCHD,Supporting People Programme,Grants to Voluntary Bodies,The Hatch Camphill Community,1168.28, 24-Feb-2012
1758,Revenue,CCHD,Supporting People Programme,Grants to Voluntary Bodies,The Hatch Camphill Community,1168.28, 24-Feb-2012
1759,Revenue,CCHD,Supporting People Programme,Grants to Voluntary Bodies,The Hatch Camphill Community,1168.28, 24-Feb-2012
1760,Revenue,CCHD,Frenchay Hospital Purchasing,Nursing Homes,The Heathers,1285, 21-Feb-2012
1761,Revenue,CCHD,Elderly Mental Health North,Nursing Homes,The Heathers,1262.52, 21-Feb-2012
1762,Revenue,CCHD,Elderly Purchasing - South,Nursing Homes,The Heathers,1285, 21-Feb-2012
1763,Revenue,CCHD,Frenchay Hospital Purchasing,Nursing Homes,The Heathers,718.6, 21-Feb-2012
1764,Revenue,CCHD,Southmead Hospital Purchasing,Nursing Homes,The Heathers,1249.44, 21-Feb-2012
1765,Revenue,CCHD,Frenchay Hospital Purchasing,Nursing Homes,The Heathers,1288.24, 21-Feb-2012
1766,Revenue,CCHD,Elderly Mental Health North,Nursing Homes,The Heathers,1075.92, 21-Feb-2012
1767,Revenue,CCHD,Frenchay Hospital Purchasing,Nursing Homes,The Heathers,1215.84, 21-Feb-2012
1768,Revenue,CCHD,Frenchay Hospital Purchasing,Nursing Homes,The Heathers,1286.64, 21-Feb-2012
1769,Revenue,CCHD,Southmead Hospital Purchasing,Nursing Homes,The Heathers,738.32, 21-Feb-2012
1770,Revenue,CCHD,Elderly Purchasing - North,Nursing Homes,The Heathers,1140.72, 21-Feb-2012
1771,Revenue,CCHD,Elderly Mental Health North,Residential Homes,The Hollies,1256.16, 21-Feb-2012
1772,Revenue,CCHD,Under 65s PWLD - KD,Residential Homes,The Manor House,936.24, 21-Feb-2012
1773,Revenue,CCHD,Under 65s PWLD - KD,Residential Homes,The Manor House,936.24, 21-Feb-2012
1774,Revenue,CCHD,Under 65s PWLD - KD,Residential Homes,The Manor House,1200.16, 21-Feb-2012
1775,Revenue,CCHD,Under 65s PWLD - KH,Residential Homes,The Manor House,4779.6, 21-Feb-2012
1776,Revenue,CCHD,Under 65s PWLD - KH,Residential Homes,The Manor House,3398.2, 21-Feb-2012
1777,Revenue,CCHD,Under 65s PWLD - KH,Residential Homes,The Manor House,2607.12, 21-Feb-2012
1778,Revenue,CCHD,Under 65s PWLD - KD,Residential Homes,The Manor House,2713, 21-Feb-2012
1779,Revenue,CCHD,Under 65s PWLD - PS,Residential Homes,The Manor House,3177.2, 21-Feb-2012
1780,Revenue,CCHD,Under 65s PWLD - KD,Residential Homes,The Manor House,2755.4, 21-Feb-2012
1781,Revenue,CCHD,Under 65s PWLD - KH,Residential Homes,The Manor House,2607.12, 21-Feb-2012
1782,Revenue,CCHD,Under 65s PWLD - KH,Residential Homes,The Manor House,3249.44, 21-Feb-2012
1783,Revenue,CCHD,Under 65s PWLD - KH,Residential Homes,The Manor House,5850.64, 21-Feb-2012
1784,Revenue,CCHD,S28A - Under 65 South,Residential Homes,The Manor House,4723.6, 21-Feb-2012
1785,Revenue,CCHD,Under 65s PWLD - KH,Residential Homes,The Manor House,9105.19, 21-Feb-2012
1786,Revenue,CCHD,Under 65s PWLD - KH,Residential Homes,The Manor House,3315.88, 21-Feb-2012
1787,Revenue,CCHD,Under 65s PWLD - KH,Residential Homes,The Manor House,2898.32, 21-Feb-2012
1788,Revenue,CCHD,Under 65s PWLD - KH,Residential Homes,The Manor House,3227.2, 21-Feb-2012
1789,Revenue,CCHD,Under 65s PWLD - KH,Residential Homes,The Manor House,4799.32, 21-Feb-2012
1790,Revenue,CCHD,Under 65s PWLD - PS,Residential Homes,The Manor House,3011.72, 21-Feb-2012
1791,Revenue,CCHD,Under 65s PWLD - PS,Residential Homes,The Manor House,2829.88, 21-Feb-2012
1792,Revenue,CCHD,Under 65s PWLD - KH,Residential Homes,The Manor House,4322.32, 21-Feb-2012
1793,Revenue,CCHD,Under 65s PWLD - KH,Residential Homes,The Manor House,4204.96, 21-Feb-2012
1794,Revenue,CCHD,Under 65s PWLD - KD,Residential Homes,The Manor House,3155.32, 21-Feb-2012
1795,Revenue,CCHD,Under 65s PWLD - KD,Residential Homes,The Manor House,2747.58, 21-Feb-2012
1796,Revenue,CCHD,Under 65s PWLD - KD,Residential Homes,The Manor House,596.72, 21-Feb-2012
1797,Revenue,CCHD,Elderly PWLD - KH,Residential Homes,The Manor House,2250.04, 21-Feb-2012
1798,Revenue,CCHD,Under 65s PWLD - PS,Residential Homes,The Manor House,3140.28, 21-Feb-2012
1799,Revenue,CCHD,Under 65s PWLD - KH,Residential Homes,The Manor House,508.26, 21-Feb-2012
1800,Revenue,CCHD,Under 65s PWLD - KD,Residential Homes,The Manor House,943.96, 21-Feb-2012
1801,Revenue,CCHD,Under 65s PWLD - PS,Residential Homes,The Manor House,959.38, 21-Feb-2012
1802,Revenue,CCHD,Under 65s PWLD - PS,Residential Homes,The Manor House,839.44, 21-Feb-2012
1803,Revenue,CCHD,Under 65s PWLD - KD,Residential Homes,The Manor House,1025.2, 21-Feb-2012
1804,Revenue,CCHD,Under 65s PWLD - KH,Residential Homes,The Manor House,4686.4, 21-Feb-2012
1805,Revenue,CCHD,Under 65s PWLD - KH,Residential Homes,The Manor House,2655.68, 21-Feb-2012
1806,Revenue,CCHD,Elderly Mental Health North,Residential Homes,The Old Vicarage Residential Home,2757.68, 21-Feb-2012
1807,Revenue,CCHD,Home Care Purch North,Other Small Contracts,The Royal Bank of Scotland Commercial,1095, 09-Feb-2012
1808,Revenue,CCHD,Home Care Purch North,Other Small Contracts,The Royal Bank of Scotland Commercial,1095, 09-Feb-2012
1809,Revenue,CCHD,Home Care Purch North,Other Small Contracts,The Royal Bank of Scotland Commercial,1095, 09-Feb-2012
1810,Revenue,CCHD,Home Care Purch North,Other Small Contracts,The Royal Bank of Scotland Commercial,1095, 09-Feb-2012
1811,Revenue,CCHD,Home Care Purch South,Other Small Contracts,The Royal Bank of Scotland Commercial,1664.52, 02-Feb-2012
1812,Revenue,CCHD,Home Care Purch North,Other Small Contracts,The Royal Bank of Scotland Commercial,2238.76, 02-Feb-2012
1813,Revenue,CCHD,Day Care - South,Private & Voluntary Day Care,The Royal Bank of Scotland Commercial,139.68, 02-Feb-2012
1814,Revenue,CCHD,Elderly MH Home Care North,Other Small Contracts,The Royal Bank of Scotland Commercial,318.16, 02-Feb-2012
1815,Revenue,CCHD,Elderly MH Day Care North,Private & Voluntary Day Care,The Royal Bank of Scotland Commercial,353.08, 02-Feb-2012
1816,Revenue,CCHD,Home Care Purch South,Other Small Contracts,The Royal Bank of Scotland Commercial,1877.92, 02-Feb-2012
1817,Revenue,CCHD,Home Care Purch North,Other Small Contracts,The Royal Bank of Scotland Commercial,2180.56, 02-Feb-2012
1818,Revenue,CCHD,Day Care - South,Private & Voluntary Day Care,The Royal Bank of Scotland Commercial,116.4, 02-Feb-2012
1819,Revenue,CCHD,Elderly MH Home Care North,Other Small Contracts,The Royal Bank of Scotland Commercial,329.8, 02-Feb-2012
1820,Revenue,CCHD,Elderly MH Day Care North,Private & Voluntary Day Care,The Royal Bank of Scotland Commercial,225.04, 02-Feb-2012
1821,Revenue,CCHD,Home Care Purch South,Other Small Contracts,The Royal Bank of Scotland Commercial,1967.16, 06-Feb-2012
1822,Revenue,CCHD,Home Care Purch North,Other Small Contracts,The Royal Bank of Scotland Commercial,2265.92, 06-Feb-2012
1823,Revenue,CCHD,Day Care - South,Private & Voluntary Day Care,The Royal Bank of Scotland Commercial,128.04, 06-Feb-2012
1824,Revenue,CCHD,Elderly MH Home Care North,Other Small Contracts,The Royal Bank of Scotland Commercial,318.16, 06-Feb-2012
1825,Revenue,CCHD,Elderly MH Day Care North,Private & Voluntary Day Care,The Royal Bank of Scotland Commercial,341.44, 06-Feb-2012
1826,Revenue,CCHD,Home Care Purch South,Other Small Contracts,The Royal Bank of Scotland Commercial,1971.04, 06-Feb-2012
1827,Revenue,CCHD,Home Care Purch North,Other Small Contracts,The Royal Bank of Scotland Commercial,2172.8, 06-Feb-2012
1828,Revenue,CCHD,Day Care - South,Private & Voluntary Day Care,The Royal Bank of Scotland Commercial,128.04, 06-Feb-2012
1829,Revenue,CCHD,Elderly MH Home Care North,Other Small Contracts,The Royal Bank of Scotland Commercial,279.36, 06-Feb-2012
1830,Revenue,CCHD,Elderly MH Day Care North,Private & Voluntary Day Care,The Royal Bank of Scotland Commercial,186.24, 06-Feb-2012
1831,Revenue,CCHD,Home Care Purch South,Other Small Contracts,The Royal Bank of Scotland Commercial,1765.4, 06-Feb-2012
1832,Revenue,CCHD,Home Care Purch North,Other Small Contracts,The Royal Bank of Scotland Commercial,2119.2, 06-Feb-2012
1833,Revenue,CCHD,Day Care - South,Private & Voluntary Day Care,The Royal Bank of Scotland Commercial,124.16, 06-Feb-2012
1834,Revenue,CCHD,Elderly MH Home Care North,Other Small Contracts,The Royal Bank of Scotland Commercial,252.2, 06-Feb-2012
1835,Revenue,CCHD,Elderly MH Day Care North,Private & Voluntary Day Care,The Royal Bank of Scotland Commercial,170.72, 06-Feb-2012
1836,Revenue,CCHD,Home Care Purch South,Other Small Contracts,The Royal Bank of Scotland Commercial,1447.45, 06-Feb-2012
1837,Revenue,CCHD,Home Care Purch North,Other Small Contracts,The Royal Bank of Scotland Commercial,1905.7, 06-Feb-2012
1838,Revenue,CCHD,Day Care - South,Private & Voluntary Day Care,The Royal Bank of Scotland Commercial,31.04, 06-Feb-2012
1839,Revenue,CCHD,Elderly MH Home Care North,Other Small Contracts,The Royal Bank of Scotland Commercial,283.24, 06-Feb-2012
1840,Revenue,CCHD,Elderly MH Day Care North,Private & Voluntary Day Care,The Royal Bank of Scotland Commercial,178.48, 06-Feb-2012
1841,Revenue,CCHD,Home Care Purch South,Other Small Contracts,The Royal Bank of Scotland Commercial,1761.52, 06-Feb-2012
1842,Revenue,CCHD,Home Care Purch North,Other Small Contracts,The Royal Bank of Scotland Commercial,2192.74, 06-Feb-2012
1843,Revenue,CCHD,Day Care - South,Private & Voluntary Day Care,The Royal Bank of Scotland Commercial,124.16, 06-Feb-2012
1844,Revenue,CCHD,Elderly MH Home Care North,Other Small Contracts,The Royal Bank of Scotland Commercial,314.28, 06-Feb-2012
1845,Revenue,CCHD,Elderly MH Day Care North,Private & Voluntary Day Care,The Royal Bank of Scotland Commercial,310.4, 06-Feb-2012
1846,Revenue,CCHD,Home Care Purch South,Other Small Contracts,The Royal Bank of Scotland Commercial,1839.12, 03-Feb-2012
1847,Revenue,CCHD,Home Care Purch North,Other Small Contracts,The Royal Bank of Scotland Commercial,2336.57, 03-Feb-2012
1848,Revenue,CCHD,Day Care - South,Private & Voluntary Day Care,The Royal Bank of Scotland Commercial,221.16, 03-Feb-2012
1849,Revenue,CCHD,Elderly MH Home Care North,Other Small Contracts,The Royal Bank of Scotland Commercial,318.15, 03-Feb-2012
1850,Revenue,CCHD,Elderly MH Day Care North,Private & Voluntary Day Care,The Royal Bank of Scotland Commercial,236.68, 03-Feb-2012
1851,Revenue,CCHD,Home Care Purch South,Other Small Contracts,The Royal Bank of Scotland Commercial,1815.84, 28-Feb-2012
1852,Revenue,CCHD,Home Care Purch North,Other Small Contracts,The Royal Bank of Scotland Commercial,2313.28, 28-Feb-2012
1853,Revenue,CCHD,Day Care - South,Private & Voluntary Day Care,The Royal Bank of Scotland Commercial,174.6, 28-Feb-2012
1854,Revenue,CCHD,Elderly MH Home Care North,Other Small Contracts,The Royal Bank of Scotland Commercial,314.28, 28-Feb-2012
1855,Revenue,CCHD,Elderly MH Day Care North,Private & Voluntary Day Care,The Royal Bank of Scotland Commercial,228.92, 28-Feb-2012
1856,Revenue,CCHD,Under 65s PWLD - PS,Residential Homes,The Stanstead Centre,3477.88, 21-Feb-2012
1857,Revenue,CCHD,Under 65s PWLD - KD,Residential Homes,The Thomas Moore Project,1894.32, 21-Feb-2012
1858,Revenue,CCHD,Elderly Mental Health North,Residential Homes,The Worthies,1389, 21-Feb-2012
1859,Revenue,CCHD,Elderly Mental Health North,Residential Homes,The Worthies,1140.96, 21-Feb-2012
1860,Revenue,CCHD,Elderly Mental Health North,Residential Homes,The Worthies,2766.4, 21-Feb-2012
1861,Revenue,CCHD,Elderly Purchasing - South,Residential Homes,The Worthies,694.5, 21-Feb-2012
1862,Revenue,CCHD,Elderly Mental Health North,Residential Homes,The Worthies,2544.24, 21-Feb-2012
1863,Revenue,CCHD,Southmead Hospital Purchasing,Residential Homes,The Worthies,1722.4, 21-Feb-2012
1864,Revenue,CCHD,Frenchay Hospital Purchasing,Residential Homes,The Worthies,5010.32, 21-Feb-2012
